{"text_format":"1","workbook":"xlsx","n_sheets":19,"sheets":["Hyppy","Nojapuut","Puomi","Permanto","Rekki","Hevonen","Tulokset","FinaaliHE","FinaaliPP","FinaaliNR","HyppyT","NojapuutT","PuomiT","PermantoT","RekkiT","HevonenT","Asetukset","Tulostus","Nimilista"],"not_rendered":{"charts":0,"images":31,"macros":1,"external_links":0,"defined_names":56,"comments":0,"pivot_tables":0},"unopened":[],"bounds":{"document_bytes":16777216,"sheet_cells":100000,"rows_first":2000,"rows_last":500,"rows_between":2000,"halvings":0,"cell_chars":16384,"cell_head_chars":4096},"cells_cut":0,"cells_raw":0,"read":"whole","date_system":"1900"}

{"sheet":"Hyppy","index":0,"n_rows":34,"n_cols":23,"rows_kept":34,"cut":false,"hidden":false,"merged":[[0,0,0,2]]}
["Hyppy",null,null,null,4,"1",null,null,null,null,null,null,"",null,"2",null,null,null,null,null,null,""]
[0,"Nr","Nimi","Seura","suor","D","E1","E2","E3","E4","väh","E","Yhteensä",null,"D","E1","E2","E3","E4","väh","E","Yhteensä","Tulos"]
[1,2,{"$f":"VLOOKUP($B3,nimilista,2,FALSE)","v":"Camilla Lindén"},{"$f":"VLOOKUP($B3,nimilista,5,FALSE)","v":"Alppilan Salamat"},null,null,null,null,null,null,null,{"$f":"IF(ISBLANK(J3),\"\",10-(SUM(G3:J3)-MIN(G3:J3)-MAX(G3:J3))/2)","v":""},{"$f":"IF(ISBLANK(J3),0,F3-K3+L3)","v":0},null,null,null,null,null,null,null,{"$f":"IF(ISBLANK(S3),\"\",10-(SUM(P3:S3)-MIN(P3:S3)-MAX(P3:S3))/2)","v":""},{"$f":"IF(ISBLANK(S3),0,O3-T3+U3)","v":0},{"$f":"IF(ISBLANK(S3),\"\",(M3+V3)/2)","v":""}]
[2,3,"Jenna Smedman","Alppilan Salamat",null,null,null,null,null,null,null,{"$f":"IF(ISBLANK(J4),\"\",10-(SUM(G4:J4)-MIN(G4:J4)-MAX(G4:J4))/2)","v":""},{"$f":"IF(ISBLANK(J4),0,F4-K4+L4)","v":0},null,null,null,null,null,null,null,{"$f":"IF(ISBLANK(S4),\"\",10-(SUM(P4:S4)-MIN(P4:S4)-MAX(P4:S4))/2)","v":""},{"$f":"IF(ISBLANK(S4),0,O4-T4+U4)","v":0},{"$f":"IF(ISBLANK(S4),\"\",(M4+V4)/2)","v":""}]
[3,4,"Maija Leinonen","Alppilan Salamat",null,2,1,2,2,2,null,{"$f":"IF(ISBLANK(J5),\"\",10-(SUM(G5:J5)-MIN(G5:J5)-MAX(G5:J5))/2)","v":8},{"$f":"IF(ISBLANK(J5),0,F5-K5+L5)","v":10},null,6,1,1,1,1,null,{"$f":"IF(ISBLANK(S5),\"\",10-(SUM(P5:S5)-MIN(P5:S5)-MAX(P5:S5))/2)","v":9},{"$f":"IF(ISBLANK(S5),0,O5-T5+U5)","v":15},12.5]
[4,5,"Mari Anttila","Alppilan Salamat",null,null,null,null,null,null,null,"",0,null,null,null,null,null,null,null,"",0,""]
[5,6,"Nea Kinnunen","Alppilan Salamat",null,null,null,null,null,null,null,"",0,null,null,null,null,null,null,null,"",0,""]
[6,7,"Noora Knuutila","Alppilan Salamat",null,null,null,null,null,null,null,"",0,null,null,null,null,null,null,null,"",0,""]
[7,8,"Tuuli Nyberg","Alppilan Salamat",null,null,null,null,null,null,null,"",0,null,null,null,null,null,null,null,"",0,""]
[8,9,"Enna Herva","Oulun Pyrintö",null,null,null,null,null,null,null,"",0,null,null,null,null,null,null,null,"",0,""]
[9,10,"Lili Granroth","Oulun Pyrintö",null,null,null,null,null,null,null,"",0,null,null,null,null,null,null,null,"",0,""]
[10,11,"Anniina Muilu","Suomen Taitovoimistelu Klubi",null,null,null,null,null,null,null,"",0,null,null,null,null,null,null,null,"",0,""]
[11,12,"Elina Ahmala","Suomen Taitovoimistelu Klubi",null,null,null,null,null,null,null,"",0,null,null,null,null,null,null,null,"",0,""]
[12,13,"Maria Pakkanen","Suomen Taitovoimistelu Klubi",null,null,null,null,null,null,null,"",0,null,null,null,null,null,null,null,"",0,""]
[13,14,"Saara Halme","Suomen Taitovoimistelu Klubi",null,null,null,null,null,null,null,"",0,null,null,null,null,null,null,null,"",0,""]
[14,15,"Viivi Immonen","Suomen Taitovoimistelu Klubi",null,null,null,null,null,null,null,"",0,null,null,null,null,null,null,null,"",0,""]
[15,16,"Adeliina Sulkanen","Tampereen Voimistelijat",null,null,null,null,null,null,null,"",0,null,null,null,null,null,null,null,"",0,""]
[16,17,"Suvi Karumo","Tampereen Voimistelijat",null,null,null,null,null,null,null,"",0,null,null,null,null,null,null,null,"",0,""]
[17,18,"Tiia Laisi","Tampereen Voimistelijat",null,null,null,null,null,null,null,"",0,null,null,null,null,null,null,null,"",0,""]
[18,19,"Veronika Vuosjoki","Tampereen Voimistelijat",null,null,null,null,null,null,null,"",0,null,null,null,null,null,null,null,"",0,""]
[19,20,"Alexandra Ivanova","Turun Pyrkivä",null,null,null,null,null,null,null,"",0,null,null,null,null,null,null,null,"",0,""]
[20,21,"Victoria Jakaus","Turun Pyrkivä",null,null,null,null,null,null,null,"",0,null,null,null,null,null,null,null,"",0,""]
[21,22,"Julia Jäkälä","Turun Urheiluliitto",null,null,null,null,null,null,null,"",0,null,null,null,null,null,null,null,"",0,""]
[22,23,"Maria Åman","Turun Urheiluliitto",null,null,null,null,null,null,null,"",0,null,null,null,null,null,null,null,"",0,""]
[23,24,"Miina Kokkonen","Turun Urheiluliitto",null,null,null,null,null,null,null,"",0,null,null,null,null,null,null,null,"",0,""]
[24,25,"Anniina Rautiainen","Voimisteluseura Keski-Uusimaa",null,null,null,null,null,null,null,"",0,null,null,null,null,null,null,null,"",0,""]
[25,26,"Maisa Anttilainen","Voimisteluseura Keski-Uusimaa",null,null,null,null,null,null,null,"",0,null,null,null,null,null,null,null,"",0,""]
[26,27,"Julia Darlington","Voimisteluseura Kieppi",null,null,null,null,null,null,null,"",0,null,null,null,null,null,null,null,"",0,""]
[27,28,"Patricia Hämäläinen","Voimisteluseura Kieppi",null,null,null,null,null,null,null,"",0,null,null,null,null,null,null,null,"",0,""]
[28,null,null,null,null,null,null,null,null,null,null,"",0,null,null,null,null,null,null,null,"",0,""]
[29,null,null,null,null,null,null,null,null,null,null,"",0,null,null,null,null,null,null,null,"",0,""]
[30,null,null,null,null,null,null,null,null,null,null,"",0,null,null,null,null,null,null,null,"",0,""]
[31,null,null,null,null,null,null,null,null,null,null,"",0,null,null,null,null,null,null,null,"",0,""]
[32,null,null,null,null,null,null,null,null,null,null,"",0,null,null,null,null,null,null,null,"",0,""]

{"sheet":"Nojapuut","index":1,"n_rows":34,"n_cols":13,"rows_kept":34,"cut":false,"hidden":false,"merged":[[0,0,0,2]]}
["Eritasonojapuut",null,null,null,6,null,null,null,null,null,null,null,""]
[0,"Nr","Nimi","Seura","suor","D","E1","E2","E3","E4","väh","E","Yhteensä"]
[1,2,{"$f":"VLOOKUP($B3,nimilista,2,FALSE)","v":"Camilla Lindén"},{"$f":"VLOOKUP($B3,nimilista,5,FALSE)","v":"Alppilan Salamat"},null,null,null,null,null,null,null,{"$f":"IF(ISBLANK(J3),\"\",10-(SUM(G3:J3)-MIN(G3:J3)-MAX(G3:J3))/2)","v":""},{"$f":"IF(ISBLANK(J3),0,F3-K3+L3)","v":0}]
[2,3,"Jenna Smedman","Alppilan Salamat",null,null,null,null,null,null,null,{"$f":"IF(ISBLANK(J4),\"\",10-(SUM(G4:J4)-MIN(G4:J4)-MAX(G4:J4))/2)","v":""},{"$f":"IF(ISBLANK(J4),0,F4-K4+L4)","v":0}]
[3,4,"Maija Leinonen","Alppilan Salamat",null,null,null,null,null,null,null,{"$f":"IF(ISBLANK(J5),\"\",10-(SUM(G5:J5)-MIN(G5:J5)-MAX(G5:J5))/2)","v":""},{"$f":"IF(ISBLANK(J5),0,F5-K5+L5)","v":0}]
[4,5,"Mari Anttila","Alppilan Salamat",null,null,null,null,null,null,null,"",0]
[5,6,"Nea Kinnunen","Alppilan Salamat",null,4,1,1,2,2,null,8.5,12.5]
[6,7,"Noora Knuutila","Alppilan Salamat",null,null,null,null,null,null,null,"",0]
[7,8,"Tuuli Nyberg","Alppilan Salamat",null,null,null,null,null,null,null,"",0]
[8,9,"Enna Herva","Oulun Pyrintö",null,null,null,null,null,null,null,"",0]
[9,10,"Lili Granroth","Oulun Pyrintö",null,null,null,null,null,null,null,"",0]
[10,11,"Anniina Muilu","Suomen Taitovoimistelu Klubi",null,null,null,null,null,null,null,"",0]
[11,12,"Elina Ahmala","Suomen Taitovoimistelu Klubi",null,null,null,null,null,null,null,"",0]
[12,13,"Maria Pakkanen","Suomen Taitovoimistelu Klubi",null,null,null,null,null,null,null,"",0]
[13,14,"Saara Halme","Suomen Taitovoimistelu Klubi",null,null,null,null,null,null,null,"",0]
[14,15,"Viivi Immonen","Suomen Taitovoimistelu Klubi",null,null,null,null,null,null,null,"",0]
[15,16,"Adeliina Sulkanen","Tampereen Voimistelijat",null,null,null,null,null,null,null,"",0]
[16,17,"Suvi Karumo","Tampereen Voimistelijat",null,null,null,null,null,null,null,"",0]
[17,18,"Tiia Laisi","Tampereen Voimistelijat",null,null,null,null,null,null,null,"",0]
[18,19,"Veronika Vuosjoki","Tampereen Voimistelijat",null,null,null,null,null,null,null,"",0]
[19,20,"Alexandra Ivanova","Turun Pyrkivä",null,null,null,null,null,null,null,"",0]
[20,21,"Victoria Jakaus","Turun Pyrkivä",null,null,null,null,null,null,null,"",0]
[21,22,"Julia Jäkälä","Turun Urheiluliitto",null,null,null,null,null,null,null,"",0]
[22,23,"Maria Åman","Turun Urheiluliitto",null,null,null,null,null,null,null,"",0]
[23,24,"Miina Kokkonen","Turun Urheiluliitto",null,null,null,null,null,null,null,"",0]
[24,25,"Anniina Rautiainen","Voimisteluseura Keski-Uusimaa",null,null,null,null,null,null,null,"",0]
[25,26,"Maisa Anttilainen","Voimisteluseura Keski-Uusimaa",null,null,null,null,null,null,null,"",0]
[26,27,"Julia Darlington","Voimisteluseura Kieppi",null,null,null,null,null,null,null,"",0]
[27,28,"Patricia Hämäläinen","Voimisteluseura Kieppi",null,null,null,null,null,null,null,"",0]
[28,null,null,null,null,null,null,null,null,null,null,"",0]
[29,null,null,null,null,null,null,null,null,null,null,"",0]
[30,null,null,null,null,null,null,null,null,null,null,"",0]
[31,null,null,null,null,null,null,null,null,null,null,"",0]
[32,null,null,null,null,null,null,null,null,null,null,"",0]

{"sheet":"Puomi","index":2,"n_rows":34,"n_cols":13,"rows_kept":34,"cut":false,"hidden":false,"merged":[[0,0,0,2]]}
["Puomi",null,null,null,null,null,null,null,null,null,null,null,""]
[0,"Nr","Nimi","Seura","suor","D","E1","E2","E3","E4","väh","E","Yhteensä"]
[1,2,{"$f":"VLOOKUP($B3,nimilista,2,FALSE)","v":"Camilla Lindén"},{"$f":"VLOOKUP($B3,nimilista,5,FALSE)","v":"Alppilan Salamat"},null,null,null,null,null,null,null,{"$f":"IF(ISBLANK(J3),\"\",10-(SUM(G3:J3)-MIN(G3:J3)-MAX(G3:J3))/2)","v":""},{"$f":"IF(ISBLANK(J3),0,F3-K3+L3)","v":0}]
[2,3,"Jenna Smedman","Alppilan Salamat",null,null,null,null,null,null,null,{"$f":"IF(ISBLANK(J4),\"\",10-(SUM(G4:J4)-MIN(G4:J4)-MAX(G4:J4))/2)","v":""},{"$f":"IF(ISBLANK(J4),0,F4-K4+L4)","v":0}]
[3,4,"Maija Leinonen","Alppilan Salamat",null,null,null,null,null,null,null,{"$f":"IF(ISBLANK(J5),\"\",10-(SUM(G5:J5)-MIN(G5:J5)-MAX(G5:J5))/2)","v":""},{"$f":"IF(ISBLANK(J5),0,F5-K5+L5)","v":0}]
[4,5,"Mari Anttila","Alppilan Salamat",null,null,null,null,null,null,null,"",0]
[5,6,"Nea Kinnunen","Alppilan Salamat",null,null,null,null,null,null,null,"",0]
[6,7,"Noora Knuutila","Alppilan Salamat",null,null,null,null,null,null,null,"",0]
[7,8,"Tuuli Nyberg","Alppilan Salamat",null,1,1,1,1,1,1,9,9]
[8,9,"Enna Herva","Oulun Pyrintö",null,null,null,null,null,null,null,"",0]
[9,10,"Lili Granroth","Oulun Pyrintö",null,null,null,null,null,null,null,"",0]
[10,11,"Anniina Muilu","Suomen Taitovoimistelu Klubi",null,null,null,null,null,null,null,"",0]
[11,12,"Elina Ahmala","Suomen Taitovoimistelu Klubi",null,null,null,null,null,null,null,"",0]
[12,13,"Maria Pakkanen","Suomen Taitovoimistelu Klubi",null,null,null,null,null,null,null,"",0]
[13,14,"Saara Halme","Suomen Taitovoimistelu Klubi",null,null,null,null,null,null,null,"",0]
[14,15,"Viivi Immonen","Suomen Taitovoimistelu Klubi",null,null,null,null,null,null,null,"",0]
[15,16,"Adeliina Sulkanen","Tampereen Voimistelijat",null,null,null,null,null,null,null,"",0]
[16,17,"Suvi Karumo","Tampereen Voimistelijat",null,null,null,null,null,null,null,"",0]
[17,18,"Tiia Laisi","Tampereen Voimistelijat",null,null,null,null,null,null,null,"",0]
[18,19,"Veronika Vuosjoki","Tampereen Voimistelijat",null,null,null,null,null,null,null,"",0]
[19,20,"Alexandra Ivanova","Turun Pyrkivä",null,null,null,null,null,null,null,"",0]
[20,21,"Victoria Jakaus","Turun Pyrkivä",null,null,null,null,null,null,null,"",0]
[21,22,"Julia Jäkälä","Turun Urheiluliitto",null,null,null,null,null,null,null,"",0]
[22,23,"Maria Åman","Turun Urheiluliitto",null,null,null,null,null,null,null,"",0]
[23,24,"Miina Kokkonen","Turun Urheiluliitto",null,null,null,null,null,null,null,"",0]
[24,25,"Anniina Rautiainen","Voimisteluseura Keski-Uusimaa",null,null,null,null,null,null,null,"",0]
[25,26,"Maisa Anttilainen","Voimisteluseura Keski-Uusimaa",null,null,null,null,null,null,null,"",0]
[26,27,"Julia Darlington","Voimisteluseura Kieppi",null,null,null,null,null,null,null,"",0]
[27,28,"Patricia Hämäläinen","Voimisteluseura Kieppi",null,null,null,null,null,null,null,"",0]
[28,null,null,null,null,null,null,null,null,null,null,""]
[29,null,null,null,null,null,null,null,null,null,null,""]
[30,null,null,null,null,null,null,null,null,null,null,""]
[31,null,null,null,null,null,null,null,null,null,null,""]
[32,null,null,null,null,null,null,null,null,null,null,""]

{"sheet":"Permanto","index":3,"n_rows":34,"n_cols":13,"rows_kept":34,"cut":false,"hidden":false,"merged":[[0,0,0,2]]}
["Permanto",null,null,null,null,null,null,null,null,null,null,null,""]
[0,"Nr","Nimi","Seura","suor","D","E1","E2","E3","E4","väh","E","Yhteensä"]
[1,2,{"$f":"VLOOKUP($B3,nimilista,2,FALSE)","v":"Camilla Lindén"},{"$f":"VLOOKUP($B3,nimilista,5,FALSE)","v":"Alppilan Salamat"}," ",null,null,null,null,null,null,{"$f":"IF(ISBLANK(J3),\"\",10-(SUM(G3:J3)-MIN(G3:J3)-MAX(G3:J3))/2)","v":""},{"$f":"IF(ISBLANK(J3),0,F3-K3+L3)","v":0}]
[2,3,"Jenna Smedman","Alppilan Salamat"," ",null,null,null,null,null,null,{"$f":"IF(ISBLANK(J4),\"\",10-(SUM(G4:J4)-MIN(G4:J4)-MAX(G4:J4))/2)","v":""},{"$f":"IF(ISBLANK(J4),0,F4-K4+L4)","v":0}]
[3,4,"Maija Leinonen","Alppilan Salamat"," ",null,null,null,null,null,null,{"$f":"IF(ISBLANK(J5),\"\",10-(SUM(G5:J5)-MIN(G5:J5)-MAX(G5:J5))/2)","v":""},{"$f":"IF(ISBLANK(J5),0,F5-K5+L5)","v":0}]
[4,5,"Mari Anttila","Alppilan Salamat"," ",null,null,null,null,null,null,"",0]
[5,6,"Nea Kinnunen","Alppilan Salamat"," ",null,null,null,null,null,null,"",0]
[6,7,"Noora Knuutila","Alppilan Salamat"," ",null,null,null,null,null,null,"",0]
[7,8,"Tuuli Nyberg","Alppilan Salamat"," ",null,null,null,null,null,null,"",0]
[8,9,"Enna Herva","Oulun Pyrintö"," ",null,null,null,null,null,null,"",0]
[9,10,"Lili Granroth","Oulun Pyrintö"," ",null,null,null,null,null,null,"",0]
[10,11,"Anniina Muilu","Suomen Taitovoimistelu Klubi"," ",null,null,null,null,null,null,"",0]
[11,12,"Elina Ahmala","Suomen Taitovoimistelu Klubi"," ",5,1,1,1,1,1,9,13]
[12,13,"Maria Pakkanen","Suomen Taitovoimistelu Klubi"," ",null,null,null,null,null,null,"",0]
[13,14,"Saara Halme","Suomen Taitovoimistelu Klubi"," ",null,null,null,null,null,null,"",0]
[14,15,"Viivi Immonen","Suomen Taitovoimistelu Klubi"," ",null,null,null,null,null,null,"",0]
[15,16,"Adeliina Sulkanen","Tampereen Voimistelijat"," ",null,null,null,null,null,null,"",0]
[16,17,"Suvi Karumo","Tampereen Voimistelijat"," ",null,null,null,null,null,null,"",0]
[17,18,"Tiia Laisi","Tampereen Voimistelijat"," ",null,null,null,null,null,null,"",0]
[18,19,"Veronika Vuosjoki","Tampereen Voimistelijat"," ",null,null,null,null,null,null,"",0]
[19,20,"Alexandra Ivanova","Turun Pyrkivä"," ",null,null,null,null,null,null,"",0]
[20,21,"Victoria Jakaus","Turun Pyrkivä"," ",null,null,null,null,null,null,"",0]
[21,22,"Julia Jäkälä","Turun Urheiluliitto"," ",null,null,null,null,null,null,"",0]
[22,23,"Maria Åman","Turun Urheiluliitto"," ",null,null,null,null,null,null,"",0]
[23,24,"Miina Kokkonen","Turun Urheiluliitto"," ",null,null,null,null,null,null,"",0]
[24,25,"Anniina Rautiainen","Voimisteluseura Keski-Uusimaa"," ",null,null,null,null,null,null,"",0]
[25,26,"Maisa Anttilainen","Voimisteluseura Keski-Uusimaa"," ",null,null,null,null,null,null,"",0]
[26,27,"Julia Darlington","Voimisteluseura Kieppi"," ",null,null,null,null,null,null,"",0]
[27,28,"Patricia Hämäläinen","Voimisteluseura Kieppi"," ",null,null,null,null,null,null,"",0]
[28]
[29]
[30]
[31]
[32]

{"sheet":"Rekki","index":4,"n_rows":34,"n_cols":13,"rows_kept":34,"cut":false,"hidden":false,"merged":[[0,0,0,2]]}
["Rekki",null,null,null,3,null,null,null,null,null,null,null,""]
[0,"Nr","Nimi","Seura","suor","D","E1","E2","E3","E4","väh","E","Yhteensä"]
[1,2,{"$f":"VLOOKUP($B3,nimilista,2,FALSE)","v":"Camilla Lindén"},{"$f":"VLOOKUP($B3,nimilista,5,FALSE)","v":"Alppilan Salamat"},null,null,null,null,null,null,null,{"$f":"IF(ISBLANK(J3),\"\",10-(SUM(G3:J3)-MIN(G3:J3)-MAX(G3:J3))/2)","v":""},{"$f":"IF(ISBLANK(J3),0,F3-K3+L3)","v":0}]
[2,3,"Jenna Smedman","Alppilan Salamat",null,null,null,null,null,null,null,{"$f":"IF(ISBLANK(J4),\"\",10-(SUM(G4:J4)-MIN(G4:J4)-MAX(G4:J4))/2)","v":""},{"$f":"IF(ISBLANK(J4),0,F4-K4+L4)","v":0}]
[3,4,"Maija Leinonen","Alppilan Salamat",null,null,null,null,null,null,null,{"$f":"IF(ISBLANK(J5),\"\",10-(SUM(G5:J5)-MIN(G5:J5)-MAX(G5:J5))/2)","v":""},{"$f":"IF(ISBLANK(J5),0,F5-K5+L5)","v":0}]
[4,5,"Mari Anttila","Alppilan Salamat",null,null,null,null,null,null,null,"",0]
[5,6,"Nea Kinnunen","Alppilan Salamat",null,null,null,null,null,null,null,"",0]
[6,7,"Noora Knuutila","Alppilan Salamat",null,null,null,null,null,null,null,"",0]
[7,8,"Tuuli Nyberg","Alppilan Salamat",null,null,null,null,null,null,null,"",0]
[8,9,"Enna Herva","Oulun Pyrintö",null,null,null,null,null,null,null,"",0]
[9,10,"Lili Granroth","Oulun Pyrintö",null,null,null,null,null,null,null,"",0]
[10,11,"Anniina Muilu","Suomen Taitovoimistelu Klubi",null,null,null,null,null,null,null,"",0]
[11,12,"Elina Ahmala","Suomen Taitovoimistelu Klubi",null,null,null,null,null,null,null,"",0]
[12,13,"Maria Pakkanen","Suomen Taitovoimistelu Klubi",null,null,null,null,null,null,null,"",0]
[13,14,"Saara Halme","Suomen Taitovoimistelu Klubi",null,null,null,null,null,null,null,"",0]
[14,15,"Viivi Immonen","Suomen Taitovoimistelu Klubi",null,null,null,null,null,null,null,"",0]
[15,16,"Adeliina Sulkanen","Tampereen Voimistelijat",null,null,null,null,null,null,null,"",0]
[16,17,"Suvi Karumo","Tampereen Voimistelijat",null,null,null,null,null,null,null,"",0]
[17,18,"Tiia Laisi","Tampereen Voimistelijat",null,null,null,null,null,null,null,"",0]
[18,19,"Veronika Vuosjoki","Tampereen Voimistelijat",null,null,null,null,null,null,null,"",0]
[19,20,"Alexandra Ivanova","Turun Pyrkivä",null,null,null,null,null,null,null,"",0]
[20,21,"Victoria Jakaus","Turun Pyrkivä",null,null,null,null,null,null,null,"",0]
[21,22,"Julia Jäkälä","Turun Urheiluliitto",null,null,null,null,null,null,null,"",0]
[22,23,"Maria Åman","Turun Urheiluliitto",null,null,null,null,null,null,null,"",0]
[23,24,"Miina Kokkonen","Turun Urheiluliitto",null,null,null,null,null,null,null,"",0]
[24,25,"Anniina Rautiainen","Voimisteluseura Keski-Uusimaa",null,null,null,null,null,null,null,"",0]
[25,26,"Maisa Anttilainen","Voimisteluseura Keski-Uusimaa",null,null,null,null,null,null,null,"",0]
[26,27,"Julia Darlington","Voimisteluseura Kieppi",null,null,null,null,null,null,null,"",0]
[27,28,"Patricia Hämäläinen","Voimisteluseura Kieppi",null,null,null,null,null,null,null,"",0]
[28,null,null,null,null,null,null,null,null,null,null,"",0]
[29,null,null,null,null,null,null,null,null,null,null,"",0]
[30,null,null,null,null,null,null,null,null,null,null,"",0]
[31,null,null,null,null,null,null,null,null,null,null,"",0]
[32,null,null,null,null,null,null,null,null,null,null,"",0]

{"sheet":"Hevonen","index":5,"n_rows":34,"n_cols":13,"rows_kept":34,"cut":false,"hidden":false,"merged":[[0,0,0,2]]}
["Hevonen",null,null,null,3,null,null,null,null,null,null,null,""]
[0,"Nr","Nimi","Seura","suor","D","E1","E2","E3","E4","väh","E","Yhteensä"]
[1,2,{"$f":"VLOOKUP($B3,nimilista,2,FALSE)","v":"Camilla Lindén"},{"$f":"VLOOKUP($B3,nimilista,5,FALSE)","v":"Alppilan Salamat"},null,null,null,null,null,null,null,{"$f":"IF(ISBLANK(J3),\"\",10-(SUM(G3:J3)-MIN(G3:J3)-MAX(G3:J3))/2)","v":""},{"$f":"IF(ISBLANK(J3),0,F3-K3+L3)","v":0}]
[2,3,"Jenna Smedman","Alppilan Salamat",null,null,null,null,null,null,null,{"$f":"IF(ISBLANK(J4),\"\",10-(SUM(G4:J4)-MIN(G4:J4)-MAX(G4:J4))/2)","v":""},{"$f":"IF(ISBLANK(J4),0,F4-K4+L4)","v":0}]
[3,4,"Maija Leinonen","Alppilan Salamat",null,null,null,null,null,null,null,{"$f":"IF(ISBLANK(J5),\"\",10-(SUM(G5:J5)-MIN(G5:J5)-MAX(G5:J5))/2)","v":""},{"$f":"IF(ISBLANK(J5),0,F5-K5+L5)","v":0}]
[4,5,"Mari Anttila","Alppilan Salamat",null,null,null,null,null,null,null,"",0]
[5,6,"Nea Kinnunen","Alppilan Salamat",null,null,null,null,null,null,null,"",0]
[6,7,"Noora Knuutila","Alppilan Salamat",null,null,null,null,null,null,null,"",0]
[7,8,"Tuuli Nyberg","Alppilan Salamat",null,null,null,null,null,null,null,"",0]
[8,9,"Enna Herva","Oulun Pyrintö",null,null,null,null,null,null,null,"",0]
[9,10,"Lili Granroth","Oulun Pyrintö",null,null,null,null,null,null,null,"",0]
[10,11,"Anniina Muilu","Suomen Taitovoimistelu Klubi",null,null,null,null,null,null,null,"",0]
[11,12,"Elina Ahmala","Suomen Taitovoimistelu Klubi",null,null,null,null,null,null,null,"",0]
[12,13,"Maria Pakkanen","Suomen Taitovoimistelu Klubi",null,null,null,null,null,null,null,"",0]
[13,14,"Saara Halme","Suomen Taitovoimistelu Klubi",null,null,null,null,null,null,null,"",0]
[14,15,"Viivi Immonen","Suomen Taitovoimistelu Klubi",null,null,null,null,null,null,null,"",0]
[15,16,"Adeliina Sulkanen","Tampereen Voimistelijat",null,null,null,null,null,null,null,"",0]
[16,17,"Suvi Karumo","Tampereen Voimistelijat",null,null,null,null,null,null,null,"",0]
[17,18,"Tiia Laisi","Tampereen Voimistelijat",null,null,null,null,null,null,null,"",0]
[18,19,"Veronika Vuosjoki","Tampereen Voimistelijat",null,null,null,null,null,null,null,"",0]
[19,20,"Alexandra Ivanova","Turun Pyrkivä",null,null,null,null,null,null,null,"",0]
[20,21,"Victoria Jakaus","Turun Pyrkivä",null,null,null,null,null,null,null,"",0]
[21,22,"Julia Jäkälä","Turun Urheiluliitto",null,null,null,null,null,null,null,"",0]
[22,23,"Maria Åman","Turun Urheiluliitto",null,null,null,null,null,null,null,"",0]
[23,24,"Miina Kokkonen","Turun Urheiluliitto",null,null,null,null,null,null,null,"",0]
[24,25,"Anniina Rautiainen","Voimisteluseura Keski-Uusimaa",null,null,null,null,null,null,null,"",0]
[25,26,"Maisa Anttilainen","Voimisteluseura Keski-Uusimaa",null,null,null,null,null,null,null,"",0]
[26,27,"Julia Darlington","Voimisteluseura Kieppi",null,null,null,null,null,null,null,"",0]
[27,28,"Patricia Hämäläinen","Voimisteluseura Kieppi",null,null,null,null,null,null,null,"",0]
[28]
[29]
[30]
[31]
[32]

{"sheet":"Tulokset","index":6,"n_rows":36,"n_cols":15,"rows_kept":36,"cut":false,"hidden":false,"merged":[[2,0,2,2],[1,4,1,5],[0,4,0,5],[1,6,1,8],[1,11,1,12],[0,6,0,8],[0,11,0,12]]}
[{"$f":"teline1","v":3},{"$f":"kuka1","v":0},{"$f":"IF($B1<=0,\"\",VLOOKUP(B1,B4:M35,2,FALSE))","v":""},null,{"$f":"IF($B1<=0,\"\",VLOOKUP($B1,$B$5:$M$36,($A1-1)*2+4,FALSE))","v":""},null,{"$f":"IF($B1<=0,\"\",VLOOKUP($B1,$B$5:$M$36,($A1-1)*2+5,FALSE))","v":""},null,null,null,null,{"$f":"IF($B1<=0,\"\",VLOOKUP($B1,$B$5:$M$36,12,FALSE))","v":""}]
[{"$f":"teline2","v":4},{"$f":"kuka2","v":0},{"$f":"IF($B2<=0,\"\",VLOOKUP(B2,B5:M36,2,FALSE))","v":""},null,{"$f":"IF($B2<=0,\"\",VLOOKUP($B2,$B$5:$M$36,($A2-1)*2+4,FALSE))","v":""},null,{"$f":"IF($B2<=0,\"\",VLOOKUP($B2,$B$5:$M$36,($A2-1)*2+5,FALSE))","v":""},null,null,null,null,{"$f":"IF($B2<=0,\"\",VLOOKUP($B2,$B$5:$M$31,12,FALSE))","v":""}]
["Miesten 6-ottelu",null,null,null,null,{"$f":"Permanto!$M$1","v":""},null,{"$f":"Hevonen!$M$1","v":""},null,{"$f":"Puomi!$M$1","v":""},null,{"$f":"Rekki!$M$1","v":""},null,"ero"]
[0,"Nr","Nimi","Seura","D","yht","D","yht","D","yht","D","yht","Yhteensä","kärkeen"]
[{"$f":"A4+1","v":1},{"$f":"Tulostus!B5","v":12},{"$f":"Tulostus!C5","v":"Elina Ahmala"},{"$f":"VLOOKUP(B5,nimilista,6,FALSE)","v":"STVK"},{"$f":"Tulostus!E5","v":0},{"$f":"Tulostus!F5","v":0},{"$f":"Tulostus!G5","v":0},{"$f":"Tulostus!H5","v":0},{"$f":"Tulostus!I5","v":0},{"$f":"Tulostus!J5","v":0},{"$f":"Tulostus!K5","v":5},{"$f":"Tulostus!L5","v":13},{"$f":"Tulostus!M5","v":13},{"$f":"M5-$M$5","v":0}]
[2,{"$f":"Tulostus!B6","v":6},{"$f":"Tulostus!C6","v":"Nea Kinnunen"},"AS",{"$f":"Tulostus!E6","v":0},{"$f":"Tulostus!F6","v":0},{"$f":"Tulostus!G6","v":4},{"$f":"Tulostus!H6","v":12.5},{"$f":"Tulostus!I6","v":0},{"$f":"Tulostus!J6","v":0},{"$f":"Tulostus!K6","v":0},{"$f":"Tulostus!L6","v":0},{"$f":"Tulostus!M6","v":12.5},-0.5,{"$f":"IF((M6=M5),IF((M6=0),\"\",\"tie\"),\"\")","v":""}]
[3,{"$f":"Tulostus!B7","v":4},{"$f":"Tulostus!C7","v":"Maija Leinonen"},"AS",{"$f":"Tulostus!E7","v":2},{"$f":"Tulostus!F7","v":10},{"$f":"Tulostus!G7","v":0},{"$f":"Tulostus!H7","v":0},{"$f":"Tulostus!I7","v":0},{"$f":"Tulostus!J7","v":0},{"$f":"Tulostus!K7","v":0},{"$f":"Tulostus!L7","v":0},{"$f":"Tulostus!M7","v":10},-3,""]
[4,{"$f":"Tulostus!B8","v":8},{"$f":"Tulostus!C8","v":"Tuuli Nyberg"},"AS",{"$f":"Tulostus!E8","v":0},{"$f":"Tulostus!F8","v":0},{"$f":"Tulostus!G8","v":0},{"$f":"Tulostus!H8","v":0},{"$f":"Tulostus!I8","v":1},{"$f":"Tulostus!J8","v":9},{"$f":"Tulostus!K8","v":0},{"$f":"Tulostus!L8","v":0},{"$f":"Tulostus!M8","v":9},-4,""]
[5,{"$f":"Tulostus!B9","v":2},{"$f":"Tulostus!C9","v":"Camilla Lindén"},"AS",{"$f":"Tulostus!E9","v":0},{"$f":"Tulostus!F9","v":0},{"$f":"Tulostus!G9","v":0},{"$f":"Tulostus!H9","v":0},{"$f":"Tulostus!I9","v":0},{"$f":"Tulostus!J9","v":0},{"$f":"Tulostus!K9","v":0},{"$f":"Tulostus!L9","v":0},{"$f":"Tulostus!M9","v":0},-13,""]
[6,{"$f":"Tulostus!B10","v":3},{"$f":"Tulostus!C10","v":"Jenna Smedman"},"AS",{"$f":"Tulostus!E10","v":0},{"$f":"Tulostus!F10","v":0},{"$f":"Tulostus!G10","v":0},{"$f":"Tulostus!H10","v":0},{"$f":"Tulostus!I10","v":0},{"$f":"Tulostus!J10","v":0},{"$f":"Tulostus!K10","v":0},{"$f":"Tulostus!L10","v":0},{"$f":"Tulostus!M10","v":0},-13,""]
[7,{"$f":"Tulostus!B11","v":5},{"$f":"Tulostus!C11","v":"Mari Anttila"},"AS",{"$f":"Tulostus!E11","v":0},{"$f":"Tulostus!F11","v":0},{"$f":"Tulostus!G11","v":0},{"$f":"Tulostus!H11","v":0},{"$f":"Tulostus!I11","v":0},{"$f":"Tulostus!J11","v":0},{"$f":"Tulostus!K11","v":0},{"$f":"Tulostus!L11","v":0},{"$f":"Tulostus!M11","v":0},-13,""]
[8,{"$f":"Tulostus!B12","v":7},{"$f":"Tulostus!C12","v":"Noora Knuutila"},"AS",{"$f":"Tulostus!E12","v":0},{"$f":"Tulostus!F12","v":0},{"$f":"Tulostus!G12","v":0},{"$f":"Tulostus!H12","v":0},{"$f":"Tulostus!I12","v":0},{"$f":"Tulostus!J12","v":0},{"$f":"Tulostus!K12","v":0},{"$f":"Tulostus!L12","v":0},{"$f":"Tulostus!M12","v":0},-13,""]
[9,{"$f":"Tulostus!B13","v":9},{"$f":"Tulostus!C13","v":"Enna Herva"},"OP",{"$f":"Tulostus!E13","v":0},{"$f":"Tulostus!F13","v":0},{"$f":"Tulostus!G13","v":0},{"$f":"Tulostus!H13","v":0},{"$f":"Tulostus!I13","v":0},{"$f":"Tulostus!J13","v":0},{"$f":"Tulostus!K13","v":0},{"$f":"Tulostus!L13","v":0},{"$f":"Tulostus!M13","v":0},-13,""]
[10,{"$f":"Tulostus!B14","v":10},{"$f":"Tulostus!C14","v":"Lili Granroth"},"OP",{"$f":"Tulostus!E14","v":0},{"$f":"Tulostus!F14","v":0},{"$f":"Tulostus!G14","v":0},{"$f":"Tulostus!H14","v":0},{"$f":"Tulostus!I14","v":0},{"$f":"Tulostus!J14","v":0},{"$f":"Tulostus!K14","v":0},{"$f":"Tulostus!L14","v":0},{"$f":"Tulostus!M14","v":0},-13,""]
[11,{"$f":"Tulostus!B15","v":11},{"$f":"Tulostus!C15","v":"Anniina Muilu"},"STVK",{"$f":"Tulostus!E15","v":0},{"$f":"Tulostus!F15","v":0},{"$f":"Tulostus!G15","v":0},{"$f":"Tulostus!H15","v":0},{"$f":"Tulostus!I15","v":0},{"$f":"Tulostus!J15","v":0},{"$f":"Tulostus!K15","v":0},{"$f":"Tulostus!L15","v":0},{"$f":"Tulostus!M15","v":0},-13,""]
[12,{"$f":"Tulostus!B16","v":13},{"$f":"Tulostus!C16","v":"Maria Pakkanen"},"STVK",{"$f":"Tulostus!E16","v":0},{"$f":"Tulostus!F16","v":0},{"$f":"Tulostus!G16","v":0},{"$f":"Tulostus!H16","v":0},{"$f":"Tulostus!I16","v":0},{"$f":"Tulostus!J16","v":0},{"$f":"Tulostus!K16","v":0},{"$f":"Tulostus!L16","v":0},{"$f":"Tulostus!M16","v":0},-13,""]
[13,{"$f":"Tulostus!B17","v":14},{"$f":"Tulostus!C17","v":"Saara Halme"},"STVK",{"$f":"Tulostus!E17","v":0},{"$f":"Tulostus!F17","v":0},{"$f":"Tulostus!G17","v":0},{"$f":"Tulostus!H17","v":0},{"$f":"Tulostus!I17","v":0},{"$f":"Tulostus!J17","v":0},{"$f":"Tulostus!K17","v":0},{"$f":"Tulostus!L17","v":0},{"$f":"Tulostus!M17","v":0},-13,""]
[14,{"$f":"Tulostus!B18","v":15},{"$f":"Tulostus!C18","v":"Viivi Immonen"},"STVK",{"$f":"Tulostus!E18","v":0},{"$f":"Tulostus!F18","v":0},{"$f":"Tulostus!G18","v":0},{"$f":"Tulostus!H18","v":0},{"$f":"Tulostus!I18","v":0},{"$f":"Tulostus!J18","v":0},{"$f":"Tulostus!K18","v":0},{"$f":"Tulostus!L18","v":0},{"$f":"Tulostus!M18","v":0},-13,""]
[15,{"$f":"Tulostus!B19","v":16},{"$f":"Tulostus!C19","v":"Adeliina Sulkanen"},"TV",{"$f":"Tulostus!E19","v":0},{"$f":"Tulostus!F19","v":0},{"$f":"Tulostus!G19","v":0},{"$f":"Tulostus!H19","v":0},{"$f":"Tulostus!I19","v":0},{"$f":"Tulostus!J19","v":0},{"$f":"Tulostus!K19","v":0},{"$f":"Tulostus!L19","v":0},{"$f":"Tulostus!M19","v":0},-13,""]
[16,{"$f":"Tulostus!B20","v":17},{"$f":"Tulostus!C20","v":"Suvi Karumo"},"TV",{"$f":"Tulostus!E20","v":0},{"$f":"Tulostus!F20","v":0},{"$f":"Tulostus!G20","v":0},{"$f":"Tulostus!H20","v":0},{"$f":"Tulostus!I20","v":0},{"$f":"Tulostus!J20","v":0},{"$f":"Tulostus!K20","v":0},{"$f":"Tulostus!L20","v":0},{"$f":"Tulostus!M20","v":0},-13,""]
[17,{"$f":"Tulostus!B21","v":18},{"$f":"Tulostus!C21","v":"Tiia Laisi"},"TV",{"$f":"Tulostus!E21","v":0},{"$f":"Tulostus!F21","v":0},{"$f":"Tulostus!G21","v":0},{"$f":"Tulostus!H21","v":0},{"$f":"Tulostus!I21","v":0},{"$f":"Tulostus!J21","v":0},{"$f":"Tulostus!K21","v":0},{"$f":"Tulostus!L21","v":0},{"$f":"Tulostus!M21","v":0},-13,""]
[18,{"$f":"Tulostus!B22","v":19},{"$f":"Tulostus!C22","v":"Veronika Vuosjoki"},"TV",{"$f":"Tulostus!E22","v":0},{"$f":"Tulostus!F22","v":0},{"$f":"Tulostus!G22","v":0},{"$f":"Tulostus!H22","v":0},{"$f":"Tulostus!I22","v":0},{"$f":"Tulostus!J22","v":0},{"$f":"Tulostus!K22","v":0},{"$f":"Tulostus!L22","v":0},{"$f":"Tulostus!M22","v":0},-13,""]
[19,{"$f":"Tulostus!B23","v":20},{"$f":"Tulostus!C23","v":"Alexandra Ivanova"},"Tupy",{"$f":"Tulostus!E23","v":0},{"$f":"Tulostus!F23","v":0},{"$f":"Tulostus!G23","v":0},{"$f":"Tulostus!H23","v":0},{"$f":"Tulostus!I23","v":0},{"$f":"Tulostus!J23","v":0},{"$f":"Tulostus!K23","v":0},{"$f":"Tulostus!L23","v":0},{"$f":"Tulostus!M23","v":0},-13,""]
[20,{"$f":"Tulostus!B24","v":21},{"$f":"Tulostus!C24","v":"Victoria Jakaus"},"Tupy",{"$f":"Tulostus!E24","v":0},{"$f":"Tulostus!F24","v":0},{"$f":"Tulostus!G24","v":0},{"$f":"Tulostus!H24","v":0},{"$f":"Tulostus!I24","v":0},{"$f":"Tulostus!J24","v":0},{"$f":"Tulostus!K24","v":0},{"$f":"Tulostus!L24","v":0},{"$f":"Tulostus!M24","v":0},-13,""]
[21,{"$f":"Tulostus!B25","v":22},{"$f":"Tulostus!C25","v":"Julia Jäkälä"},"TuUL",{"$f":"Tulostus!E25","v":0},{"$f":"Tulostus!F25","v":0},{"$f":"Tulostus!G25","v":0},{"$f":"Tulostus!H25","v":0},{"$f":"Tulostus!I25","v":0},{"$f":"Tulostus!J25","v":0},{"$f":"Tulostus!K25","v":0},{"$f":"Tulostus!L25","v":0},{"$f":"Tulostus!M25","v":0},-13,""]
[22,{"$f":"Tulostus!B26","v":23},{"$f":"Tulostus!C26","v":"Maria Åman"},"TuUL",{"$f":"Tulostus!E26","v":0},{"$f":"Tulostus!F26","v":0},{"$f":"Tulostus!G26","v":0},{"$f":"Tulostus!H26","v":0},{"$f":"Tulostus!I26","v":0},{"$f":"Tulostus!J26","v":0},{"$f":"Tulostus!K26","v":0},{"$f":"Tulostus!L26","v":0},{"$f":"Tulostus!M26","v":0},-13,""]
[23,{"$f":"Tulostus!B27","v":24},{"$f":"Tulostus!C27","v":"Miina Kokkonen"},"TuUL",{"$f":"Tulostus!E27","v":0},{"$f":"Tulostus!F27","v":0},{"$f":"Tulostus!G27","v":0},{"$f":"Tulostus!H27","v":0},{"$f":"Tulostus!I27","v":0},{"$f":"Tulostus!J27","v":0},{"$f":"Tulostus!K27","v":0},{"$f":"Tulostus!L27","v":0},{"$f":"Tulostus!M27","v":0},-13,""]
[24,{"$f":"Tulostus!B28","v":25},{"$f":"Tulostus!C28","v":"Anniina Rautiainen"},"VSK-U",{"$f":"Tulostus!E28","v":0},{"$f":"Tulostus!F28","v":0},{"$f":"Tulostus!G28","v":0},{"$f":"Tulostus!H28","v":0},{"$f":"Tulostus!I28","v":0},{"$f":"Tulostus!J28","v":0},{"$f":"Tulostus!K28","v":0},{"$f":"Tulostus!L28","v":0},{"$f":"Tulostus!M28","v":0},-13,""]
[25,{"$f":"Tulostus!B29","v":26},{"$f":"Tulostus!C29","v":"Maisa Anttilainen"},"VSK-U",{"$f":"Tulostus!E29","v":0},{"$f":"Tulostus!F29","v":0},{"$f":"Tulostus!G29","v":0},{"$f":"Tulostus!H29","v":0},{"$f":"Tulostus!I29","v":0},{"$f":"Tulostus!J29","v":0},{"$f":"Tulostus!K29","v":0},{"$f":"Tulostus!L29","v":0},{"$f":"Tulostus!M29","v":0},-13,""]
[26,{"$f":"Tulostus!B30","v":27},{"$f":"Tulostus!C30","v":"Julia Darlington"},"Kieppi",{"$f":"Tulostus!E30","v":0},{"$f":"Tulostus!F30","v":0},{"$f":"Tulostus!G30","v":0},{"$f":"Tulostus!H30","v":0},{"$f":"Tulostus!I30","v":0},{"$f":"Tulostus!J30","v":0},{"$f":"Tulostus!K30","v":0},{"$f":"Tulostus!L30","v":0},{"$f":"Tulostus!M30","v":0},-13,""]
[27,{"$f":"Tulostus!B31","v":28},{"$f":"Tulostus!C31","v":"Patricia Hämäläinen"},"Kieppi",{"$f":"Tulostus!E31","v":0},{"$f":"Tulostus!F31","v":0},{"$f":"Tulostus!G31","v":0},{"$f":"Tulostus!H31","v":0},{"$f":"Tulostus!I31","v":0},{"$f":"Tulostus!J31","v":0},{"$f":"Tulostus!K31","v":0},{"$f":"Tulostus!L31","v":0},{"$f":"Tulostus!M31","v":0},-13,""]
[28,null,null,null,null,null,null,null,null,null,null,null,null,-13,""]
[29,null,null,null,null,null,null,null,null,null,null,null,null,null,""]
[30,null,null,null,null,null,null,null,null,null,null,null,null,{"$f":"M34-$M$5","v":-13},""]
[31,null,null,null,null,null,null,null,null,null,null,null,null,null,""]
[32,null,null,null,null,null,null,null,null,null,null,null,null,{"$f":"M36-$M$5","v":-13},""]

{"sheet":"FinaaliHE","index":7,"n_rows":40,"n_cols":15,"rows_kept":40,"cut":false,"hidden":false,"merged":[[0,10,0,11],[0,12,0,13],[12,12,12,13],[13,0,13,2],[0,6,0,7],[1,0,1,2],[12,6,12,7],[12,10,12,11],[0,4,0,5],[12,4,12,5]]}
[1,{"$f":"kuka1","v":0},{"$f":"IF($B1<=0,\"\",VLOOKUP($B1,hyppy,C$40,FALSE))","v":""},null,{"$f":"IF($B1<=0,\"\",VLOOKUP($B1,Hyppy!$B$3:$M$43,E$40,FALSE))","v":""},{"$f":"IF($B1<=0,\"\",VLOOKUP($B1,Permanto!$B$3:$M$43,F$40,FALSE))","v":""},{"$f":"IF($B1<=0,\"\",VLOOKUP($B1,hyppy,G$40,FALSE))","v":""},{"$f":"IF($B1<=0,\"\",VLOOKUP($B1,hyppy,H$40,FALSE))","v":""},{"$f":"IF($B1<=0,\"\",VLOOKUP($B1,hyppy,I$40,FALSE))","v":""},null,{"$f":"IF($B1<=0,\"\",VLOOKUP($B1,hyppy,K$40,FALSE))","v":""},{"$f":"IF($B1<=0,\"\",VLOOKUP($B1,hyppy,L$40,FALSE))","v":""},{"$f":"IF($B1<=0,\"\",VLOOKUP($B1,hyppy,M$40,FALSE))","v":""},{"$f":"IF($B1<=0,\"\",VLOOKUP($B1,hyppy,N$40,FALSE))","v":""}]
["Hyppy",null,null,null,null,"1",null,"",null,"2",null,""]
[0,"Nr","Nimi","Seura","D","väh","E","Yhteensä","D","väh","E","Yhteensä","Tulos"]
[1,{"$f":"HyppyT!B5","v":4},{"$f":"HyppyT!C5","v":"Maija Leinonen"},{"$f":"VLOOKUP(B4,nimilista,6,FALSE)","v":"AS"},{"$f":"HyppyT!E5","v":2},{"$f":"HyppyT!F5","v":0},{"$f":"HyppyT!G5","v":8},{"$f":"HyppyT!H5","v":10},{"$f":"HyppyT!I5","v":6},{"$f":"HyppyT!J5","v":0},{"$f":"HyppyT!K5","v":9},{"$f":"HyppyT!L5","v":15},{"$f":"HyppyT!M5","v":12.5}]
[2,{"$f":"HyppyT!B6","v":2},{"$f":"HyppyT!C6","v":"Camilla Lindén"},"AS",{"$f":"HyppyT!E6","v":0},{"$f":"HyppyT!F6","v":0},{"$f":"HyppyT!G6","v":""},{"$f":"HyppyT!H6","v":0},{"$f":"HyppyT!I6","v":0},{"$f":"HyppyT!J6","v":0},{"$f":"HyppyT!K6","v":""},{"$f":"HyppyT!L6","v":0},{"$f":"HyppyT!M6","v":0}]
[3,{"$f":"HyppyT!B7","v":3},{"$f":"HyppyT!C7","v":"Jenna Smedman"},"AS",{"$f":"HyppyT!E7","v":0},{"$f":"HyppyT!F7","v":0},{"$f":"HyppyT!G7","v":""},{"$f":"HyppyT!H7","v":0},{"$f":"HyppyT!I7","v":0},{"$f":"HyppyT!J7","v":0},{"$f":"HyppyT!K7","v":""},{"$f":"HyppyT!L7","v":0},{"$f":"HyppyT!M7","v":0}]
[4,{"$f":"HyppyT!B8","v":5},{"$f":"HyppyT!C8","v":"Mari Anttila"},"AS",{"$f":"HyppyT!E8","v":0},{"$f":"HyppyT!F8","v":0},{"$f":"HyppyT!G8","v":""},{"$f":"HyppyT!H8","v":0},{"$f":"HyppyT!I8","v":0},{"$f":"HyppyT!J8","v":0},{"$f":"HyppyT!K8","v":""},{"$f":"HyppyT!L8","v":0},{"$f":"HyppyT!M8","v":0}]
[5,{"$f":"HyppyT!B9","v":6},{"$f":"HyppyT!C9","v":"Nea Kinnunen"},"AS",{"$f":"HyppyT!E9","v":0},{"$f":"HyppyT!F9","v":0},{"$f":"HyppyT!G9","v":""},{"$f":"HyppyT!H9","v":0},{"$f":"HyppyT!I9","v":0},{"$f":"HyppyT!J9","v":0},{"$f":"HyppyT!K9","v":""},{"$f":"HyppyT!L9","v":0},{"$f":"HyppyT!M9","v":0}]
[6,{"$f":"HyppyT!B10","v":7},{"$f":"HyppyT!C10","v":"Noora Knuutila"},"AS",{"$f":"HyppyT!E10","v":0},{"$f":"HyppyT!F10","v":0},{"$f":"HyppyT!G10","v":""},{"$f":"HyppyT!H10","v":0},{"$f":"HyppyT!I10","v":0},{"$f":"HyppyT!J10","v":0},{"$f":"HyppyT!K10","v":""},{"$f":"HyppyT!L10","v":0},{"$f":"HyppyT!M10","v":0}]
[7,{"$f":"HyppyT!B11","v":8},{"$f":"HyppyT!C11","v":"Tuuli Nyberg"},"AS",{"$f":"HyppyT!E11","v":0},{"$f":"HyppyT!F11","v":0},{"$f":"HyppyT!G11","v":""},{"$f":"HyppyT!H11","v":0},{"$f":"HyppyT!I11","v":0},{"$f":"HyppyT!J11","v":0},{"$f":"HyppyT!K11","v":""},{"$f":"HyppyT!L11","v":0},{"$f":"HyppyT!M11","v":0}]
[8,{"$f":"HyppyT!B12","v":9},{"$f":"HyppyT!C12","v":"Enna Herva"},"OP",{"$f":"HyppyT!E12","v":0},{"$f":"HyppyT!F12","v":0},{"$f":"HyppyT!G12","v":""},{"$f":"HyppyT!H12","v":0},{"$f":"HyppyT!I12","v":0},{"$f":"HyppyT!J12","v":0},{"$f":"HyppyT!K12","v":""},{"$f":"HyppyT!L12","v":0},{"$f":"HyppyT!M12","v":0}]
[]
[1,{"$f":"kuka2","v":0},{"$f":"IF($B13<=0,\"\",VLOOKUP($B13,nojapuut,C$40,FALSE))","v":""},null,{"$f":"IF($B13<=0,\"\",VLOOKUP($B13,Nojapuut!$B$3:$M$43,E$40,FALSE))","v":""},{"$f":"IF($B13<=0,\"\",VLOOKUP($B13,Permanto!$B$3:$M$43,F$40,FALSE))","v":""},{"$f":"IF($B13<=0,\"\",VLOOKUP($B13,nojapuut,G$40,FALSE))","v":""},{"$f":"IF($B13<=0,\"\",VLOOKUP($B13,hyppy,H$40,FALSE))","v":""}]
["Eritasonojapuut",null,null,null,null,null,null,"",null,null,null,null,null,null,{"$f":"IF((M14=M19),IF((M14=0),\"\",\"tie\"),\"\")","v":""}]
[0,"Nr","Nimi","Seura","D","väh","E","Yhteensä"]
[1,{"$f":"NojapuutT!B5","v":6},{"$f":"NojapuutT!C5","v":"Nea Kinnunen"},{"$f":"VLOOKUP(B16,nimilista,6,FALSE)","v":"AS"},{"$f":"NojapuutT!E5","v":4},{"$f":"NojapuutT!F5","v":0},{"$f":"NojapuutT!G5","v":8.5},{"$f":"NojapuutT!H5","v":12.5},null,null,null,null,null,null,{"$f":"IF((M16=M15),IF((M16=0),\"\",\"tie\"),\"\")","v":""}]
[2,{"$f":"NojapuutT!B6","v":2},{"$f":"NojapuutT!C6","v":"Camilla Lindén"},"AS",{"$f":"NojapuutT!E6","v":0},{"$f":"NojapuutT!F6","v":0},{"$f":"NojapuutT!G6","v":""},{"$f":"NojapuutT!H6","v":0},null,null,null,null,null,null,{"$f":"IF((M17=M16),IF((M17=0),\"\",\"tie\"),\"\")","v":""}]
[3,{"$f":"NojapuutT!B7","v":3},{"$f":"NojapuutT!C7","v":"Jenna Smedman"},"AS",{"$f":"NojapuutT!E7","v":0},{"$f":"NojapuutT!F7","v":0},{"$f":"NojapuutT!G7","v":""},{"$f":"NojapuutT!H7","v":0},null,null,null,null,null,null,{"$f":"IF((M18=M17),IF((M18=0),\"\",\"tie\"),\"\")","v":""}]
[4,{"$f":"NojapuutT!B8","v":4},{"$f":"NojapuutT!C8","v":"Maija Leinonen"},"AS",{"$f":"NojapuutT!E8","v":0},{"$f":"NojapuutT!F8","v":0},{"$f":"NojapuutT!G8","v":""},{"$f":"NojapuutT!H8","v":0},null,null,null,null,null,null,{"$f":"IF((M19=M18),IF((M19=0),\"\",\"tie\"),\"\")","v":""}]
[5,{"$f":"NojapuutT!B9","v":5},{"$f":"NojapuutT!C9","v":"Mari Anttila"},"AS",{"$f":"NojapuutT!E9","v":0},{"$f":"NojapuutT!F9","v":0},{"$f":"NojapuutT!G9","v":""},{"$f":"NojapuutT!H9","v":0},null,null,null,null,null,null,{"$f":"IF((M20=M14),IF((M20=0),\"\",\"tie\"),\"\")","v":""}]
[6,{"$f":"NojapuutT!B10","v":7},{"$f":"NojapuutT!C10","v":"Noora Knuutila"},"AS",{"$f":"NojapuutT!E10","v":0},{"$f":"NojapuutT!F10","v":0},{"$f":"NojapuutT!G10","v":""},{"$f":"NojapuutT!H10","v":0},null,null,null,null,null,null,{"$f":"IF((M21=M20),IF((M21=0),\"\",\"tie\"),\"\")","v":""}]
[7,{"$f":"NojapuutT!B11","v":8},{"$f":"NojapuutT!C11","v":"Tuuli Nyberg"},"AS",{"$f":"NojapuutT!E11","v":0},{"$f":"NojapuutT!F11","v":0},{"$f":"NojapuutT!G11","v":""},{"$f":"NojapuutT!H11","v":0},null,null,null,null,null,null,{"$f":"IF((M22=M21),IF((M22=0),\"\",\"tie\"),\"\")","v":""}]
[8,{"$f":"NojapuutT!B12","v":9},{"$f":"NojapuutT!C12","v":"Enna Herva"},"OP",{"$f":"NojapuutT!E12","v":0},{"$f":"NojapuutT!F12","v":0},{"$f":"NojapuutT!G12","v":""},{"$f":"NojapuutT!H12","v":0},null,null,null,null,null,null,{"$f":"IF((M23=M22),IF((M23=0),\"\",\"tie\"),\"\")","v":""}]
[]
[]
[]
[]
[]
[]
[]
[]
[]
[]
[]
[]
[]
[]
[]
[]
["Hakusarkkeet",null,2,null,5,null,12,null,14,null,21,null,22]

{"sheet":"FinaaliPP","index":8,"n_rows":40,"n_cols":10,"rows_kept":40,"cut":false,"hidden":false,"merged":[[0,6,0,7],[1,0,1,2],[12,6,12,7],[13,0,13,2],[0,4,0,5],[12,4,12,5]]}
[{"$f":"Asetukset!C21","v":3},{"$f":"kuka1","v":0},{"$f":"IF($B1<=0,\"\",VLOOKUP($B1,Puomi,C$40,FALSE))","v":""},null,{"$f":"IF($B1<=0,\"\",VLOOKUP($B1,Puomi,E$40,FALSE))","v":""},{"$f":"IF($B1<=0,\"\",VLOOKUP($B1,permanto,F$40,FALSE))","v":""},{"$f":"IF($B1<=0,\"\",VLOOKUP($B1,Puomi,G$40,FALSE))","v":""},{"$f":"IF($B1<=0,\"\",VLOOKUP($B1,permanto,H$40,FALSE))","v":""}]
["Puomi",null,null,null,null,null,null,""]
[0,"Nr","Nimi","Seura","D","väh","E","Yhteensä"]
[1,{"$f":"PuomiT!B5","v":8},{"$f":"PuomiT!C5","v":"Tuuli Nyberg"},{"$f":"VLOOKUP(B4,nimilista,6,FALSE)","v":"AS"},{"$f":"PuomiT!E5","v":1},{"$f":"PuomiT!F5","v":1},{"$f":"PuomiT!G5","v":9},{"$f":"PuomiT!H5","v":9},null,{"$f":"IF((H4=H3),IF((H4=0),\"\",\"tie\"),\"\")","v":""}]
[2,{"$f":"PuomiT!B6","v":2},{"$f":"PuomiT!C6","v":"Camilla Lindén"},"AS",{"$f":"PuomiT!E6","v":0},{"$f":"PuomiT!F6","v":0},{"$f":"PuomiT!G6","v":""},{"$f":"PuomiT!H6","v":0},null,""]
[3,{"$f":"PuomiT!B7","v":3},{"$f":"PuomiT!C7","v":"Jenna Smedman"},"AS",{"$f":"PuomiT!E7","v":0},{"$f":"PuomiT!F7","v":0},{"$f":"PuomiT!G7","v":""},{"$f":"PuomiT!H7","v":0},null,""]
[4,{"$f":"PuomiT!B8","v":4},{"$f":"PuomiT!C8","v":"Maija Leinonen"},"AS",{"$f":"PuomiT!E8","v":0},{"$f":"PuomiT!F8","v":0},{"$f":"PuomiT!G8","v":""},{"$f":"PuomiT!H8","v":0},null,""]
[5,{"$f":"PuomiT!B9","v":5},{"$f":"PuomiT!C9","v":"Mari Anttila"},"AS",{"$f":"PuomiT!E9","v":0},{"$f":"PuomiT!F9","v":0},{"$f":"PuomiT!G9","v":""},{"$f":"PuomiT!H9","v":0},null,""]
[6,{"$f":"PuomiT!B10","v":6},{"$f":"PuomiT!C10","v":"Nea Kinnunen"},"AS",{"$f":"PuomiT!E10","v":0},{"$f":"PuomiT!F10","v":0},{"$f":"PuomiT!G10","v":""},{"$f":"PuomiT!H10","v":0},null,""]
[7,{"$f":"PuomiT!B11","v":7},{"$f":"PuomiT!C11","v":"Noora Knuutila"},"AS",{"$f":"PuomiT!E11","v":0},{"$f":"PuomiT!F11","v":0},{"$f":"PuomiT!G11","v":""},{"$f":"PuomiT!H11","v":0},null,""]
[8,{"$f":"PuomiT!B12","v":9},{"$f":"PuomiT!C12","v":"Enna Herva"},"OP",{"$f":"PuomiT!E12","v":0},{"$f":"PuomiT!F12","v":0},{"$f":"PuomiT!G12","v":""},{"$f":"PuomiT!H12","v":0},null,""]
[]
[1,{"$f":"kuka2","v":0},{"$f":"IF($B13<=0,\"\",VLOOKUP($B13,permanto,C$40,FALSE))","v":""},null,{"$f":"IF($B13<=0,\"\",VLOOKUP($B13,permanto,E$40,FALSE))","v":""},{"$f":"IF($B13<=0,\"\",VLOOKUP($B13,hevonen,F$40,FALSE))","v":""},{"$f":"IF($B13<=0,\"\",VLOOKUP($B13,permanto,G$40,FALSE))","v":""},{"$f":"IF($B13<=0,\"\",VLOOKUP($B13,hevonen,H$40,FALSE))","v":""}]
["Permanto",null,null,null,null,null,null,""]
[0,"Nr","Nimi","Seura","D","väh","E","Yhteensä"]
[1,{"$f":"PermantoT!B5","v":12},{"$f":"PermantoT!C5","v":"Elina Ahmala"},{"$f":"VLOOKUP(B16,nimilista,6,FALSE)","v":"STVK"},{"$f":"PermantoT!E5","v":5},{"$f":"PermantoT!F5","v":1},{"$f":"PermantoT!G5","v":9},{"$f":"PermantoT!H5","v":13},null,{"$f":"IF((H16=H15),IF((H16=0),\"\",\"tie\"),\"\")","v":""}]
[2,{"$f":"PermantoT!B6","v":2},{"$f":"PermantoT!C6","v":"Camilla Lindén"},"AS",{"$f":"PermantoT!E6","v":0},{"$f":"PermantoT!F6","v":0},{"$f":"PermantoT!G6","v":""},{"$f":"PermantoT!H6","v":0},null,""]
[3,{"$f":"PermantoT!B7","v":3},{"$f":"PermantoT!C7","v":"Jenna Smedman"},"AS",{"$f":"PermantoT!E7","v":0},{"$f":"PermantoT!F7","v":0},{"$f":"PermantoT!G7","v":""},{"$f":"PermantoT!H7","v":0},null,""]
[4,{"$f":"PermantoT!B8","v":4},{"$f":"PermantoT!C8","v":"Maija Leinonen"},"AS",{"$f":"PermantoT!E8","v":0},{"$f":"PermantoT!F8","v":0},{"$f":"PermantoT!G8","v":""},{"$f":"PermantoT!H8","v":0},null,""]
[5,{"$f":"PermantoT!B9","v":5},{"$f":"PermantoT!C9","v":"Mari Anttila"},"AS",{"$f":"PermantoT!E9","v":0},{"$f":"PermantoT!F9","v":0},{"$f":"PermantoT!G9","v":""},{"$f":"PermantoT!H9","v":0},null,""]
[6,{"$f":"PermantoT!B10","v":6},{"$f":"PermantoT!C10","v":"Nea Kinnunen"},"AS",{"$f":"PermantoT!E10","v":0},{"$f":"PermantoT!F10","v":0},{"$f":"PermantoT!G10","v":""},{"$f":"PermantoT!H10","v":0},null,""]
[7,{"$f":"PermantoT!B11","v":7},{"$f":"PermantoT!C11","v":"Noora Knuutila"},"AS",{"$f":"PermantoT!E11","v":0},{"$f":"PermantoT!F11","v":0},{"$f":"PermantoT!G11","v":""},{"$f":"PermantoT!H11","v":0},null,""]
[8,{"$f":"PermantoT!B12","v":8},{"$f":"PermantoT!C12","v":"Tuuli Nyberg"},"AS",{"$f":"PermantoT!E12","v":0},{"$f":"PermantoT!F12","v":0},{"$f":"PermantoT!G12","v":""},{"$f":"PermantoT!H12","v":0},null,""]
[]
[]
[]
[]
[]
[]
[]
[]
[]
[]
[]
[]
[]
[]
[]
[]
["Hakusarkkeet",null,2,null,5,null,12]

{"sheet":"FinaaliNR","index":9,"n_rows":40,"n_cols":10,"rows_kept":40,"cut":false,"hidden":false,"merged":[[0,6,0,7],[1,0,1,2],[12,6,12,7],[13,0,13,2],[0,4,0,5],[12,4,12,5]]}
[1,{"$f":"kuka1","v":0},{"$f":"IF($B1<=0,\"\",VLOOKUP($B1,nojapuut,C$40,FALSE))","v":""},null,{"$f":"IF($B1<=0,\"\",VLOOKUP($B1,nojapuut,E$40,FALSE))","v":""},{"$f":"IF($B1<=0,\"\",VLOOKUP($B1,nojapuut,F$40,FALSE))","v":""},{"$f":"IF($B1<=0,\"\",VLOOKUP($B1,nojapuut,G$40,FALSE))","v":""},{"$f":"IF($B1<=0,\"\",VLOOKUP($B1,nojapuut,H$40,FALSE))","v":""}]
["Nojapuut",null,null,null,null,null,null,""]
[0,"Nr","Nimi","Seura","D","väh","E","Yhteensä"]
[1,{"$f":"NojapuutT!B5","v":6},{"$f":"NojapuutT!C5","v":"Nea Kinnunen"},{"$f":"VLOOKUP(B4,nimilista,6,FALSE)","v":"AS"},{"$f":"NojapuutT!E5","v":4},{"$f":"NojapuutT!F5","v":0},{"$f":"NojapuutT!G5","v":8.5},{"$f":"NojapuutT!H5","v":12.5},null,{"$f":"IF((H4=H3),IF((H4=0),\"\",\"tie\"),\"\")","v":""}]
[2,{"$f":"NojapuutT!B6","v":2},{"$f":"NojapuutT!C6","v":"Camilla Lindén"},"AS",{"$f":"NojapuutT!E6","v":0},{"$f":"NojapuutT!F6","v":0},{"$f":"NojapuutT!G6","v":""},{"$f":"NojapuutT!H6","v":0},null,""]
[3,{"$f":"NojapuutT!B7","v":3},{"$f":"NojapuutT!C7","v":"Jenna Smedman"},"AS",{"$f":"NojapuutT!E7","v":0},{"$f":"NojapuutT!F7","v":0},{"$f":"NojapuutT!G7","v":""},{"$f":"NojapuutT!H7","v":0},null,""]
[4,{"$f":"NojapuutT!B8","v":4},{"$f":"NojapuutT!C8","v":"Maija Leinonen"},"AS",{"$f":"NojapuutT!E8","v":0},{"$f":"NojapuutT!F8","v":0},{"$f":"NojapuutT!G8","v":""},{"$f":"NojapuutT!H8","v":0},null,""]
[5,{"$f":"NojapuutT!B9","v":5},{"$f":"NojapuutT!C9","v":"Mari Anttila"},"AS",{"$f":"NojapuutT!E9","v":0},{"$f":"NojapuutT!F9","v":0},{"$f":"NojapuutT!G9","v":""},{"$f":"NojapuutT!H9","v":0},null,""]
[6,{"$f":"NojapuutT!B10","v":7},{"$f":"NojapuutT!C10","v":"Noora Knuutila"},"AS",{"$f":"NojapuutT!E10","v":0},{"$f":"NojapuutT!F10","v":0},{"$f":"NojapuutT!G10","v":""},{"$f":"NojapuutT!H10","v":0},null,""]
[7,{"$f":"NojapuutT!B11","v":8},{"$f":"NojapuutT!C11","v":"Tuuli Nyberg"},"AS",{"$f":"NojapuutT!E11","v":0},{"$f":"NojapuutT!F11","v":0},{"$f":"NojapuutT!G11","v":""},{"$f":"NojapuutT!H11","v":0},null,""]
[8,{"$f":"NojapuutT!B12","v":9},{"$f":"NojapuutT!C12","v":"Enna Herva"},"OP",{"$f":"NojapuutT!E12","v":0},{"$f":"NojapuutT!F12","v":0},{"$f":"NojapuutT!G12","v":""},{"$f":"NojapuutT!H12","v":0},null,""]
[]
[1,{"$f":"kuka1","v":0},{"$f":"IF($B13<=0,\"\",VLOOKUP($B13,rekki,C$40,FALSE))","v":""},null,{"$f":"IF($B13<=0,\"\",VLOOKUP($B13,rekki,E$40,FALSE))","v":""},{"$f":"IF($B13<=0,\"\",VLOOKUP($B13,rekki,F$40,FALSE))","v":""},{"$f":"IF($B13<=0,\"\",VLOOKUP($B13,rekki,G$40,FALSE))","v":""},{"$f":"IF($B13<=0,\"\",VLOOKUP($B13,rekki,H$40,FALSE))","v":""}]
["Rekki",null,null,null,null,null,null,""]
[0,"Nr","Nimi","Seura","D","väh","E","Yhteensä"]
[1,{"$f":"RekkiT!B5","v":2},{"$f":"RekkiT!C5","v":"Camilla Lindén"},{"$f":"VLOOKUP(B16,nimilista,6,FALSE)","v":"AS"},{"$f":"RekkiT!E5","v":0},{"$f":"RekkiT!F5","v":0},{"$f":"RekkiT!G5","v":""},{"$f":"RekkiT!H5","v":0},null,{"$f":"IF((H16=H15),IF((H16=0),\"\",\"tie\"),\"\")","v":""}]
[2,{"$f":"RekkiT!B6","v":3},{"$f":"RekkiT!C6","v":"Jenna Smedman"},"AS",{"$f":"RekkiT!E6","v":0},{"$f":"RekkiT!F6","v":0},{"$f":"RekkiT!G6","v":""},{"$f":"RekkiT!H6","v":0},null,""]
[3,{"$f":"RekkiT!B7","v":4},{"$f":"RekkiT!C7","v":"Maija Leinonen"},"AS",{"$f":"RekkiT!E7","v":0},{"$f":"RekkiT!F7","v":0},{"$f":"RekkiT!G7","v":""},{"$f":"RekkiT!H7","v":0},null,""]
[4,{"$f":"RekkiT!B8","v":5},{"$f":"RekkiT!C8","v":"Mari Anttila"},"AS",{"$f":"RekkiT!E8","v":0},{"$f":"RekkiT!F8","v":0},{"$f":"RekkiT!G8","v":""},{"$f":"RekkiT!H8","v":0},null,""]
[5,{"$f":"RekkiT!B9","v":6},{"$f":"RekkiT!C9","v":"Nea Kinnunen"},"AS",{"$f":"RekkiT!E9","v":0},{"$f":"RekkiT!F9","v":0},{"$f":"RekkiT!G9","v":""},{"$f":"RekkiT!H9","v":0},null,""]
[6,{"$f":"RekkiT!B10","v":7},{"$f":"RekkiT!C10","v":"Noora Knuutila"},"AS",{"$f":"RekkiT!E10","v":0},{"$f":"RekkiT!F10","v":0},{"$f":"RekkiT!G10","v":""},{"$f":"RekkiT!H10","v":0},null,""]
[7,{"$f":"RekkiT!B11","v":8},{"$f":"RekkiT!C11","v":"Tuuli Nyberg"},"AS",{"$f":"RekkiT!E11","v":0},{"$f":"RekkiT!F11","v":0},{"$f":"RekkiT!G11","v":""},{"$f":"RekkiT!H11","v":0},null,""]
[8,{"$f":"RekkiT!B12","v":9},{"$f":"RekkiT!C12","v":"Enna Herva"},"OP",{"$f":"RekkiT!E12","v":0},{"$f":"RekkiT!F12","v":0},{"$f":"RekkiT!G12","v":""},{"$f":"RekkiT!H12","v":0},null,""]
[]
[]
[]
[]
[]
[]
[]
[]
[]
[]
[]
[]
[]
[]
[]
[]
["Hakusarkkeet",null,2,null,5,null,12]

{"sheet":"HyppyT","index":10,"n_rows":52,"n_cols":15,"rows_kept":52,"cut":false,"hidden":false,"merged":[[1,14,1,15],[2,0,2,2],[0,3,0,7],[1,6,1,7],[1,10,1,11],[1,12,1,13]]}
[null,null,null,{"$f":"Tulostus!D1","v":"Suomen                            mestaruuskilpailut            Jyväskylä 15.4.2011"}]
[null,null,null,null,null,null,1,null,null,null,2]
["Hyppy",null,null,{"$f":"tulosotsikko","v":"Tytöt,karsinta"},5,10,11,12,14,19,20,21]
["sij","Nr","Nimi","Seura","D","väh","E","Yhteensä","D","väh","E","Yhteensä","Tulos"]
[1,4,{"$f":"VLOOKUP($B5,nimilista,2,FALSE)","v":"Maija Leinonen"},{"$f":"VLOOKUP($B5,nimilista,5,FALSE)","v":"Alppilan Salamat"},{"$f":"VLOOKUP($B5,hyppy,E$3,FALSE)","v":2},{"$f":"VLOOKUP($B5,hyppy,F$3,FALSE)","v":0},{"$f":"VLOOKUP($B5,hyppy,G$3,FALSE)","v":8},{"$f":"VLOOKUP($B5,hyppy,H$3,FALSE)","v":10},{"$f":"VLOOKUP($B5,hyppy,I$3,FALSE)","v":6},{"$f":"VLOOKUP($B5,hyppy,J$3,FALSE)","v":0},{"$f":"VLOOKUP($B5,hyppy,K$3,FALSE)","v":9},{"$f":"VLOOKUP($B5,hyppy,L$3,FALSE)","v":15},{"$f":"(H5+L5)/2","v":12.5},null,{"$f":"IF((M5=M4),IF((M5=0),\"\",\"tie\"),\"\")","v":""}]
[2,2,{"$f":"VLOOKUP($B6,nimilista,2,FALSE)","v":"Camilla Lindén"},{"$f":"VLOOKUP($B6,nimilista,5,FALSE)","v":"Alppilan Salamat"},{"$f":"VLOOKUP($B6,hyppy,E$3,FALSE)","v":0},{"$f":"VLOOKUP($B6,hyppy,F$3,FALSE)","v":0},{"$f":"VLOOKUP($B6,hyppy,G$3,FALSE)","v":""},{"$f":"VLOOKUP($B6,hyppy,H$3,FALSE)","v":0},{"$f":"VLOOKUP($B6,hyppy,I$3,FALSE)","v":0},{"$f":"VLOOKUP($B6,hyppy,J$3,FALSE)","v":0},{"$f":"VLOOKUP($B6,hyppy,K$3,FALSE)","v":""},{"$f":"VLOOKUP($B6,hyppy,L$3,FALSE)","v":0},{"$f":"(H6+L6)/2","v":0},null,""]
[3,3,{"$f":"VLOOKUP($B7,nimilista,2,FALSE)","v":"Jenna Smedman"},{"$f":"VLOOKUP($B7,nimilista,5,FALSE)","v":"Alppilan Salamat"},{"$f":"VLOOKUP($B7,hyppy,E$3,FALSE)","v":0},{"$f":"VLOOKUP($B7,hyppy,F$3,FALSE)","v":0},{"$f":"VLOOKUP($B7,hyppy,G$3,FALSE)","v":""},{"$f":"VLOOKUP($B7,hyppy,H$3,FALSE)","v":0},{"$f":"VLOOKUP($B7,hyppy,I$3,FALSE)","v":0},{"$f":"VLOOKUP($B7,hyppy,J$3,FALSE)","v":0},{"$f":"VLOOKUP($B7,hyppy,K$3,FALSE)","v":""},{"$f":"VLOOKUP($B7,hyppy,L$3,FALSE)","v":0},{"$f":"(H7+L7)/2","v":0},null,""]
[4,5,{"$f":"VLOOKUP($B8,nimilista,2,FALSE)","v":"Mari Anttila"},{"$f":"VLOOKUP($B8,nimilista,5,FALSE)","v":"Alppilan Salamat"},{"$f":"VLOOKUP($B8,hyppy,E$3,FALSE)","v":0},{"$f":"VLOOKUP($B8,hyppy,F$3,FALSE)","v":0},{"$f":"VLOOKUP($B8,hyppy,G$3,FALSE)","v":""},{"$f":"VLOOKUP($B8,hyppy,H$3,FALSE)","v":0},{"$f":"VLOOKUP($B8,hyppy,I$3,FALSE)","v":0},{"$f":"VLOOKUP($B8,hyppy,J$3,FALSE)","v":0},{"$f":"VLOOKUP($B8,hyppy,K$3,FALSE)","v":""},{"$f":"VLOOKUP($B8,hyppy,L$3,FALSE)","v":0},{"$f":"(H8+L8)/2","v":0},null,""]
[5,6,{"$f":"VLOOKUP($B9,nimilista,2,FALSE)","v":"Nea Kinnunen"},{"$f":"VLOOKUP($B9,nimilista,5,FALSE)","v":"Alppilan Salamat"},{"$f":"VLOOKUP($B9,hyppy,E$3,FALSE)","v":0},{"$f":"VLOOKUP($B9,hyppy,F$3,FALSE)","v":0},{"$f":"VLOOKUP($B9,hyppy,G$3,FALSE)","v":""},{"$f":"VLOOKUP($B9,hyppy,H$3,FALSE)","v":0},{"$f":"VLOOKUP($B9,hyppy,I$3,FALSE)","v":0},{"$f":"VLOOKUP($B9,hyppy,J$3,FALSE)","v":0},{"$f":"VLOOKUP($B9,hyppy,K$3,FALSE)","v":""},{"$f":"VLOOKUP($B9,hyppy,L$3,FALSE)","v":0},{"$f":"(H9+L9)/2","v":0},null,""]
[6,7,{"$f":"VLOOKUP($B10,nimilista,2,FALSE)","v":"Noora Knuutila"},{"$f":"VLOOKUP($B10,nimilista,5,FALSE)","v":"Alppilan Salamat"},{"$f":"VLOOKUP($B10,hyppy,E$3,FALSE)","v":0},{"$f":"VLOOKUP($B10,hyppy,F$3,FALSE)","v":0},{"$f":"VLOOKUP($B10,hyppy,G$3,FALSE)","v":""},{"$f":"VLOOKUP($B10,hyppy,H$3,FALSE)","v":0},{"$f":"VLOOKUP($B10,hyppy,I$3,FALSE)","v":0},{"$f":"VLOOKUP($B10,hyppy,J$3,FALSE)","v":0},{"$f":"VLOOKUP($B10,hyppy,K$3,FALSE)","v":""},{"$f":"VLOOKUP($B10,hyppy,L$3,FALSE)","v":0},{"$f":"(H10+L10)/2","v":0},null,""]
[7,8,{"$f":"VLOOKUP($B11,nimilista,2,FALSE)","v":"Tuuli Nyberg"},{"$f":"VLOOKUP($B11,nimilista,5,FALSE)","v":"Alppilan Salamat"},{"$f":"VLOOKUP($B11,hyppy,E$3,FALSE)","v":0},{"$f":"VLOOKUP($B11,hyppy,F$3,FALSE)","v":0},{"$f":"VLOOKUP($B11,hyppy,G$3,FALSE)","v":""},{"$f":"VLOOKUP($B11,hyppy,H$3,FALSE)","v":0},{"$f":"VLOOKUP($B11,hyppy,I$3,FALSE)","v":0},{"$f":"VLOOKUP($B11,hyppy,J$3,FALSE)","v":0},{"$f":"VLOOKUP($B11,hyppy,K$3,FALSE)","v":""},{"$f":"VLOOKUP($B11,hyppy,L$3,FALSE)","v":0},{"$f":"(H11+L11)/2","v":0},null,""]
[8,9,{"$f":"VLOOKUP($B12,nimilista,2,FALSE)","v":"Enna Herva"},{"$f":"VLOOKUP($B12,nimilista,5,FALSE)","v":"Oulun Pyrintö"},{"$f":"VLOOKUP($B12,hyppy,E$3,FALSE)","v":0},{"$f":"VLOOKUP($B12,hyppy,F$3,FALSE)","v":0},{"$f":"VLOOKUP($B12,hyppy,G$3,FALSE)","v":""},{"$f":"VLOOKUP($B12,hyppy,H$3,FALSE)","v":0},{"$f":"VLOOKUP($B12,hyppy,I$3,FALSE)","v":0},{"$f":"VLOOKUP($B12,hyppy,J$3,FALSE)","v":0},{"$f":"VLOOKUP($B12,hyppy,K$3,FALSE)","v":""},{"$f":"VLOOKUP($B12,hyppy,L$3,FALSE)","v":0},{"$f":"(H12+L12)/2","v":0},null,""]
[9,10,{"$f":"VLOOKUP($B13,nimilista,2,FALSE)","v":"Lili Granroth"},{"$f":"VLOOKUP($B13,nimilista,5,FALSE)","v":"Oulun Pyrintö"},{"$f":"VLOOKUP($B13,hyppy,E$3,FALSE)","v":0},{"$f":"VLOOKUP($B13,hyppy,F$3,FALSE)","v":0},{"$f":"VLOOKUP($B13,hyppy,G$3,FALSE)","v":""},{"$f":"VLOOKUP($B13,hyppy,H$3,FALSE)","v":0},{"$f":"VLOOKUP($B13,hyppy,I$3,FALSE)","v":0},{"$f":"VLOOKUP($B13,hyppy,J$3,FALSE)","v":0},{"$f":"VLOOKUP($B13,hyppy,K$3,FALSE)","v":""},{"$f":"VLOOKUP($B13,hyppy,L$3,FALSE)","v":0},{"$f":"(H13+L13)/2","v":0},null,""]
[10,11,{"$f":"VLOOKUP($B14,nimilista,2,FALSE)","v":"Anniina Muilu"},{"$f":"VLOOKUP($B14,nimilista,5,FALSE)","v":"Suomen Taitovoimistelu Klubi"},{"$f":"VLOOKUP($B14,hyppy,E$3,FALSE)","v":0},{"$f":"VLOOKUP($B14,hyppy,F$3,FALSE)","v":0},{"$f":"VLOOKUP($B14,hyppy,G$3,FALSE)","v":""},{"$f":"VLOOKUP($B14,hyppy,H$3,FALSE)","v":0},{"$f":"VLOOKUP($B14,hyppy,I$3,FALSE)","v":0},{"$f":"VLOOKUP($B14,hyppy,J$3,FALSE)","v":0},{"$f":"VLOOKUP($B14,hyppy,K$3,FALSE)","v":""},{"$f":"VLOOKUP($B14,hyppy,L$3,FALSE)","v":0},{"$f":"(H14+L14)/2","v":0},null,""]
[11,12,{"$f":"VLOOKUP($B15,nimilista,2,FALSE)","v":"Elina Ahmala"},{"$f":"VLOOKUP($B15,nimilista,5,FALSE)","v":"Suomen Taitovoimistelu Klubi"},{"$f":"VLOOKUP($B15,hyppy,E$3,FALSE)","v":0},{"$f":"VLOOKUP($B15,hyppy,F$3,FALSE)","v":0},{"$f":"VLOOKUP($B15,hyppy,G$3,FALSE)","v":""},{"$f":"VLOOKUP($B15,hyppy,H$3,FALSE)","v":0},{"$f":"VLOOKUP($B15,hyppy,I$3,FALSE)","v":0},{"$f":"VLOOKUP($B15,hyppy,J$3,FALSE)","v":0},{"$f":"VLOOKUP($B15,hyppy,K$3,FALSE)","v":""},{"$f":"VLOOKUP($B15,hyppy,L$3,FALSE)","v":0},{"$f":"(H15+L15)/2","v":0},null,""]
[12,13,{"$f":"VLOOKUP($B16,nimilista,2,FALSE)","v":"Maria Pakkanen"},{"$f":"VLOOKUP($B16,nimilista,5,FALSE)","v":"Suomen Taitovoimistelu Klubi"},{"$f":"VLOOKUP($B16,hyppy,E$3,FALSE)","v":0},{"$f":"VLOOKUP($B16,hyppy,F$3,FALSE)","v":0},{"$f":"VLOOKUP($B16,hyppy,G$3,FALSE)","v":""},{"$f":"VLOOKUP($B16,hyppy,H$3,FALSE)","v":0},{"$f":"VLOOKUP($B16,hyppy,I$3,FALSE)","v":0},{"$f":"VLOOKUP($B16,hyppy,J$3,FALSE)","v":0},{"$f":"VLOOKUP($B16,hyppy,K$3,FALSE)","v":""},{"$f":"VLOOKUP($B16,hyppy,L$3,FALSE)","v":0},{"$f":"(H16+L16)/2","v":0},null,""]
[13,14,{"$f":"VLOOKUP($B17,nimilista,2,FALSE)","v":"Saara Halme"},{"$f":"VLOOKUP($B17,nimilista,5,FALSE)","v":"Suomen Taitovoimistelu Klubi"},{"$f":"VLOOKUP($B17,hyppy,E$3,FALSE)","v":0},{"$f":"VLOOKUP($B17,hyppy,F$3,FALSE)","v":0},{"$f":"VLOOKUP($B17,hyppy,G$3,FALSE)","v":""},{"$f":"VLOOKUP($B17,hyppy,H$3,FALSE)","v":0},{"$f":"VLOOKUP($B17,hyppy,I$3,FALSE)","v":0},{"$f":"VLOOKUP($B17,hyppy,J$3,FALSE)","v":0},{"$f":"VLOOKUP($B17,hyppy,K$3,FALSE)","v":""},{"$f":"VLOOKUP($B17,hyppy,L$3,FALSE)","v":0},{"$f":"(H17+L17)/2","v":0},null,""]
[14,15,{"$f":"VLOOKUP($B18,nimilista,2,FALSE)","v":"Viivi Immonen"},{"$f":"VLOOKUP($B18,nimilista,5,FALSE)","v":"Suomen Taitovoimistelu Klubi"},{"$f":"VLOOKUP($B18,hyppy,E$3,FALSE)","v":0},{"$f":"VLOOKUP($B18,hyppy,F$3,FALSE)","v":0},{"$f":"VLOOKUP($B18,hyppy,G$3,FALSE)","v":""},{"$f":"VLOOKUP($B18,hyppy,H$3,FALSE)","v":0},{"$f":"VLOOKUP($B18,hyppy,I$3,FALSE)","v":0},{"$f":"VLOOKUP($B18,hyppy,J$3,FALSE)","v":0},{"$f":"VLOOKUP($B18,hyppy,K$3,FALSE)","v":""},{"$f":"VLOOKUP($B18,hyppy,L$3,FALSE)","v":0},{"$f":"(H18+L18)/2","v":0},null,""]
[15,16,{"$f":"VLOOKUP($B19,nimilista,2,FALSE)","v":"Adeliina Sulkanen"},{"$f":"VLOOKUP($B19,nimilista,5,FALSE)","v":"Tampereen Voimistelijat"},{"$f":"VLOOKUP($B19,hyppy,E$3,FALSE)","v":0},{"$f":"VLOOKUP($B19,hyppy,F$3,FALSE)","v":0},{"$f":"VLOOKUP($B19,hyppy,G$3,FALSE)","v":""},{"$f":"VLOOKUP($B19,hyppy,H$3,FALSE)","v":0},{"$f":"VLOOKUP($B19,hyppy,I$3,FALSE)","v":0},{"$f":"VLOOKUP($B19,hyppy,J$3,FALSE)","v":0},{"$f":"VLOOKUP($B19,hyppy,K$3,FALSE)","v":""},{"$f":"VLOOKUP($B19,hyppy,L$3,FALSE)","v":0},{"$f":"(H19+L19)/2","v":0},null,""]
[16,17,{"$f":"VLOOKUP($B20,nimilista,2,FALSE)","v":"Suvi Karumo"},{"$f":"VLOOKUP($B20,nimilista,5,FALSE)","v":"Tampereen Voimistelijat"},{"$f":"VLOOKUP($B20,hyppy,E$3,FALSE)","v":0},{"$f":"VLOOKUP($B20,hyppy,F$3,FALSE)","v":0},{"$f":"VLOOKUP($B20,hyppy,G$3,FALSE)","v":""},{"$f":"VLOOKUP($B20,hyppy,H$3,FALSE)","v":0},{"$f":"VLOOKUP($B20,hyppy,I$3,FALSE)","v":0},{"$f":"VLOOKUP($B20,hyppy,J$3,FALSE)","v":0},{"$f":"VLOOKUP($B20,hyppy,K$3,FALSE)","v":""},{"$f":"VLOOKUP($B20,hyppy,L$3,FALSE)","v":0},{"$f":"(H20+L20)/2","v":0},null,""]
[17,18,{"$f":"VLOOKUP($B21,nimilista,2,FALSE)","v":"Tiia Laisi"},{"$f":"VLOOKUP($B21,nimilista,5,FALSE)","v":"Tampereen Voimistelijat"},{"$f":"VLOOKUP($B21,hyppy,E$3,FALSE)","v":0},{"$f":"VLOOKUP($B21,hyppy,F$3,FALSE)","v":0},{"$f":"VLOOKUP($B21,hyppy,G$3,FALSE)","v":""},{"$f":"VLOOKUP($B21,hyppy,H$3,FALSE)","v":0},{"$f":"VLOOKUP($B21,hyppy,I$3,FALSE)","v":0},{"$f":"VLOOKUP($B21,hyppy,J$3,FALSE)","v":0},{"$f":"VLOOKUP($B21,hyppy,K$3,FALSE)","v":""},{"$f":"VLOOKUP($B21,hyppy,L$3,FALSE)","v":0},{"$f":"(H21+L21)/2","v":0},null,""]
[18,19,{"$f":"VLOOKUP($B22,nimilista,2,FALSE)","v":"Veronika Vuosjoki"},{"$f":"VLOOKUP($B22,nimilista,5,FALSE)","v":"Tampereen Voimistelijat"},{"$f":"VLOOKUP($B22,hyppy,E$3,FALSE)","v":0},{"$f":"VLOOKUP($B22,hyppy,F$3,FALSE)","v":0},{"$f":"VLOOKUP($B22,hyppy,G$3,FALSE)","v":""},{"$f":"VLOOKUP($B22,hyppy,H$3,FALSE)","v":0},{"$f":"VLOOKUP($B22,hyppy,I$3,FALSE)","v":0},{"$f":"VLOOKUP($B22,hyppy,J$3,FALSE)","v":0},{"$f":"VLOOKUP($B22,hyppy,K$3,FALSE)","v":""},{"$f":"VLOOKUP($B22,hyppy,L$3,FALSE)","v":0},{"$f":"(H22+L22)/2","v":0},null,""]
[19,20,{"$f":"VLOOKUP($B23,nimilista,2,FALSE)","v":"Alexandra Ivanova"},{"$f":"VLOOKUP($B23,nimilista,5,FALSE)","v":"Turun Pyrkivä"},{"$f":"VLOOKUP($B23,hyppy,E$3,FALSE)","v":0},{"$f":"VLOOKUP($B23,hyppy,F$3,FALSE)","v":0},{"$f":"VLOOKUP($B23,hyppy,G$3,FALSE)","v":""},{"$f":"VLOOKUP($B23,hyppy,H$3,FALSE)","v":0},{"$f":"VLOOKUP($B23,hyppy,I$3,FALSE)","v":0},{"$f":"VLOOKUP($B23,hyppy,J$3,FALSE)","v":0},{"$f":"VLOOKUP($B23,hyppy,K$3,FALSE)","v":""},{"$f":"VLOOKUP($B23,hyppy,L$3,FALSE)","v":0},{"$f":"(H23+L23)/2","v":0},null,""]
[20,21,{"$f":"VLOOKUP($B24,nimilista,2,FALSE)","v":"Victoria Jakaus"},{"$f":"VLOOKUP($B24,nimilista,5,FALSE)","v":"Turun Pyrkivä"},{"$f":"VLOOKUP($B24,hyppy,E$3,FALSE)","v":0},{"$f":"VLOOKUP($B24,hyppy,F$3,FALSE)","v":0},{"$f":"VLOOKUP($B24,hyppy,G$3,FALSE)","v":""},{"$f":"VLOOKUP($B24,hyppy,H$3,FALSE)","v":0},{"$f":"VLOOKUP($B24,hyppy,I$3,FALSE)","v":0},{"$f":"VLOOKUP($B24,hyppy,J$3,FALSE)","v":0},{"$f":"VLOOKUP($B24,hyppy,K$3,FALSE)","v":""},{"$f":"VLOOKUP($B24,hyppy,L$3,FALSE)","v":0},{"$f":"(H24+L24)/2","v":0},null,""]
[21,22,{"$f":"VLOOKUP($B25,nimilista,2,FALSE)","v":"Julia Jäkälä"},{"$f":"VLOOKUP($B25,nimilista,5,FALSE)","v":"Turun Urheiluliitto"},{"$f":"VLOOKUP($B25,hyppy,E$3,FALSE)","v":0},{"$f":"VLOOKUP($B25,hyppy,F$3,FALSE)","v":0},{"$f":"VLOOKUP($B25,hyppy,G$3,FALSE)","v":""},{"$f":"VLOOKUP($B25,hyppy,H$3,FALSE)","v":0},{"$f":"VLOOKUP($B25,hyppy,I$3,FALSE)","v":0},{"$f":"VLOOKUP($B25,hyppy,J$3,FALSE)","v":0},{"$f":"VLOOKUP($B25,hyppy,K$3,FALSE)","v":""},{"$f":"VLOOKUP($B25,hyppy,L$3,FALSE)","v":0},{"$f":"(H25+L25)/2","v":0},null,""]
[22,23,{"$f":"VLOOKUP($B26,nimilista,2,FALSE)","v":"Maria Åman"},{"$f":"VLOOKUP($B26,nimilista,5,FALSE)","v":"Turun Urheiluliitto"},{"$f":"VLOOKUP($B26,hyppy,E$3,FALSE)","v":0},{"$f":"VLOOKUP($B26,hyppy,F$3,FALSE)","v":0},{"$f":"VLOOKUP($B26,hyppy,G$3,FALSE)","v":""},{"$f":"VLOOKUP($B26,hyppy,H$3,FALSE)","v":0},{"$f":"VLOOKUP($B26,hyppy,I$3,FALSE)","v":0},{"$f":"VLOOKUP($B26,hyppy,J$3,FALSE)","v":0},{"$f":"VLOOKUP($B26,hyppy,K$3,FALSE)","v":""},{"$f":"VLOOKUP($B26,hyppy,L$3,FALSE)","v":0},{"$f":"(H26+L26)/2","v":0},null,""]
[23,24,{"$f":"VLOOKUP($B27,nimilista,2,FALSE)","v":"Miina Kokkonen"},{"$f":"VLOOKUP($B27,nimilista,5,FALSE)","v":"Turun Urheiluliitto"},{"$f":"VLOOKUP($B27,hyppy,E$3,FALSE)","v":0},{"$f":"VLOOKUP($B27,hyppy,F$3,FALSE)","v":0},{"$f":"VLOOKUP($B27,hyppy,G$3,FALSE)","v":""},{"$f":"VLOOKUP($B27,hyppy,H$3,FALSE)","v":0},{"$f":"VLOOKUP($B27,hyppy,I$3,FALSE)","v":0},{"$f":"VLOOKUP($B27,hyppy,J$3,FALSE)","v":0},{"$f":"VLOOKUP($B27,hyppy,K$3,FALSE)","v":""},{"$f":"VLOOKUP($B27,hyppy,L$3,FALSE)","v":0},{"$f":"(H27+L27)/2","v":0},null,""]
[24,25,{"$f":"VLOOKUP($B28,nimilista,2,FALSE)","v":"Anniina Rautiainen"},{"$f":"VLOOKUP($B28,nimilista,5,FALSE)","v":"Voimisteluseura Keski-Uusimaa"},{"$f":"VLOOKUP($B28,hyppy,E$3,FALSE)","v":0},{"$f":"VLOOKUP($B28,hyppy,F$3,FALSE)","v":0},{"$f":"VLOOKUP($B28,hyppy,G$3,FALSE)","v":""},{"$f":"VLOOKUP($B28,hyppy,H$3,FALSE)","v":0},{"$f":"VLOOKUP($B28,hyppy,I$3,FALSE)","v":0},{"$f":"VLOOKUP($B28,hyppy,J$3,FALSE)","v":0},{"$f":"VLOOKUP($B28,hyppy,K$3,FALSE)","v":""},{"$f":"VLOOKUP($B28,hyppy,L$3,FALSE)","v":0},{"$f":"(H28+L28)/2","v":0},null,""]
[25,26,{"$f":"VLOOKUP($B29,nimilista,2,FALSE)","v":"Maisa Anttilainen"},{"$f":"VLOOKUP($B29,nimilista,5,FALSE)","v":"Voimisteluseura Keski-Uusimaa"},{"$f":"VLOOKUP($B29,hyppy,E$3,FALSE)","v":0},{"$f":"VLOOKUP($B29,hyppy,F$3,FALSE)","v":0},{"$f":"VLOOKUP($B29,hyppy,G$3,FALSE)","v":""},{"$f":"VLOOKUP($B29,hyppy,H$3,FALSE)","v":0},{"$f":"VLOOKUP($B29,hyppy,I$3,FALSE)","v":0},{"$f":"VLOOKUP($B29,hyppy,J$3,FALSE)","v":0},{"$f":"VLOOKUP($B29,hyppy,K$3,FALSE)","v":""},{"$f":"VLOOKUP($B29,hyppy,L$3,FALSE)","v":0},{"$f":"(H29+L29)/2","v":0},null,""]
[26,27,{"$f":"VLOOKUP($B30,nimilista,2,FALSE)","v":"Julia Darlington"},{"$f":"VLOOKUP($B30,nimilista,5,FALSE)","v":"Voimisteluseura Kieppi"},{"$f":"VLOOKUP($B30,hyppy,E$3,FALSE)","v":0},{"$f":"VLOOKUP($B30,hyppy,F$3,FALSE)","v":0},{"$f":"VLOOKUP($B30,hyppy,G$3,FALSE)","v":""},{"$f":"VLOOKUP($B30,hyppy,H$3,FALSE)","v":0},{"$f":"VLOOKUP($B30,hyppy,I$3,FALSE)","v":0},{"$f":"VLOOKUP($B30,hyppy,J$3,FALSE)","v":0},{"$f":"VLOOKUP($B30,hyppy,K$3,FALSE)","v":""},{"$f":"VLOOKUP($B30,hyppy,L$3,FALSE)","v":0},{"$f":"(H30+L30)/2","v":0},null,""]
[27,28,{"$f":"VLOOKUP($B31,nimilista,2,FALSE)","v":"Patricia Hämäläinen"},{"$f":"VLOOKUP($B31,nimilista,5,FALSE)","v":"Voimisteluseura Kieppi"},{"$f":"VLOOKUP($B31,hyppy,E$3,FALSE)","v":0},{"$f":"VLOOKUP($B31,hyppy,F$3,FALSE)","v":0},{"$f":"VLOOKUP($B31,hyppy,G$3,FALSE)","v":""},{"$f":"VLOOKUP($B31,hyppy,H$3,FALSE)","v":0},{"$f":"VLOOKUP($B31,hyppy,I$3,FALSE)","v":0},{"$f":"VLOOKUP($B31,hyppy,J$3,FALSE)","v":0},{"$f":"VLOOKUP($B31,hyppy,K$3,FALSE)","v":""},{"$f":"VLOOKUP($B31,hyppy,L$3,FALSE)","v":0},{"$f":"(H31+L31)/2","v":0},null,""]
[]
[]
[]
[]
[]
[]
[]
[]
[]
[]
[]
[]
[]
[]
[]
[]
[]
[]
[]
[null,null,null,null,null,null,null,null,null,{"$f":"IF((H51=H50),IF((H51=0),\"\",\"tie\"),\"\")","v":""}]
[null,null,null,null,null,null,null,null,null,{"$f":"IF((H52=H51),IF((H52=0),\"\",\"tie\"),\"\")","v":""}]

{"sheet":"NojapuutT","index":11,"n_rows":52,"n_cols":10,"rows_kept":52,"cut":false,"hidden":false,"merged":[[1,6,1,7],[2,0,2,2]]}
[null,null,null,{"$f":"Tulostus!D1","v":"Suomen                            mestaruuskilpailut            Jyväskylä 15.4.2011"}]
[]
["Eritasonojapuut",null,null,{"$f":"tulosotsikko","v":"Tytöt,karsinta"},5,10,11,12]
[0,"Nr","Nimi","Seura","D","väh","E","Yhteensä"]
[1,6,{"$f":"VLOOKUP($B5,nimilista,2,FALSE)","v":"Nea Kinnunen"},{"$f":"VLOOKUP($B5,nimilista,5,FALSE)","v":"Alppilan Salamat"},{"$f":"VLOOKUP($B5,nojapuut,E$3,FALSE)","v":4},{"$f":"VLOOKUP($B5,nojapuut,F$3,FALSE)","v":0},{"$f":"VLOOKUP($B5,nojapuut,G$3,FALSE)","v":8.5},{"$f":"VLOOKUP($B5,nojapuut,H$3,FALSE)","v":12.5},null,{"$f":"IF((H5=H4),IF((H5=0),\"\",\"tie\"),\"\")","v":""}]
[2,2,{"$f":"VLOOKUP($B6,nimilista,2,FALSE)","v":"Camilla Lindén"},{"$f":"VLOOKUP($B6,nimilista,5,FALSE)","v":"Alppilan Salamat"},{"$f":"VLOOKUP($B6,nojapuut,E$3,FALSE)","v":0},{"$f":"VLOOKUP($B6,nojapuut,F$3,FALSE)","v":0},{"$f":"VLOOKUP($B6,nojapuut,G$3,FALSE)","v":""},{"$f":"VLOOKUP($B6,nojapuut,H$3,FALSE)","v":0},null,""]
[3,3,{"$f":"VLOOKUP($B7,nimilista,2,FALSE)","v":"Jenna Smedman"},{"$f":"VLOOKUP($B7,nimilista,5,FALSE)","v":"Alppilan Salamat"},{"$f":"VLOOKUP($B7,nojapuut,E$3,FALSE)","v":0},{"$f":"VLOOKUP($B7,nojapuut,F$3,FALSE)","v":0},{"$f":"VLOOKUP($B7,nojapuut,G$3,FALSE)","v":""},{"$f":"VLOOKUP($B7,nojapuut,H$3,FALSE)","v":0},null,""]
[4,4,{"$f":"VLOOKUP($B8,nimilista,2,FALSE)","v":"Maija Leinonen"},{"$f":"VLOOKUP($B8,nimilista,5,FALSE)","v":"Alppilan Salamat"},{"$f":"VLOOKUP($B8,nojapuut,E$3,FALSE)","v":0},{"$f":"VLOOKUP($B8,nojapuut,F$3,FALSE)","v":0},{"$f":"VLOOKUP($B8,nojapuut,G$3,FALSE)","v":""},{"$f":"VLOOKUP($B8,nojapuut,H$3,FALSE)","v":0},null,""]
[5,5,{"$f":"VLOOKUP($B9,nimilista,2,FALSE)","v":"Mari Anttila"},{"$f":"VLOOKUP($B9,nimilista,5,FALSE)","v":"Alppilan Salamat"},{"$f":"VLOOKUP($B9,nojapuut,E$3,FALSE)","v":0},{"$f":"VLOOKUP($B9,nojapuut,F$3,FALSE)","v":0},{"$f":"VLOOKUP($B9,nojapuut,G$3,FALSE)","v":""},{"$f":"VLOOKUP($B9,nojapuut,H$3,FALSE)","v":0},null,""]
[6,7,{"$f":"VLOOKUP($B10,nimilista,2,FALSE)","v":"Noora Knuutila"},{"$f":"VLOOKUP($B10,nimilista,5,FALSE)","v":"Alppilan Salamat"},{"$f":"VLOOKUP($B10,nojapuut,E$3,FALSE)","v":0},{"$f":"VLOOKUP($B10,nojapuut,F$3,FALSE)","v":0},{"$f":"VLOOKUP($B10,nojapuut,G$3,FALSE)","v":""},{"$f":"VLOOKUP($B10,nojapuut,H$3,FALSE)","v":0},null,""]
[7,8,{"$f":"VLOOKUP($B11,nimilista,2,FALSE)","v":"Tuuli Nyberg"},{"$f":"VLOOKUP($B11,nimilista,5,FALSE)","v":"Alppilan Salamat"},{"$f":"VLOOKUP($B11,nojapuut,E$3,FALSE)","v":0},{"$f":"VLOOKUP($B11,nojapuut,F$3,FALSE)","v":0},{"$f":"VLOOKUP($B11,nojapuut,G$3,FALSE)","v":""},{"$f":"VLOOKUP($B11,nojapuut,H$3,FALSE)","v":0},null,""]
[8,9,{"$f":"VLOOKUP($B12,nimilista,2,FALSE)","v":"Enna Herva"},{"$f":"VLOOKUP($B12,nimilista,5,FALSE)","v":"Oulun Pyrintö"},{"$f":"VLOOKUP($B12,nojapuut,E$3,FALSE)","v":0},{"$f":"VLOOKUP($B12,nojapuut,F$3,FALSE)","v":0},{"$f":"VLOOKUP($B12,nojapuut,G$3,FALSE)","v":""},{"$f":"VLOOKUP($B12,nojapuut,H$3,FALSE)","v":0},null,""]
[9,10,{"$f":"VLOOKUP($B13,nimilista,2,FALSE)","v":"Lili Granroth"},{"$f":"VLOOKUP($B13,nimilista,5,FALSE)","v":"Oulun Pyrintö"},{"$f":"VLOOKUP($B13,nojapuut,E$3,FALSE)","v":0},{"$f":"VLOOKUP($B13,nojapuut,F$3,FALSE)","v":0},{"$f":"VLOOKUP($B13,nojapuut,G$3,FALSE)","v":""},{"$f":"VLOOKUP($B13,nojapuut,H$3,FALSE)","v":0},null,""]
[10,11,{"$f":"VLOOKUP($B14,nimilista,2,FALSE)","v":"Anniina Muilu"},{"$f":"VLOOKUP($B14,nimilista,5,FALSE)","v":"Suomen Taitovoimistelu Klubi"},{"$f":"VLOOKUP($B14,nojapuut,E$3,FALSE)","v":0},{"$f":"VLOOKUP($B14,nojapuut,F$3,FALSE)","v":0},{"$f":"VLOOKUP($B14,nojapuut,G$3,FALSE)","v":""},{"$f":"VLOOKUP($B14,nojapuut,H$3,FALSE)","v":0},null,""]
[11,12,{"$f":"VLOOKUP($B15,nimilista,2,FALSE)","v":"Elina Ahmala"},{"$f":"VLOOKUP($B15,nimilista,5,FALSE)","v":"Suomen Taitovoimistelu Klubi"},{"$f":"VLOOKUP($B15,nojapuut,E$3,FALSE)","v":0},{"$f":"VLOOKUP($B15,nojapuut,F$3,FALSE)","v":0},{"$f":"VLOOKUP($B15,nojapuut,G$3,FALSE)","v":""},{"$f":"VLOOKUP($B15,nojapuut,H$3,FALSE)","v":0},null,""]
[12,13,{"$f":"VLOOKUP($B16,nimilista,2,FALSE)","v":"Maria Pakkanen"},{"$f":"VLOOKUP($B16,nimilista,5,FALSE)","v":"Suomen Taitovoimistelu Klubi"},{"$f":"VLOOKUP($B16,nojapuut,E$3,FALSE)","v":0},{"$f":"VLOOKUP($B16,nojapuut,F$3,FALSE)","v":0},{"$f":"VLOOKUP($B16,nojapuut,G$3,FALSE)","v":""},{"$f":"VLOOKUP($B16,nojapuut,H$3,FALSE)","v":0},null,""]
[13,14,{"$f":"VLOOKUP($B17,nimilista,2,FALSE)","v":"Saara Halme"},{"$f":"VLOOKUP($B17,nimilista,5,FALSE)","v":"Suomen Taitovoimistelu Klubi"},{"$f":"VLOOKUP($B17,nojapuut,E$3,FALSE)","v":0},{"$f":"VLOOKUP($B17,nojapuut,F$3,FALSE)","v":0},{"$f":"VLOOKUP($B17,nojapuut,G$3,FALSE)","v":""},{"$f":"VLOOKUP($B17,nojapuut,H$3,FALSE)","v":0},null,""]
[14,15,{"$f":"VLOOKUP($B18,nimilista,2,FALSE)","v":"Viivi Immonen"},{"$f":"VLOOKUP($B18,nimilista,5,FALSE)","v":"Suomen Taitovoimistelu Klubi"},{"$f":"VLOOKUP($B18,nojapuut,E$3,FALSE)","v":0},{"$f":"VLOOKUP($B18,nojapuut,F$3,FALSE)","v":0},{"$f":"VLOOKUP($B18,nojapuut,G$3,FALSE)","v":""},{"$f":"VLOOKUP($B18,nojapuut,H$3,FALSE)","v":0},null,""]
[15,16,{"$f":"VLOOKUP($B19,nimilista,2,FALSE)","v":"Adeliina Sulkanen"},{"$f":"VLOOKUP($B19,nimilista,5,FALSE)","v":"Tampereen Voimistelijat"},{"$f":"VLOOKUP($B19,nojapuut,E$3,FALSE)","v":0},{"$f":"VLOOKUP($B19,nojapuut,F$3,FALSE)","v":0},{"$f":"VLOOKUP($B19,nojapuut,G$3,FALSE)","v":""},{"$f":"VLOOKUP($B19,nojapuut,H$3,FALSE)","v":0},null,""]
[16,17,{"$f":"VLOOKUP($B20,nimilista,2,FALSE)","v":"Suvi Karumo"},{"$f":"VLOOKUP($B20,nimilista,5,FALSE)","v":"Tampereen Voimistelijat"},{"$f":"VLOOKUP($B20,nojapuut,E$3,FALSE)","v":0},{"$f":"VLOOKUP($B20,nojapuut,F$3,FALSE)","v":0},{"$f":"VLOOKUP($B20,nojapuut,G$3,FALSE)","v":""},{"$f":"VLOOKUP($B20,nojapuut,H$3,FALSE)","v":0},null,""]
[17,18,{"$f":"VLOOKUP($B21,nimilista,2,FALSE)","v":"Tiia Laisi"},{"$f":"VLOOKUP($B21,nimilista,5,FALSE)","v":"Tampereen Voimistelijat"},{"$f":"VLOOKUP($B21,nojapuut,E$3,FALSE)","v":0},{"$f":"VLOOKUP($B21,nojapuut,F$3,FALSE)","v":0},{"$f":"VLOOKUP($B21,nojapuut,G$3,FALSE)","v":""},{"$f":"VLOOKUP($B21,nojapuut,H$3,FALSE)","v":0},null,""]
[18,19,{"$f":"VLOOKUP($B22,nimilista,2,FALSE)","v":"Veronika Vuosjoki"},{"$f":"VLOOKUP($B22,nimilista,5,FALSE)","v":"Tampereen Voimistelijat"},{"$f":"VLOOKUP($B22,nojapuut,E$3,FALSE)","v":0},{"$f":"VLOOKUP($B22,nojapuut,F$3,FALSE)","v":0},{"$f":"VLOOKUP($B22,nojapuut,G$3,FALSE)","v":""},{"$f":"VLOOKUP($B22,nojapuut,H$3,FALSE)","v":0},null,""]
[19,20,{"$f":"VLOOKUP($B23,nimilista,2,FALSE)","v":"Alexandra Ivanova"},{"$f":"VLOOKUP($B23,nimilista,5,FALSE)","v":"Turun Pyrkivä"},{"$f":"VLOOKUP($B23,nojapuut,E$3,FALSE)","v":0},{"$f":"VLOOKUP($B23,nojapuut,F$3,FALSE)","v":0},{"$f":"VLOOKUP($B23,nojapuut,G$3,FALSE)","v":""},{"$f":"VLOOKUP($B23,nojapuut,H$3,FALSE)","v":0},null,""]
[20,21,{"$f":"VLOOKUP($B24,nimilista,2,FALSE)","v":"Victoria Jakaus"},{"$f":"VLOOKUP($B24,nimilista,5,FALSE)","v":"Turun Pyrkivä"},{"$f":"VLOOKUP($B24,nojapuut,E$3,FALSE)","v":0},{"$f":"VLOOKUP($B24,nojapuut,F$3,FALSE)","v":0},{"$f":"VLOOKUP($B24,nojapuut,G$3,FALSE)","v":""},{"$f":"VLOOKUP($B24,nojapuut,H$3,FALSE)","v":0},null,""]
[21,22,{"$f":"VLOOKUP($B25,nimilista,2,FALSE)","v":"Julia Jäkälä"},{"$f":"VLOOKUP($B25,nimilista,5,FALSE)","v":"Turun Urheiluliitto"},{"$f":"VLOOKUP($B25,nojapuut,E$3,FALSE)","v":0},{"$f":"VLOOKUP($B25,nojapuut,F$3,FALSE)","v":0},{"$f":"VLOOKUP($B25,nojapuut,G$3,FALSE)","v":""},{"$f":"VLOOKUP($B25,nojapuut,H$3,FALSE)","v":0},null,""]
[22,23,{"$f":"VLOOKUP($B26,nimilista,2,FALSE)","v":"Maria Åman"},{"$f":"VLOOKUP($B26,nimilista,5,FALSE)","v":"Turun Urheiluliitto"},{"$f":"VLOOKUP($B26,nojapuut,E$3,FALSE)","v":0},{"$f":"VLOOKUP($B26,nojapuut,F$3,FALSE)","v":0},{"$f":"VLOOKUP($B26,nojapuut,G$3,FALSE)","v":""},{"$f":"VLOOKUP($B26,nojapuut,H$3,FALSE)","v":0},null,""]
[23,24,{"$f":"VLOOKUP($B27,nimilista,2,FALSE)","v":"Miina Kokkonen"},{"$f":"VLOOKUP($B27,nimilista,5,FALSE)","v":"Turun Urheiluliitto"},{"$f":"VLOOKUP($B27,nojapuut,E$3,FALSE)","v":0},{"$f":"VLOOKUP($B27,nojapuut,F$3,FALSE)","v":0},{"$f":"VLOOKUP($B27,nojapuut,G$3,FALSE)","v":""},{"$f":"VLOOKUP($B27,nojapuut,H$3,FALSE)","v":0},null,""]
[24,25,{"$f":"VLOOKUP($B28,nimilista,2,FALSE)","v":"Anniina Rautiainen"},{"$f":"VLOOKUP($B28,nimilista,5,FALSE)","v":"Voimisteluseura Keski-Uusimaa"},{"$f":"VLOOKUP($B28,nojapuut,E$3,FALSE)","v":0},{"$f":"VLOOKUP($B28,nojapuut,F$3,FALSE)","v":0},{"$f":"VLOOKUP($B28,nojapuut,G$3,FALSE)","v":""},{"$f":"VLOOKUP($B28,nojapuut,H$3,FALSE)","v":0},null,""]
[25,26,{"$f":"VLOOKUP($B29,nimilista,2,FALSE)","v":"Maisa Anttilainen"},{"$f":"VLOOKUP($B29,nimilista,5,FALSE)","v":"Voimisteluseura Keski-Uusimaa"},{"$f":"VLOOKUP($B29,nojapuut,E$3,FALSE)","v":0},{"$f":"VLOOKUP($B29,nojapuut,F$3,FALSE)","v":0},{"$f":"VLOOKUP($B29,nojapuut,G$3,FALSE)","v":""},{"$f":"VLOOKUP($B29,nojapuut,H$3,FALSE)","v":0},null,""]
[26,27,{"$f":"VLOOKUP($B30,nimilista,2,FALSE)","v":"Julia Darlington"},{"$f":"VLOOKUP($B30,nimilista,5,FALSE)","v":"Voimisteluseura Kieppi"},{"$f":"VLOOKUP($B30,nojapuut,E$3,FALSE)","v":0},{"$f":"VLOOKUP($B30,nojapuut,F$3,FALSE)","v":0},{"$f":"VLOOKUP($B30,nojapuut,G$3,FALSE)","v":""},{"$f":"VLOOKUP($B30,nojapuut,H$3,FALSE)","v":0},null,""]
[27,28,{"$f":"VLOOKUP($B31,nimilista,2,FALSE)","v":"Patricia Hämäläinen"},{"$f":"VLOOKUP($B31,nimilista,5,FALSE)","v":"Voimisteluseura Kieppi"},{"$f":"VLOOKUP($B31,nojapuut,E$3,FALSE)","v":0},{"$f":"VLOOKUP($B31,nojapuut,F$3,FALSE)","v":0},{"$f":"VLOOKUP($B31,nojapuut,G$3,FALSE)","v":""},{"$f":"VLOOKUP($B31,nojapuut,H$3,FALSE)","v":0},null,""]
[]
[]
[]
[]
[]
[]
[null,null,null,null,null,null,null,null,null,""]
[null,null,null,null,null,null,null,null,null,""]
[null,null,null,null,null,null,null,null,null,""]
[null,null,null,null,null,null,null,null,null,""]
[null,null,null,null,null,null,null,null,null,""]
[null,null,null,null,null,null,null,null,null,""]
[null,null,null,null,null,null,null,null,null,""]
[null,null,null,null,null,null,null,null,null,""]
[null,null,null,null,null,null,null,null,null,""]
[null,null,null,null,null,null,null,null,null,""]
[null,null,null,null,null,null,null,null,null,""]
[null,null,null,null,null,null,null,null,null,""]
[null,null,null,null,null,null,null,null,null,""]
[null,null,null,null,null,null,null,null,null,""]
[null,null,null,null,null,null,null,null,null,""]

{"sheet":"PuomiT","index":12,"n_rows":52,"n_cols":10,"rows_kept":52,"cut":false,"hidden":false,"merged":[[1,6,1,7],[2,0,2,2]]}
[null,null,null,{"$f":"Tulostus!D1","v":"Suomen                            mestaruuskilpailut            Jyväskylä 15.4.2011"}]
[]
["Puomi",null,null,{"$f":"tulosotsikko","v":"Tytöt,karsinta"},5,10,11,12]
[0,"Nr","Nimi","Seura","D","väh","E","Yhteensä"]
[1,8,{"$f":"VLOOKUP($B5,nimilista,2,FALSE)","v":"Tuuli Nyberg"},{"$f":"VLOOKUP($B5,nimilista,5,FALSE)","v":"Alppilan Salamat"},{"$f":"VLOOKUP($B5,Puomi,E$3,FALSE)","v":1},{"$f":"VLOOKUP($B5,Puomi,F$3,FALSE)","v":1},{"$f":"VLOOKUP($B5,Puomi,G$3,FALSE)","v":9},{"$f":"VLOOKUP($B5,Puomi,H$3,FALSE)","v":9},null,{"$f":"IF((H5=H4),IF((H5=0),\"\",\"tie\"),\"\")","v":""}]
[2,2,{"$f":"VLOOKUP($B6,nimilista,2,FALSE)","v":"Camilla Lindén"},{"$f":"VLOOKUP($B6,nimilista,5,FALSE)","v":"Alppilan Salamat"},{"$f":"VLOOKUP($B6,Puomi,E$3,FALSE)","v":0},{"$f":"VLOOKUP($B6,Puomi,F$3,FALSE)","v":0},{"$f":"VLOOKUP($B6,Puomi,G$3,FALSE)","v":""},{"$f":"VLOOKUP($B6,Puomi,H$3,FALSE)","v":0},null,""]
[3,3,{"$f":"VLOOKUP($B7,nimilista,2,FALSE)","v":"Jenna Smedman"},{"$f":"VLOOKUP($B7,nimilista,5,FALSE)","v":"Alppilan Salamat"},{"$f":"VLOOKUP($B7,Puomi,E$3,FALSE)","v":0},{"$f":"VLOOKUP($B7,Puomi,F$3,FALSE)","v":0},{"$f":"VLOOKUP($B7,Puomi,G$3,FALSE)","v":""},{"$f":"VLOOKUP($B7,Puomi,H$3,FALSE)","v":0},null,""]
[4,4,{"$f":"VLOOKUP($B8,nimilista,2,FALSE)","v":"Maija Leinonen"},{"$f":"VLOOKUP($B8,nimilista,5,FALSE)","v":"Alppilan Salamat"},{"$f":"VLOOKUP($B8,Puomi,E$3,FALSE)","v":0},{"$f":"VLOOKUP($B8,Puomi,F$3,FALSE)","v":0},{"$f":"VLOOKUP($B8,Puomi,G$3,FALSE)","v":""},{"$f":"VLOOKUP($B8,Puomi,H$3,FALSE)","v":0},null,""]
[5,5,{"$f":"VLOOKUP($B9,nimilista,2,FALSE)","v":"Mari Anttila"},{"$f":"VLOOKUP($B9,nimilista,5,FALSE)","v":"Alppilan Salamat"},{"$f":"VLOOKUP($B9,Puomi,E$3,FALSE)","v":0},{"$f":"VLOOKUP($B9,Puomi,F$3,FALSE)","v":0},{"$f":"VLOOKUP($B9,Puomi,G$3,FALSE)","v":""},{"$f":"VLOOKUP($B9,Puomi,H$3,FALSE)","v":0},null,""]
[6,6,{"$f":"VLOOKUP($B10,nimilista,2,FALSE)","v":"Nea Kinnunen"},{"$f":"VLOOKUP($B10,nimilista,5,FALSE)","v":"Alppilan Salamat"},{"$f":"VLOOKUP($B10,Puomi,E$3,FALSE)","v":0},{"$f":"VLOOKUP($B10,Puomi,F$3,FALSE)","v":0},{"$f":"VLOOKUP($B10,Puomi,G$3,FALSE)","v":""},{"$f":"VLOOKUP($B10,Puomi,H$3,FALSE)","v":0},null,""]
[7,7,{"$f":"VLOOKUP($B11,nimilista,2,FALSE)","v":"Noora Knuutila"},{"$f":"VLOOKUP($B11,nimilista,5,FALSE)","v":"Alppilan Salamat"},{"$f":"VLOOKUP($B11,Puomi,E$3,FALSE)","v":0},{"$f":"VLOOKUP($B11,Puomi,F$3,FALSE)","v":0},{"$f":"VLOOKUP($B11,Puomi,G$3,FALSE)","v":""},{"$f":"VLOOKUP($B11,Puomi,H$3,FALSE)","v":0},null,""]
[8,9,{"$f":"VLOOKUP($B12,nimilista,2,FALSE)","v":"Enna Herva"},{"$f":"VLOOKUP($B12,nimilista,5,FALSE)","v":"Oulun Pyrintö"},{"$f":"VLOOKUP($B12,Puomi,E$3,FALSE)","v":0},{"$f":"VLOOKUP($B12,Puomi,F$3,FALSE)","v":0},{"$f":"VLOOKUP($B12,Puomi,G$3,FALSE)","v":""},{"$f":"VLOOKUP($B12,Puomi,H$3,FALSE)","v":0},null,""]
[9,10,{"$f":"VLOOKUP($B13,nimilista,2,FALSE)","v":"Lili Granroth"},{"$f":"VLOOKUP($B13,nimilista,5,FALSE)","v":"Oulun Pyrintö"},{"$f":"VLOOKUP($B13,Puomi,E$3,FALSE)","v":0},{"$f":"VLOOKUP($B13,Puomi,F$3,FALSE)","v":0},{"$f":"VLOOKUP($B13,Puomi,G$3,FALSE)","v":""},{"$f":"VLOOKUP($B13,Puomi,H$3,FALSE)","v":0},null,""]
[10,11,{"$f":"VLOOKUP($B14,nimilista,2,FALSE)","v":"Anniina Muilu"},{"$f":"VLOOKUP($B14,nimilista,5,FALSE)","v":"Suomen Taitovoimistelu Klubi"},{"$f":"VLOOKUP($B14,Puomi,E$3,FALSE)","v":0},{"$f":"VLOOKUP($B14,Puomi,F$3,FALSE)","v":0},{"$f":"VLOOKUP($B14,Puomi,G$3,FALSE)","v":""},{"$f":"VLOOKUP($B14,Puomi,H$3,FALSE)","v":0},null,""]
[11,12,{"$f":"VLOOKUP($B15,nimilista,2,FALSE)","v":"Elina Ahmala"},{"$f":"VLOOKUP($B15,nimilista,5,FALSE)","v":"Suomen Taitovoimistelu Klubi"},{"$f":"VLOOKUP($B15,Puomi,E$3,FALSE)","v":0},{"$f":"VLOOKUP($B15,Puomi,F$3,FALSE)","v":0},{"$f":"VLOOKUP($B15,Puomi,G$3,FALSE)","v":""},{"$f":"VLOOKUP($B15,Puomi,H$3,FALSE)","v":0},null,""]
[12,13,{"$f":"VLOOKUP($B16,nimilista,2,FALSE)","v":"Maria Pakkanen"},{"$f":"VLOOKUP($B16,nimilista,5,FALSE)","v":"Suomen Taitovoimistelu Klubi"},{"$f":"VLOOKUP($B16,Puomi,E$3,FALSE)","v":0},{"$f":"VLOOKUP($B16,Puomi,F$3,FALSE)","v":0},{"$f":"VLOOKUP($B16,Puomi,G$3,FALSE)","v":""},{"$f":"VLOOKUP($B16,Puomi,H$3,FALSE)","v":0},null,""]
[13,14,{"$f":"VLOOKUP($B17,nimilista,2,FALSE)","v":"Saara Halme"},{"$f":"VLOOKUP($B17,nimilista,5,FALSE)","v":"Suomen Taitovoimistelu Klubi"},{"$f":"VLOOKUP($B17,Puomi,E$3,FALSE)","v":0},{"$f":"VLOOKUP($B17,Puomi,F$3,FALSE)","v":0},{"$f":"VLOOKUP($B17,Puomi,G$3,FALSE)","v":""},{"$f":"VLOOKUP($B17,Puomi,H$3,FALSE)","v":0},null,""]
[14,15,{"$f":"VLOOKUP($B18,nimilista,2,FALSE)","v":"Viivi Immonen"},{"$f":"VLOOKUP($B18,nimilista,5,FALSE)","v":"Suomen Taitovoimistelu Klubi"},{"$f":"VLOOKUP($B18,Puomi,E$3,FALSE)","v":0},{"$f":"VLOOKUP($B18,Puomi,F$3,FALSE)","v":0},{"$f":"VLOOKUP($B18,Puomi,G$3,FALSE)","v":""},{"$f":"VLOOKUP($B18,Puomi,H$3,FALSE)","v":0},null,""]
[15,16,{"$f":"VLOOKUP($B19,nimilista,2,FALSE)","v":"Adeliina Sulkanen"},{"$f":"VLOOKUP($B19,nimilista,5,FALSE)","v":"Tampereen Voimistelijat"},{"$f":"VLOOKUP($B19,Puomi,E$3,FALSE)","v":0},{"$f":"VLOOKUP($B19,Puomi,F$3,FALSE)","v":0},{"$f":"VLOOKUP($B19,Puomi,G$3,FALSE)","v":""},{"$f":"VLOOKUP($B19,Puomi,H$3,FALSE)","v":0},null,""]
[16,17,{"$f":"VLOOKUP($B20,nimilista,2,FALSE)","v":"Suvi Karumo"},{"$f":"VLOOKUP($B20,nimilista,5,FALSE)","v":"Tampereen Voimistelijat"},{"$f":"VLOOKUP($B20,Puomi,E$3,FALSE)","v":0},{"$f":"VLOOKUP($B20,Puomi,F$3,FALSE)","v":0},{"$f":"VLOOKUP($B20,Puomi,G$3,FALSE)","v":""},{"$f":"VLOOKUP($B20,Puomi,H$3,FALSE)","v":0},null,""]
[17,18,{"$f":"VLOOKUP($B21,nimilista,2,FALSE)","v":"Tiia Laisi"},{"$f":"VLOOKUP($B21,nimilista,5,FALSE)","v":"Tampereen Voimistelijat"},{"$f":"VLOOKUP($B21,Puomi,E$3,FALSE)","v":0},{"$f":"VLOOKUP($B21,Puomi,F$3,FALSE)","v":0},{"$f":"VLOOKUP($B21,Puomi,G$3,FALSE)","v":""},{"$f":"VLOOKUP($B21,Puomi,H$3,FALSE)","v":0},null,""]
[18,19,{"$f":"VLOOKUP($B22,nimilista,2,FALSE)","v":"Veronika Vuosjoki"},{"$f":"VLOOKUP($B22,nimilista,5,FALSE)","v":"Tampereen Voimistelijat"},{"$f":"VLOOKUP($B22,Puomi,E$3,FALSE)","v":0},{"$f":"VLOOKUP($B22,Puomi,F$3,FALSE)","v":0},{"$f":"VLOOKUP($B22,Puomi,G$3,FALSE)","v":""},{"$f":"VLOOKUP($B22,Puomi,H$3,FALSE)","v":0},null,""]
[19,20,{"$f":"VLOOKUP($B23,nimilista,2,FALSE)","v":"Alexandra Ivanova"},{"$f":"VLOOKUP($B23,nimilista,5,FALSE)","v":"Turun Pyrkivä"},{"$f":"VLOOKUP($B23,Puomi,E$3,FALSE)","v":0},{"$f":"VLOOKUP($B23,Puomi,F$3,FALSE)","v":0},{"$f":"VLOOKUP($B23,Puomi,G$3,FALSE)","v":""},{"$f":"VLOOKUP($B23,Puomi,H$3,FALSE)","v":0},null,""]
[20,21,{"$f":"VLOOKUP($B24,nimilista,2,FALSE)","v":"Victoria Jakaus"},{"$f":"VLOOKUP($B24,nimilista,5,FALSE)","v":"Turun Pyrkivä"},{"$f":"VLOOKUP($B24,Puomi,E$3,FALSE)","v":0},{"$f":"VLOOKUP($B24,Puomi,F$3,FALSE)","v":0},{"$f":"VLOOKUP($B24,Puomi,G$3,FALSE)","v":""},{"$f":"VLOOKUP($B24,Puomi,H$3,FALSE)","v":0},null,""]
[21,22,{"$f":"VLOOKUP($B25,nimilista,2,FALSE)","v":"Julia Jäkälä"},{"$f":"VLOOKUP($B25,nimilista,5,FALSE)","v":"Turun Urheiluliitto"},{"$f":"VLOOKUP($B25,Puomi,E$3,FALSE)","v":0},{"$f":"VLOOKUP($B25,Puomi,F$3,FALSE)","v":0},{"$f":"VLOOKUP($B25,Puomi,G$3,FALSE)","v":""},{"$f":"VLOOKUP($B25,Puomi,H$3,FALSE)","v":0},null,""]
[22,23,{"$f":"VLOOKUP($B26,nimilista,2,FALSE)","v":"Maria Åman"},{"$f":"VLOOKUP($B26,nimilista,5,FALSE)","v":"Turun Urheiluliitto"},{"$f":"VLOOKUP($B26,Puomi,E$3,FALSE)","v":0},{"$f":"VLOOKUP($B26,Puomi,F$3,FALSE)","v":0},{"$f":"VLOOKUP($B26,Puomi,G$3,FALSE)","v":""},{"$f":"VLOOKUP($B26,Puomi,H$3,FALSE)","v":0},null,""]
[23,24,{"$f":"VLOOKUP($B27,nimilista,2,FALSE)","v":"Miina Kokkonen"},{"$f":"VLOOKUP($B27,nimilista,5,FALSE)","v":"Turun Urheiluliitto"},{"$f":"VLOOKUP($B27,Puomi,E$3,FALSE)","v":0},{"$f":"VLOOKUP($B27,Puomi,F$3,FALSE)","v":0},{"$f":"VLOOKUP($B27,Puomi,G$3,FALSE)","v":""},{"$f":"VLOOKUP($B27,Puomi,H$3,FALSE)","v":0},null,""]
[24,25,{"$f":"VLOOKUP($B28,nimilista,2,FALSE)","v":"Anniina Rautiainen"},{"$f":"VLOOKUP($B28,nimilista,5,FALSE)","v":"Voimisteluseura Keski-Uusimaa"},{"$f":"VLOOKUP($B28,Puomi,E$3,FALSE)","v":0},{"$f":"VLOOKUP($B28,Puomi,F$3,FALSE)","v":0},{"$f":"VLOOKUP($B28,Puomi,G$3,FALSE)","v":""},{"$f":"VLOOKUP($B28,Puomi,H$3,FALSE)","v":0},null,""]
[25,26,{"$f":"VLOOKUP($B29,nimilista,2,FALSE)","v":"Maisa Anttilainen"},{"$f":"VLOOKUP($B29,nimilista,5,FALSE)","v":"Voimisteluseura Keski-Uusimaa"},{"$f":"VLOOKUP($B29,Puomi,E$3,FALSE)","v":0},{"$f":"VLOOKUP($B29,Puomi,F$3,FALSE)","v":0},{"$f":"VLOOKUP($B29,Puomi,G$3,FALSE)","v":""},{"$f":"VLOOKUP($B29,Puomi,H$3,FALSE)","v":0},null,""]
[26,27,{"$f":"VLOOKUP($B30,nimilista,2,FALSE)","v":"Julia Darlington"},{"$f":"VLOOKUP($B30,nimilista,5,FALSE)","v":"Voimisteluseura Kieppi"},{"$f":"VLOOKUP($B30,Puomi,E$3,FALSE)","v":0},{"$f":"VLOOKUP($B30,Puomi,F$3,FALSE)","v":0},{"$f":"VLOOKUP($B30,Puomi,G$3,FALSE)","v":""},{"$f":"VLOOKUP($B30,Puomi,H$3,FALSE)","v":0},null,""]
[27,28,{"$f":"VLOOKUP($B31,nimilista,2,FALSE)","v":"Patricia Hämäläinen"},{"$f":"VLOOKUP($B31,nimilista,5,FALSE)","v":"Voimisteluseura Kieppi"},{"$f":"VLOOKUP($B31,Puomi,E$3,FALSE)","v":0},{"$f":"VLOOKUP($B31,Puomi,F$3,FALSE)","v":0},{"$f":"VLOOKUP($B31,Puomi,G$3,FALSE)","v":""},{"$f":"VLOOKUP($B31,Puomi,H$3,FALSE)","v":0},null,""]
[]
[]
[]
[]
[]
[]
[null,null,null,null,null,null,null,null,null,""]
[null,null,null,null,null,null,null,null,null,""]
[null,null,null,null,null,null,null,null,null,""]
[null,null,null,null,null,null,null,null,null,""]
[null,null,null,null,null,null,null,null,null,""]
[null,null,null,null,null,null,null,null,null,""]
[null,null,null,null,null,null,null,null,null,""]
[null,null,null,null,null,null,null,null,null,""]
[null,null,null,null,null,null,null,null,null,""]
[null,null,null,null,null,null,null,null,null,""]
[null,null,null,null,null,null,null,null,null,""]
[null,null,null,null,null,null,null,null,null,""]
[null,null,null,null,null,null,null,null,null,""]
[null,null,null,null,null,null,null,null,null,""]
[null,null,null,null,null,null,null,null,null,""]

{"sheet":"PermantoT","index":13,"n_rows":31,"n_cols":10,"rows_kept":31,"cut":false,"hidden":false,"merged":[[1,6,1,7],[1,10,1,11],[1,14,1,15],[2,0,2,2]]}
[null,null,null,{"$f":"Tulostus!D1","v":"Suomen                            mestaruuskilpailut            Jyväskylä 15.4.2011"}]
[]
["Permanto",null,null,{"$f":"tulosotsikko","v":"Tytöt,karsinta"},5,10,11,12]
[0,"Nr","Nimi","Seura","D","väh","E","Yhteensä"]
[1,12,{"$f":"VLOOKUP($B5,nimilista,2,FALSE)","v":"Elina Ahmala"},{"$f":"VLOOKUP($B5,nimilista,5,FALSE)","v":"Suomen Taitovoimistelu Klubi"},{"$f":"VLOOKUP($B5,permanto,E$3,FALSE)","v":5},{"$f":"VLOOKUP($B5,permanto,F$3,FALSE)","v":1},{"$f":"VLOOKUP($B5,permanto,G$3,FALSE)","v":9},{"$f":"VLOOKUP($B5,permanto,H$3,FALSE)","v":13},null,{"$f":"IF((H5=H4),IF((H5=0),\"\",\"tie\"),\"\")","v":""}]
[2,2,{"$f":"VLOOKUP($B6,nimilista,2,FALSE)","v":"Camilla Lindén"},{"$f":"VLOOKUP($B6,nimilista,5,FALSE)","v":"Alppilan Salamat"},{"$f":"VLOOKUP($B6,permanto,E$3,FALSE)","v":0},{"$f":"VLOOKUP($B6,permanto,F$3,FALSE)","v":0},{"$f":"VLOOKUP($B6,permanto,G$3,FALSE)","v":""},{"$f":"VLOOKUP($B6,permanto,H$3,FALSE)","v":0},null,""]
[3,3,{"$f":"VLOOKUP($B7,nimilista,2,FALSE)","v":"Jenna Smedman"},{"$f":"VLOOKUP($B7,nimilista,5,FALSE)","v":"Alppilan Salamat"},{"$f":"VLOOKUP($B7,permanto,E$3,FALSE)","v":0},{"$f":"VLOOKUP($B7,permanto,F$3,FALSE)","v":0},{"$f":"VLOOKUP($B7,permanto,G$3,FALSE)","v":""},{"$f":"VLOOKUP($B7,permanto,H$3,FALSE)","v":0},null,""]
[4,4,{"$f":"VLOOKUP($B8,nimilista,2,FALSE)","v":"Maija Leinonen"},{"$f":"VLOOKUP($B8,nimilista,5,FALSE)","v":"Alppilan Salamat"},{"$f":"VLOOKUP($B8,permanto,E$3,FALSE)","v":0},{"$f":"VLOOKUP($B8,permanto,F$3,FALSE)","v":0},{"$f":"VLOOKUP($B8,permanto,G$3,FALSE)","v":""},{"$f":"VLOOKUP($B8,permanto,H$3,FALSE)","v":0},null,""]
[5,5,{"$f":"VLOOKUP($B9,nimilista,2,FALSE)","v":"Mari Anttila"},{"$f":"VLOOKUP($B9,nimilista,5,FALSE)","v":"Alppilan Salamat"},{"$f":"VLOOKUP($B9,permanto,E$3,FALSE)","v":0},{"$f":"VLOOKUP($B9,permanto,F$3,FALSE)","v":0},{"$f":"VLOOKUP($B9,permanto,G$3,FALSE)","v":""},{"$f":"VLOOKUP($B9,permanto,H$3,FALSE)","v":0},null,""]
[6,6,{"$f":"VLOOKUP($B10,nimilista,2,FALSE)","v":"Nea Kinnunen"},{"$f":"VLOOKUP($B10,nimilista,5,FALSE)","v":"Alppilan Salamat"},{"$f":"VLOOKUP($B10,permanto,E$3,FALSE)","v":0},{"$f":"VLOOKUP($B10,permanto,F$3,FALSE)","v":0},{"$f":"VLOOKUP($B10,permanto,G$3,FALSE)","v":""},{"$f":"VLOOKUP($B10,permanto,H$3,FALSE)","v":0},null,""]
[7,7,{"$f":"VLOOKUP($B11,nimilista,2,FALSE)","v":"Noora Knuutila"},{"$f":"VLOOKUP($B11,nimilista,5,FALSE)","v":"Alppilan Salamat"},{"$f":"VLOOKUP($B11,permanto,E$3,FALSE)","v":0},{"$f":"VLOOKUP($B11,permanto,F$3,FALSE)","v":0},{"$f":"VLOOKUP($B11,permanto,G$3,FALSE)","v":""},{"$f":"VLOOKUP($B11,permanto,H$3,FALSE)","v":0},null,""]
[8,8,{"$f":"VLOOKUP($B12,nimilista,2,FALSE)","v":"Tuuli Nyberg"},{"$f":"VLOOKUP($B12,nimilista,5,FALSE)","v":"Alppilan Salamat"},{"$f":"VLOOKUP($B12,permanto,E$3,FALSE)","v":0},{"$f":"VLOOKUP($B12,permanto,F$3,FALSE)","v":0},{"$f":"VLOOKUP($B12,permanto,G$3,FALSE)","v":""},{"$f":"VLOOKUP($B12,permanto,H$3,FALSE)","v":0},null,""]
[9,9,{"$f":"VLOOKUP($B13,nimilista,2,FALSE)","v":"Enna Herva"},{"$f":"VLOOKUP($B13,nimilista,5,FALSE)","v":"Oulun Pyrintö"},{"$f":"VLOOKUP($B13,permanto,E$3,FALSE)","v":0},{"$f":"VLOOKUP($B13,permanto,F$3,FALSE)","v":0},{"$f":"VLOOKUP($B13,permanto,G$3,FALSE)","v":""},{"$f":"VLOOKUP($B13,permanto,H$3,FALSE)","v":0},null,""]
[10,10,{"$f":"VLOOKUP($B14,nimilista,2,FALSE)","v":"Lili Granroth"},{"$f":"VLOOKUP($B14,nimilista,5,FALSE)","v":"Oulun Pyrintö"},{"$f":"VLOOKUP($B14,permanto,E$3,FALSE)","v":0},{"$f":"VLOOKUP($B14,permanto,F$3,FALSE)","v":0},{"$f":"VLOOKUP($B14,permanto,G$3,FALSE)","v":""},{"$f":"VLOOKUP($B14,permanto,H$3,FALSE)","v":0},null,""]
[11,11,{"$f":"VLOOKUP($B15,nimilista,2,FALSE)","v":"Anniina Muilu"},{"$f":"VLOOKUP($B15,nimilista,5,FALSE)","v":"Suomen Taitovoimistelu Klubi"},{"$f":"VLOOKUP($B15,permanto,E$3,FALSE)","v":0},{"$f":"VLOOKUP($B15,permanto,F$3,FALSE)","v":0},{"$f":"VLOOKUP($B15,permanto,G$3,FALSE)","v":""},{"$f":"VLOOKUP($B15,permanto,H$3,FALSE)","v":0},null,""]
[12,13,{"$f":"VLOOKUP($B16,nimilista,2,FALSE)","v":"Maria Pakkanen"},{"$f":"VLOOKUP($B16,nimilista,5,FALSE)","v":"Suomen Taitovoimistelu Klubi"},{"$f":"VLOOKUP($B16,permanto,E$3,FALSE)","v":0},{"$f":"VLOOKUP($B16,permanto,F$3,FALSE)","v":0},{"$f":"VLOOKUP($B16,permanto,G$3,FALSE)","v":""},{"$f":"VLOOKUP($B16,permanto,H$3,FALSE)","v":0},null,""]
[13,14,{"$f":"VLOOKUP($B17,nimilista,2,FALSE)","v":"Saara Halme"},{"$f":"VLOOKUP($B17,nimilista,5,FALSE)","v":"Suomen Taitovoimistelu Klubi"},{"$f":"VLOOKUP($B17,permanto,E$3,FALSE)","v":0},{"$f":"VLOOKUP($B17,permanto,F$3,FALSE)","v":0},{"$f":"VLOOKUP($B17,permanto,G$3,FALSE)","v":""},{"$f":"VLOOKUP($B17,permanto,H$3,FALSE)","v":0},null,""]
[14,15,{"$f":"VLOOKUP($B18,nimilista,2,FALSE)","v":"Viivi Immonen"},{"$f":"VLOOKUP($B18,nimilista,5,FALSE)","v":"Suomen Taitovoimistelu Klubi"},{"$f":"VLOOKUP($B18,permanto,E$3,FALSE)","v":0},{"$f":"VLOOKUP($B18,permanto,F$3,FALSE)","v":0},{"$f":"VLOOKUP($B18,permanto,G$3,FALSE)","v":""},{"$f":"VLOOKUP($B18,permanto,H$3,FALSE)","v":0},null,""]
[15,16,{"$f":"VLOOKUP($B19,nimilista,2,FALSE)","v":"Adeliina Sulkanen"},{"$f":"VLOOKUP($B19,nimilista,5,FALSE)","v":"Tampereen Voimistelijat"},{"$f":"VLOOKUP($B19,permanto,E$3,FALSE)","v":0},{"$f":"VLOOKUP($B19,permanto,F$3,FALSE)","v":0},{"$f":"VLOOKUP($B19,permanto,G$3,FALSE)","v":""},{"$f":"VLOOKUP($B19,permanto,H$3,FALSE)","v":0},null,""]
[16,17,{"$f":"VLOOKUP($B20,nimilista,2,FALSE)","v":"Suvi Karumo"},{"$f":"VLOOKUP($B20,nimilista,5,FALSE)","v":"Tampereen Voimistelijat"},{"$f":"VLOOKUP($B20,permanto,E$3,FALSE)","v":0},{"$f":"VLOOKUP($B20,permanto,F$3,FALSE)","v":0},{"$f":"VLOOKUP($B20,permanto,G$3,FALSE)","v":""},{"$f":"VLOOKUP($B20,permanto,H$3,FALSE)","v":0},null,""]
[17,18,{"$f":"VLOOKUP($B21,nimilista,2,FALSE)","v":"Tiia Laisi"},{"$f":"VLOOKUP($B21,nimilista,5,FALSE)","v":"Tampereen Voimistelijat"},{"$f":"VLOOKUP($B21,permanto,E$3,FALSE)","v":0},{"$f":"VLOOKUP($B21,permanto,F$3,FALSE)","v":0},{"$f":"VLOOKUP($B21,permanto,G$3,FALSE)","v":""},{"$f":"VLOOKUP($B21,permanto,H$3,FALSE)","v":0},null,""]
[18,19,{"$f":"VLOOKUP($B22,nimilista,2,FALSE)","v":"Veronika Vuosjoki"},{"$f":"VLOOKUP($B22,nimilista,5,FALSE)","v":"Tampereen Voimistelijat"},{"$f":"VLOOKUP($B22,permanto,E$3,FALSE)","v":0},{"$f":"VLOOKUP($B22,permanto,F$3,FALSE)","v":0},{"$f":"VLOOKUP($B22,permanto,G$3,FALSE)","v":""},{"$f":"VLOOKUP($B22,permanto,H$3,FALSE)","v":0},null,""]
[19,20,{"$f":"VLOOKUP($B23,nimilista,2,FALSE)","v":"Alexandra Ivanova"},{"$f":"VLOOKUP($B23,nimilista,5,FALSE)","v":"Turun Pyrkivä"},{"$f":"VLOOKUP($B23,permanto,E$3,FALSE)","v":0},{"$f":"VLOOKUP($B23,permanto,F$3,FALSE)","v":0},{"$f":"VLOOKUP($B23,permanto,G$3,FALSE)","v":""},{"$f":"VLOOKUP($B23,permanto,H$3,FALSE)","v":0},null,""]
[20,21,{"$f":"VLOOKUP($B24,nimilista,2,FALSE)","v":"Victoria Jakaus"},{"$f":"VLOOKUP($B24,nimilista,5,FALSE)","v":"Turun Pyrkivä"},{"$f":"VLOOKUP($B24,permanto,E$3,FALSE)","v":0},{"$f":"VLOOKUP($B24,permanto,F$3,FALSE)","v":0},{"$f":"VLOOKUP($B24,permanto,G$3,FALSE)","v":""},{"$f":"VLOOKUP($B24,permanto,H$3,FALSE)","v":0},null,""]
[21,22,{"$f":"VLOOKUP($B25,nimilista,2,FALSE)","v":"Julia Jäkälä"},{"$f":"VLOOKUP($B25,nimilista,5,FALSE)","v":"Turun Urheiluliitto"},{"$f":"VLOOKUP($B25,permanto,E$3,FALSE)","v":0},{"$f":"VLOOKUP($B25,permanto,F$3,FALSE)","v":0},{"$f":"VLOOKUP($B25,permanto,G$3,FALSE)","v":""},{"$f":"VLOOKUP($B25,permanto,H$3,FALSE)","v":0},null,""]
[22,23,{"$f":"VLOOKUP($B26,nimilista,2,FALSE)","v":"Maria Åman"},{"$f":"VLOOKUP($B26,nimilista,5,FALSE)","v":"Turun Urheiluliitto"},{"$f":"VLOOKUP($B26,permanto,E$3,FALSE)","v":0},{"$f":"VLOOKUP($B26,permanto,F$3,FALSE)","v":0},{"$f":"VLOOKUP($B26,permanto,G$3,FALSE)","v":""},{"$f":"VLOOKUP($B26,permanto,H$3,FALSE)","v":0},null,""]
[23,24,{"$f":"VLOOKUP($B27,nimilista,2,FALSE)","v":"Miina Kokkonen"},{"$f":"VLOOKUP($B27,nimilista,5,FALSE)","v":"Turun Urheiluliitto"},{"$f":"VLOOKUP($B27,permanto,E$3,FALSE)","v":0},{"$f":"VLOOKUP($B27,permanto,F$3,FALSE)","v":0},{"$f":"VLOOKUP($B27,permanto,G$3,FALSE)","v":""},{"$f":"VLOOKUP($B27,permanto,H$3,FALSE)","v":0},null,""]
[24,25,{"$f":"VLOOKUP($B28,nimilista,2,FALSE)","v":"Anniina Rautiainen"},{"$f":"VLOOKUP($B28,nimilista,5,FALSE)","v":"Voimisteluseura Keski-Uusimaa"},{"$f":"VLOOKUP($B28,permanto,E$3,FALSE)","v":0},{"$f":"VLOOKUP($B28,permanto,F$3,FALSE)","v":0},{"$f":"VLOOKUP($B28,permanto,G$3,FALSE)","v":""},{"$f":"VLOOKUP($B28,permanto,H$3,FALSE)","v":0},null,""]
[25,26,{"$f":"VLOOKUP($B29,nimilista,2,FALSE)","v":"Maisa Anttilainen"},{"$f":"VLOOKUP($B29,nimilista,5,FALSE)","v":"Voimisteluseura Keski-Uusimaa"},{"$f":"VLOOKUP($B29,permanto,E$3,FALSE)","v":0},{"$f":"VLOOKUP($B29,permanto,F$3,FALSE)","v":0},{"$f":"VLOOKUP($B29,permanto,G$3,FALSE)","v":""},{"$f":"VLOOKUP($B29,permanto,H$3,FALSE)","v":0},null,""]
[26,27,{"$f":"VLOOKUP($B30,nimilista,2,FALSE)","v":"Julia Darlington"},{"$f":"VLOOKUP($B30,nimilista,5,FALSE)","v":"Voimisteluseura Kieppi"},{"$f":"VLOOKUP($B30,permanto,E$3,FALSE)","v":0},{"$f":"VLOOKUP($B30,permanto,F$3,FALSE)","v":0},{"$f":"VLOOKUP($B30,permanto,G$3,FALSE)","v":""},{"$f":"VLOOKUP($B30,permanto,H$3,FALSE)","v":0},null,""]
[27,28,{"$f":"VLOOKUP($B31,nimilista,2,FALSE)","v":"Patricia Hämäläinen"},{"$f":"VLOOKUP($B31,nimilista,5,FALSE)","v":"Voimisteluseura Kieppi"},{"$f":"VLOOKUP($B31,permanto,E$3,FALSE)","v":0},{"$f":"VLOOKUP($B31,permanto,F$3,FALSE)","v":0},{"$f":"VLOOKUP($B31,permanto,G$3,FALSE)","v":""},{"$f":"VLOOKUP($B31,permanto,H$3,FALSE)","v":0},null,""]

{"sheet":"RekkiT","index":14,"n_rows":52,"n_cols":10,"rows_kept":52,"cut":false,"hidden":false,"merged":[[1,6,1,7],[2,0,2,2]]}
[null,null,null,{"$f":"Tulostus!D1","v":"Suomen                            mestaruuskilpailut            Jyväskylä 15.4.2011"}]
[]
["Rekki",null,null,{"$f":"tulosotsikko","v":"Tytöt,karsinta"},5,10,11,12]
[0,"Nr","Nimi","Seura","D","väh","E","Yhteensä"]
[1,2,{"$f":"VLOOKUP($B5,nimilista,2,FALSE)","v":"Camilla Lindén"},{"$f":"VLOOKUP($B5,nimilista,5,FALSE)","v":"Alppilan Salamat"},{"$f":"VLOOKUP($B5,rekki,E$3,FALSE)","v":0},{"$f":"VLOOKUP($B5,rekki,F$3,FALSE)","v":0},{"$f":"VLOOKUP($B5,rekki,G$3,FALSE)","v":""},{"$f":"VLOOKUP($B5,rekki,H$3,FALSE)","v":0},null,{"$f":"IF((H5=H4),IF((H5=0),\"\",\"tie\"),\"\")","v":""}]
[2,3,{"$f":"VLOOKUP($B6,nimilista,2,FALSE)","v":"Jenna Smedman"},{"$f":"VLOOKUP($B6,nimilista,5,FALSE)","v":"Alppilan Salamat"},{"$f":"VLOOKUP($B6,rekki,E$3,FALSE)","v":0},{"$f":"VLOOKUP($B6,rekki,F$3,FALSE)","v":0},{"$f":"VLOOKUP($B6,rekki,G$3,FALSE)","v":""},{"$f":"VLOOKUP($B6,rekki,H$3,FALSE)","v":0},null,""]
[3,4,{"$f":"VLOOKUP($B7,nimilista,2,FALSE)","v":"Maija Leinonen"},{"$f":"VLOOKUP($B7,nimilista,5,FALSE)","v":"Alppilan Salamat"},{"$f":"VLOOKUP($B7,rekki,E$3,FALSE)","v":0},{"$f":"VLOOKUP($B7,rekki,F$3,FALSE)","v":0},{"$f":"VLOOKUP($B7,rekki,G$3,FALSE)","v":""},{"$f":"VLOOKUP($B7,rekki,H$3,FALSE)","v":0},null,""]
[4,5,{"$f":"VLOOKUP($B8,nimilista,2,FALSE)","v":"Mari Anttila"},{"$f":"VLOOKUP($B8,nimilista,5,FALSE)","v":"Alppilan Salamat"},{"$f":"VLOOKUP($B8,rekki,E$3,FALSE)","v":0},{"$f":"VLOOKUP($B8,rekki,F$3,FALSE)","v":0},{"$f":"VLOOKUP($B8,rekki,G$3,FALSE)","v":""},{"$f":"VLOOKUP($B8,rekki,H$3,FALSE)","v":0},null,""]
[5,6,{"$f":"VLOOKUP($B9,nimilista,2,FALSE)","v":"Nea Kinnunen"},{"$f":"VLOOKUP($B9,nimilista,5,FALSE)","v":"Alppilan Salamat"},{"$f":"VLOOKUP($B9,rekki,E$3,FALSE)","v":0},{"$f":"VLOOKUP($B9,rekki,F$3,FALSE)","v":0},{"$f":"VLOOKUP($B9,rekki,G$3,FALSE)","v":""},{"$f":"VLOOKUP($B9,rekki,H$3,FALSE)","v":0},null,""]
[6,7,{"$f":"VLOOKUP($B10,nimilista,2,FALSE)","v":"Noora Knuutila"},{"$f":"VLOOKUP($B10,nimilista,5,FALSE)","v":"Alppilan Salamat"},{"$f":"VLOOKUP($B10,rekki,E$3,FALSE)","v":0},{"$f":"VLOOKUP($B10,rekki,F$3,FALSE)","v":0},{"$f":"VLOOKUP($B10,rekki,G$3,FALSE)","v":""},{"$f":"VLOOKUP($B10,rekki,H$3,FALSE)","v":0},null,""]
[7,8,{"$f":"VLOOKUP($B11,nimilista,2,FALSE)","v":"Tuuli Nyberg"},{"$f":"VLOOKUP($B11,nimilista,5,FALSE)","v":"Alppilan Salamat"},{"$f":"VLOOKUP($B11,rekki,E$3,FALSE)","v":0},{"$f":"VLOOKUP($B11,rekki,F$3,FALSE)","v":0},{"$f":"VLOOKUP($B11,rekki,G$3,FALSE)","v":""},{"$f":"VLOOKUP($B11,rekki,H$3,FALSE)","v":0},null,""]
[8,9,{"$f":"VLOOKUP($B12,nimilista,2,FALSE)","v":"Enna Herva"},{"$f":"VLOOKUP($B12,nimilista,5,FALSE)","v":"Oulun Pyrintö"},{"$f":"VLOOKUP($B12,rekki,E$3,FALSE)","v":0},{"$f":"VLOOKUP($B12,rekki,F$3,FALSE)","v":0},{"$f":"VLOOKUP($B12,rekki,G$3,FALSE)","v":""},{"$f":"VLOOKUP($B12,rekki,H$3,FALSE)","v":0},null,""]
[9,10,{"$f":"VLOOKUP($B13,nimilista,2,FALSE)","v":"Lili Granroth"},{"$f":"VLOOKUP($B13,nimilista,5,FALSE)","v":"Oulun Pyrintö"},{"$f":"VLOOKUP($B13,rekki,E$3,FALSE)","v":0},{"$f":"VLOOKUP($B13,rekki,F$3,FALSE)","v":0},{"$f":"VLOOKUP($B13,rekki,G$3,FALSE)","v":""},{"$f":"VLOOKUP($B13,rekki,H$3,FALSE)","v":0},null,""]
[10,11,{"$f":"VLOOKUP($B14,nimilista,2,FALSE)","v":"Anniina Muilu"},{"$f":"VLOOKUP($B14,nimilista,5,FALSE)","v":"Suomen Taitovoimistelu Klubi"},{"$f":"VLOOKUP($B14,rekki,E$3,FALSE)","v":0},{"$f":"VLOOKUP($B14,rekki,F$3,FALSE)","v":0},{"$f":"VLOOKUP($B14,rekki,G$3,FALSE)","v":""},{"$f":"VLOOKUP($B14,rekki,H$3,FALSE)","v":0},null,""]
[11,12,{"$f":"VLOOKUP($B15,nimilista,2,FALSE)","v":"Elina Ahmala"},{"$f":"VLOOKUP($B15,nimilista,5,FALSE)","v":"Suomen Taitovoimistelu Klubi"},{"$f":"VLOOKUP($B15,rekki,E$3,FALSE)","v":0},{"$f":"VLOOKUP($B15,rekki,F$3,FALSE)","v":0},{"$f":"VLOOKUP($B15,rekki,G$3,FALSE)","v":""},{"$f":"VLOOKUP($B15,rekki,H$3,FALSE)","v":0},null,""]
[12,13,{"$f":"VLOOKUP($B16,nimilista,2,FALSE)","v":"Maria Pakkanen"},{"$f":"VLOOKUP($B16,nimilista,5,FALSE)","v":"Suomen Taitovoimistelu Klubi"},{"$f":"VLOOKUP($B16,rekki,E$3,FALSE)","v":0},{"$f":"VLOOKUP($B16,rekki,F$3,FALSE)","v":0},{"$f":"VLOOKUP($B16,rekki,G$3,FALSE)","v":""},{"$f":"VLOOKUP($B16,rekki,H$3,FALSE)","v":0},null,""]
[13,14,{"$f":"VLOOKUP($B17,nimilista,2,FALSE)","v":"Saara Halme"},{"$f":"VLOOKUP($B17,nimilista,5,FALSE)","v":"Suomen Taitovoimistelu Klubi"},{"$f":"VLOOKUP($B17,rekki,E$3,FALSE)","v":0},{"$f":"VLOOKUP($B17,rekki,F$3,FALSE)","v":0},{"$f":"VLOOKUP($B17,rekki,G$3,FALSE)","v":""},{"$f":"VLOOKUP($B17,rekki,H$3,FALSE)","v":0},null,""]
[14,15,{"$f":"VLOOKUP($B18,nimilista,2,FALSE)","v":"Viivi Immonen"},{"$f":"VLOOKUP($B18,nimilista,5,FALSE)","v":"Suomen Taitovoimistelu Klubi"},{"$f":"VLOOKUP($B18,rekki,E$3,FALSE)","v":0},{"$f":"VLOOKUP($B18,rekki,F$3,FALSE)","v":0},{"$f":"VLOOKUP($B18,rekki,G$3,FALSE)","v":""},{"$f":"VLOOKUP($B18,rekki,H$3,FALSE)","v":0},null,""]
[15,16,{"$f":"VLOOKUP($B19,nimilista,2,FALSE)","v":"Adeliina Sulkanen"},{"$f":"VLOOKUP($B19,nimilista,5,FALSE)","v":"Tampereen Voimistelijat"},{"$f":"VLOOKUP($B19,rekki,E$3,FALSE)","v":0},{"$f":"VLOOKUP($B19,rekki,F$3,FALSE)","v":0},{"$f":"VLOOKUP($B19,rekki,G$3,FALSE)","v":""},{"$f":"VLOOKUP($B19,rekki,H$3,FALSE)","v":0},null,""]
[16,17,{"$f":"VLOOKUP($B20,nimilista,2,FALSE)","v":"Suvi Karumo"},{"$f":"VLOOKUP($B20,nimilista,5,FALSE)","v":"Tampereen Voimistelijat"},{"$f":"VLOOKUP($B20,rekki,E$3,FALSE)","v":0},{"$f":"VLOOKUP($B20,rekki,F$3,FALSE)","v":0},{"$f":"VLOOKUP($B20,rekki,G$3,FALSE)","v":""},{"$f":"VLOOKUP($B20,rekki,H$3,FALSE)","v":0},null,""]
[17,18,{"$f":"VLOOKUP($B21,nimilista,2,FALSE)","v":"Tiia Laisi"},{"$f":"VLOOKUP($B21,nimilista,5,FALSE)","v":"Tampereen Voimistelijat"},{"$f":"VLOOKUP($B21,rekki,E$3,FALSE)","v":0},{"$f":"VLOOKUP($B21,rekki,F$3,FALSE)","v":0},{"$f":"VLOOKUP($B21,rekki,G$3,FALSE)","v":""},{"$f":"VLOOKUP($B21,rekki,H$3,FALSE)","v":0},null,""]
[18,19,{"$f":"VLOOKUP($B22,nimilista,2,FALSE)","v":"Veronika Vuosjoki"},{"$f":"VLOOKUP($B22,nimilista,5,FALSE)","v":"Tampereen Voimistelijat"},{"$f":"VLOOKUP($B22,rekki,E$3,FALSE)","v":0},{"$f":"VLOOKUP($B22,rekki,F$3,FALSE)","v":0},{"$f":"VLOOKUP($B22,rekki,G$3,FALSE)","v":""},{"$f":"VLOOKUP($B22,rekki,H$3,FALSE)","v":0},null,""]
[19,20,{"$f":"VLOOKUP($B23,nimilista,2,FALSE)","v":"Alexandra Ivanova"},{"$f":"VLOOKUP($B23,nimilista,5,FALSE)","v":"Turun Pyrkivä"},{"$f":"VLOOKUP($B23,rekki,E$3,FALSE)","v":0},{"$f":"VLOOKUP($B23,rekki,F$3,FALSE)","v":0},{"$f":"VLOOKUP($B23,rekki,G$3,FALSE)","v":""},{"$f":"VLOOKUP($B23,rekki,H$3,FALSE)","v":0},null,""]
[20,21,{"$f":"VLOOKUP($B24,nimilista,2,FALSE)","v":"Victoria Jakaus"},{"$f":"VLOOKUP($B24,nimilista,5,FALSE)","v":"Turun Pyrkivä"},{"$f":"VLOOKUP($B24,rekki,E$3,FALSE)","v":0},{"$f":"VLOOKUP($B24,rekki,F$3,FALSE)","v":0},{"$f":"VLOOKUP($B24,rekki,G$3,FALSE)","v":""},{"$f":"VLOOKUP($B24,rekki,H$3,FALSE)","v":0},null,""]
[21,22,{"$f":"VLOOKUP($B25,nimilista,2,FALSE)","v":"Julia Jäkälä"},{"$f":"VLOOKUP($B25,nimilista,5,FALSE)","v":"Turun Urheiluliitto"},{"$f":"VLOOKUP($B25,rekki,E$3,FALSE)","v":0},{"$f":"VLOOKUP($B25,rekki,F$3,FALSE)","v":0},{"$f":"VLOOKUP($B25,rekki,G$3,FALSE)","v":""},{"$f":"VLOOKUP($B25,rekki,H$3,FALSE)","v":0},null,""]
[22,23,{"$f":"VLOOKUP($B26,nimilista,2,FALSE)","v":"Maria Åman"},{"$f":"VLOOKUP($B26,nimilista,5,FALSE)","v":"Turun Urheiluliitto"},{"$f":"VLOOKUP($B26,rekki,E$3,FALSE)","v":0},{"$f":"VLOOKUP($B26,rekki,F$3,FALSE)","v":0},{"$f":"VLOOKUP($B26,rekki,G$3,FALSE)","v":""},{"$f":"VLOOKUP($B26,rekki,H$3,FALSE)","v":0},null,""]
[23,24,{"$f":"VLOOKUP($B27,nimilista,2,FALSE)","v":"Miina Kokkonen"},{"$f":"VLOOKUP($B27,nimilista,5,FALSE)","v":"Turun Urheiluliitto"},{"$f":"VLOOKUP($B27,rekki,E$3,FALSE)","v":0},{"$f":"VLOOKUP($B27,rekki,F$3,FALSE)","v":0},{"$f":"VLOOKUP($B27,rekki,G$3,FALSE)","v":""},{"$f":"VLOOKUP($B27,rekki,H$3,FALSE)","v":0},null,""]
[24,25,{"$f":"VLOOKUP($B28,nimilista,2,FALSE)","v":"Anniina Rautiainen"},{"$f":"VLOOKUP($B28,nimilista,5,FALSE)","v":"Voimisteluseura Keski-Uusimaa"},{"$f":"VLOOKUP($B28,rekki,E$3,FALSE)","v":0},{"$f":"VLOOKUP($B28,rekki,F$3,FALSE)","v":0},{"$f":"VLOOKUP($B28,rekki,G$3,FALSE)","v":""},{"$f":"VLOOKUP($B28,rekki,H$3,FALSE)","v":0},null,""]
[25,26,{"$f":"VLOOKUP($B29,nimilista,2,FALSE)","v":"Maisa Anttilainen"},{"$f":"VLOOKUP($B29,nimilista,5,FALSE)","v":"Voimisteluseura Keski-Uusimaa"},{"$f":"VLOOKUP($B29,rekki,E$3,FALSE)","v":0},{"$f":"VLOOKUP($B29,rekki,F$3,FALSE)","v":0},{"$f":"VLOOKUP($B29,rekki,G$3,FALSE)","v":""},{"$f":"VLOOKUP($B29,rekki,H$3,FALSE)","v":0},null,""]
[26,27,{"$f":"VLOOKUP($B30,nimilista,2,FALSE)","v":"Julia Darlington"},{"$f":"VLOOKUP($B30,nimilista,5,FALSE)","v":"Voimisteluseura Kieppi"},{"$f":"VLOOKUP($B30,rekki,E$3,FALSE)","v":0},{"$f":"VLOOKUP($B30,rekki,F$3,FALSE)","v":0},{"$f":"VLOOKUP($B30,rekki,G$3,FALSE)","v":""},{"$f":"VLOOKUP($B30,rekki,H$3,FALSE)","v":0},null,""]
[27,28,{"$f":"VLOOKUP($B31,nimilista,2,FALSE)","v":"Patricia Hämäläinen"},{"$f":"VLOOKUP($B31,nimilista,5,FALSE)","v":"Voimisteluseura Kieppi"},{"$f":"VLOOKUP($B31,rekki,E$3,FALSE)","v":0},{"$f":"VLOOKUP($B31,rekki,F$3,FALSE)","v":0},{"$f":"VLOOKUP($B31,rekki,G$3,FALSE)","v":""},{"$f":"VLOOKUP($B31,rekki,H$3,FALSE)","v":0},null,""]
[]
[]
[]
[]
[]
[]
[null,null,null,null,null,null,null,null,null,""]
[null,null,null,null,null,null,null,null,null,""]
[null,null,null,null,null,null,null,null,null,""]
[null,null,null,null,null,null,null,null,null,""]
[null,null,null,null,null,null,null,null,null,""]
[null,null,null,null,null,null,null,null,null,""]
[null,null,null,null,null,null,null,null,null,""]
[null,null,null,null,null,null,null,null,null,""]
[null,null,null,null,null,null,null,null,null,""]
[null,null,null,null,null,null,null,null,null,""]
[null,null,null,null,null,null,null,null,null,""]
[null,null,null,null,null,null,null,null,null,""]
[null,null,null,null,null,null,null,null,null,""]
[null,null,null,null,null,null,null,null,null,""]
[null,null,null,null,null,null,null,null,null,""]

{"sheet":"HevonenT","index":15,"n_rows":52,"n_cols":10,"rows_kept":52,"cut":false,"hidden":false,"merged":[[1,6,1,7],[1,10,1,11],[1,14,1,15],[2,0,2,2]]}
[null,null,null,{"$f":"Tulostus!D1","v":"Suomen                            mestaruuskilpailut            Jyväskylä 15.4.2011"}]
[]
["Hevonen",null,null,{"$f":"tulosotsikko","v":"Tytöt,karsinta"},5,10,11,12]
[0,"Nr","Nimi","Seura","D","väh","E","Yhteensä"]
[1,2,{"$f":"VLOOKUP($B5,nimilista,2,FALSE)","v":"Camilla Lindén"},{"$f":"VLOOKUP($B5,nimilista,5,FALSE)","v":"Alppilan Salamat"},{"$f":"VLOOKUP($B5,hevonen,E$3,FALSE)","v":0},{"$f":"VLOOKUP($B5,hevonen,F$3,FALSE)","v":0},{"$f":"VLOOKUP($B5,hevonen,G$3,FALSE)","v":""},{"$f":"VLOOKUP($B5,hevonen,H$3,FALSE)","v":0},null,{"$f":"IF((H5=H4),IF((H5=0),\"\",\"tie\"),\"\")","v":""}]
[2,3,{"$f":"VLOOKUP($B6,nimilista,2,FALSE)","v":"Jenna Smedman"},{"$f":"VLOOKUP($B6,nimilista,5,FALSE)","v":"Alppilan Salamat"},{"$f":"VLOOKUP($B6,hevonen,E$3,FALSE)","v":0},{"$f":"VLOOKUP($B6,hevonen,F$3,FALSE)","v":0},{"$f":"VLOOKUP($B6,hevonen,G$3,FALSE)","v":""},{"$f":"VLOOKUP($B6,hevonen,H$3,FALSE)","v":0},null,""]
[3,4,{"$f":"VLOOKUP($B7,nimilista,2,FALSE)","v":"Maija Leinonen"},{"$f":"VLOOKUP($B7,nimilista,5,FALSE)","v":"Alppilan Salamat"},{"$f":"VLOOKUP($B7,hevonen,E$3,FALSE)","v":0},{"$f":"VLOOKUP($B7,hevonen,F$3,FALSE)","v":0},{"$f":"VLOOKUP($B7,hevonen,G$3,FALSE)","v":""},{"$f":"VLOOKUP($B7,hevonen,H$3,FALSE)","v":0},null,""]
[4,5,{"$f":"VLOOKUP($B8,nimilista,2,FALSE)","v":"Mari Anttila"},{"$f":"VLOOKUP($B8,nimilista,5,FALSE)","v":"Alppilan Salamat"},{"$f":"VLOOKUP($B8,hevonen,E$3,FALSE)","v":0},{"$f":"VLOOKUP($B8,hevonen,F$3,FALSE)","v":0},{"$f":"VLOOKUP($B8,hevonen,G$3,FALSE)","v":""},{"$f":"VLOOKUP($B8,hevonen,H$3,FALSE)","v":0},null,""]
[5,6,{"$f":"VLOOKUP($B9,nimilista,2,FALSE)","v":"Nea Kinnunen"},{"$f":"VLOOKUP($B9,nimilista,5,FALSE)","v":"Alppilan Salamat"},{"$f":"VLOOKUP($B9,hevonen,E$3,FALSE)","v":0},{"$f":"VLOOKUP($B9,hevonen,F$3,FALSE)","v":0},{"$f":"VLOOKUP($B9,hevonen,G$3,FALSE)","v":""},{"$f":"VLOOKUP($B9,hevonen,H$3,FALSE)","v":0},null,""]
[6,7,{"$f":"VLOOKUP($B10,nimilista,2,FALSE)","v":"Noora Knuutila"},{"$f":"VLOOKUP($B10,nimilista,5,FALSE)","v":"Alppilan Salamat"},{"$f":"VLOOKUP($B10,hevonen,E$3,FALSE)","v":0},{"$f":"VLOOKUP($B10,hevonen,F$3,FALSE)","v":0},{"$f":"VLOOKUP($B10,hevonen,G$3,FALSE)","v":""},{"$f":"VLOOKUP($B10,hevonen,H$3,FALSE)","v":0},null,""]
[7,8,{"$f":"VLOOKUP($B11,nimilista,2,FALSE)","v":"Tuuli Nyberg"},{"$f":"VLOOKUP($B11,nimilista,5,FALSE)","v":"Alppilan Salamat"},{"$f":"VLOOKUP($B11,hevonen,E$3,FALSE)","v":0},{"$f":"VLOOKUP($B11,hevonen,F$3,FALSE)","v":0},{"$f":"VLOOKUP($B11,hevonen,G$3,FALSE)","v":""},{"$f":"VLOOKUP($B11,hevonen,H$3,FALSE)","v":0},null,""]
[8,9,{"$f":"VLOOKUP($B12,nimilista,2,FALSE)","v":"Enna Herva"},{"$f":"VLOOKUP($B12,nimilista,5,FALSE)","v":"Oulun Pyrintö"},{"$f":"VLOOKUP($B12,hevonen,E$3,FALSE)","v":0},{"$f":"VLOOKUP($B12,hevonen,F$3,FALSE)","v":0},{"$f":"VLOOKUP($B12,hevonen,G$3,FALSE)","v":""},{"$f":"VLOOKUP($B12,hevonen,H$3,FALSE)","v":0},null,""]
[9,10,{"$f":"VLOOKUP($B13,nimilista,2,FALSE)","v":"Lili Granroth"},{"$f":"VLOOKUP($B13,nimilista,5,FALSE)","v":"Oulun Pyrintö"},{"$f":"VLOOKUP($B13,hevonen,E$3,FALSE)","v":0},{"$f":"VLOOKUP($B13,hevonen,F$3,FALSE)","v":0},{"$f":"VLOOKUP($B13,hevonen,G$3,FALSE)","v":""},{"$f":"VLOOKUP($B13,hevonen,H$3,FALSE)","v":0},null,""]
[10,11,{"$f":"VLOOKUP($B14,nimilista,2,FALSE)","v":"Anniina Muilu"},{"$f":"VLOOKUP($B14,nimilista,5,FALSE)","v":"Suomen Taitovoimistelu Klubi"},{"$f":"VLOOKUP($B14,hevonen,E$3,FALSE)","v":0},{"$f":"VLOOKUP($B14,hevonen,F$3,FALSE)","v":0},{"$f":"VLOOKUP($B14,hevonen,G$3,FALSE)","v":""},{"$f":"VLOOKUP($B14,hevonen,H$3,FALSE)","v":0},null,""]
[11,12,{"$f":"VLOOKUP($B15,nimilista,2,FALSE)","v":"Elina Ahmala"},{"$f":"VLOOKUP($B15,nimilista,5,FALSE)","v":"Suomen Taitovoimistelu Klubi"},{"$f":"VLOOKUP($B15,hevonen,E$3,FALSE)","v":0},{"$f":"VLOOKUP($B15,hevonen,F$3,FALSE)","v":0},{"$f":"VLOOKUP($B15,hevonen,G$3,FALSE)","v":""},{"$f":"VLOOKUP($B15,hevonen,H$3,FALSE)","v":0},null,""]
[12,13,{"$f":"VLOOKUP($B16,nimilista,2,FALSE)","v":"Maria Pakkanen"},{"$f":"VLOOKUP($B16,nimilista,5,FALSE)","v":"Suomen Taitovoimistelu Klubi"},{"$f":"VLOOKUP($B16,hevonen,E$3,FALSE)","v":0},{"$f":"VLOOKUP($B16,hevonen,F$3,FALSE)","v":0},{"$f":"VLOOKUP($B16,hevonen,G$3,FALSE)","v":""},{"$f":"VLOOKUP($B16,hevonen,H$3,FALSE)","v":0},null,""]
[13,14,{"$f":"VLOOKUP($B17,nimilista,2,FALSE)","v":"Saara Halme"},{"$f":"VLOOKUP($B17,nimilista,5,FALSE)","v":"Suomen Taitovoimistelu Klubi"},{"$f":"VLOOKUP($B17,hevonen,E$3,FALSE)","v":0},{"$f":"VLOOKUP($B17,hevonen,F$3,FALSE)","v":0},{"$f":"VLOOKUP($B17,hevonen,G$3,FALSE)","v":""},{"$f":"VLOOKUP($B17,hevonen,H$3,FALSE)","v":0},null,""]
[14,15,{"$f":"VLOOKUP($B18,nimilista,2,FALSE)","v":"Viivi Immonen"},{"$f":"VLOOKUP($B18,nimilista,5,FALSE)","v":"Suomen Taitovoimistelu Klubi"},{"$f":"VLOOKUP($B18,hevonen,E$3,FALSE)","v":0},{"$f":"VLOOKUP($B18,hevonen,F$3,FALSE)","v":0},{"$f":"VLOOKUP($B18,hevonen,G$3,FALSE)","v":""},{"$f":"VLOOKUP($B18,hevonen,H$3,FALSE)","v":0},null,""]
[15,16,{"$f":"VLOOKUP($B19,nimilista,2,FALSE)","v":"Adeliina Sulkanen"},{"$f":"VLOOKUP($B19,nimilista,5,FALSE)","v":"Tampereen Voimistelijat"},{"$f":"VLOOKUP($B19,hevonen,E$3,FALSE)","v":0},{"$f":"VLOOKUP($B19,hevonen,F$3,FALSE)","v":0},{"$f":"VLOOKUP($B19,hevonen,G$3,FALSE)","v":""},{"$f":"VLOOKUP($B19,hevonen,H$3,FALSE)","v":0},null,""]
[16,17,{"$f":"VLOOKUP($B20,nimilista,2,FALSE)","v":"Suvi Karumo"},{"$f":"VLOOKUP($B20,nimilista,5,FALSE)","v":"Tampereen Voimistelijat"},{"$f":"VLOOKUP($B20,hevonen,E$3,FALSE)","v":0},{"$f":"VLOOKUP($B20,hevonen,F$3,FALSE)","v":0},{"$f":"VLOOKUP($B20,hevonen,G$3,FALSE)","v":""},{"$f":"VLOOKUP($B20,hevonen,H$3,FALSE)","v":0},null,""]
[17,18,{"$f":"VLOOKUP($B21,nimilista,2,FALSE)","v":"Tiia Laisi"},{"$f":"VLOOKUP($B21,nimilista,5,FALSE)","v":"Tampereen Voimistelijat"},{"$f":"VLOOKUP($B21,hevonen,E$3,FALSE)","v":0},{"$f":"VLOOKUP($B21,hevonen,F$3,FALSE)","v":0},{"$f":"VLOOKUP($B21,hevonen,G$3,FALSE)","v":""},{"$f":"VLOOKUP($B21,hevonen,H$3,FALSE)","v":0},null,""]
[18,19,{"$f":"VLOOKUP($B22,nimilista,2,FALSE)","v":"Veronika Vuosjoki"},{"$f":"VLOOKUP($B22,nimilista,5,FALSE)","v":"Tampereen Voimistelijat"},{"$f":"VLOOKUP($B22,hevonen,E$3,FALSE)","v":0},{"$f":"VLOOKUP($B22,hevonen,F$3,FALSE)","v":0},{"$f":"VLOOKUP($B22,hevonen,G$3,FALSE)","v":""},{"$f":"VLOOKUP($B22,hevonen,H$3,FALSE)","v":0},null,""]
[19,20,{"$f":"VLOOKUP($B23,nimilista,2,FALSE)","v":"Alexandra Ivanova"},{"$f":"VLOOKUP($B23,nimilista,5,FALSE)","v":"Turun Pyrkivä"},{"$f":"VLOOKUP($B23,hevonen,E$3,FALSE)","v":0},{"$f":"VLOOKUP($B23,hevonen,F$3,FALSE)","v":0},{"$f":"VLOOKUP($B23,hevonen,G$3,FALSE)","v":""},{"$f":"VLOOKUP($B23,hevonen,H$3,FALSE)","v":0},null,""]
[20,21,{"$f":"VLOOKUP($B24,nimilista,2,FALSE)","v":"Victoria Jakaus"},{"$f":"VLOOKUP($B24,nimilista,5,FALSE)","v":"Turun Pyrkivä"},{"$f":"VLOOKUP($B24,hevonen,E$3,FALSE)","v":0},{"$f":"VLOOKUP($B24,hevonen,F$3,FALSE)","v":0},{"$f":"VLOOKUP($B24,hevonen,G$3,FALSE)","v":""},{"$f":"VLOOKUP($B24,hevonen,H$3,FALSE)","v":0},null,""]
[21,22,{"$f":"VLOOKUP($B25,nimilista,2,FALSE)","v":"Julia Jäkälä"},{"$f":"VLOOKUP($B25,nimilista,5,FALSE)","v":"Turun Urheiluliitto"},{"$f":"VLOOKUP($B25,hevonen,E$3,FALSE)","v":0},{"$f":"VLOOKUP($B25,hevonen,F$3,FALSE)","v":0},{"$f":"VLOOKUP($B25,hevonen,G$3,FALSE)","v":""},{"$f":"VLOOKUP($B25,hevonen,H$3,FALSE)","v":0},null,""]
[22,23,{"$f":"VLOOKUP($B26,nimilista,2,FALSE)","v":"Maria Åman"},{"$f":"VLOOKUP($B26,nimilista,5,FALSE)","v":"Turun Urheiluliitto"},{"$f":"VLOOKUP($B26,hevonen,E$3,FALSE)","v":0},{"$f":"VLOOKUP($B26,hevonen,F$3,FALSE)","v":0},{"$f":"VLOOKUP($B26,hevonen,G$3,FALSE)","v":""},{"$f":"VLOOKUP($B26,hevonen,H$3,FALSE)","v":0},null,""]
[23,24,{"$f":"VLOOKUP($B27,nimilista,2,FALSE)","v":"Miina Kokkonen"},{"$f":"VLOOKUP($B27,nimilista,5,FALSE)","v":"Turun Urheiluliitto"},{"$f":"VLOOKUP($B27,hevonen,E$3,FALSE)","v":0},{"$f":"VLOOKUP($B27,hevonen,F$3,FALSE)","v":0},{"$f":"VLOOKUP($B27,hevonen,G$3,FALSE)","v":""},{"$f":"VLOOKUP($B27,hevonen,H$3,FALSE)","v":0},null,""]
[24,25,{"$f":"VLOOKUP($B28,nimilista,2,FALSE)","v":"Anniina Rautiainen"},{"$f":"VLOOKUP($B28,nimilista,5,FALSE)","v":"Voimisteluseura Keski-Uusimaa"},{"$f":"VLOOKUP($B28,hevonen,E$3,FALSE)","v":0},{"$f":"VLOOKUP($B28,hevonen,F$3,FALSE)","v":0},{"$f":"VLOOKUP($B28,hevonen,G$3,FALSE)","v":""},{"$f":"VLOOKUP($B28,hevonen,H$3,FALSE)","v":0},null,""]
[25,26,{"$f":"VLOOKUP($B29,nimilista,2,FALSE)","v":"Maisa Anttilainen"},{"$f":"VLOOKUP($B29,nimilista,5,FALSE)","v":"Voimisteluseura Keski-Uusimaa"},{"$f":"VLOOKUP($B29,hevonen,E$3,FALSE)","v":0},{"$f":"VLOOKUP($B29,hevonen,F$3,FALSE)","v":0},{"$f":"VLOOKUP($B29,hevonen,G$3,FALSE)","v":""},{"$f":"VLOOKUP($B29,hevonen,H$3,FALSE)","v":0},null,""]
[26,27,{"$f":"VLOOKUP($B30,nimilista,2,FALSE)","v":"Julia Darlington"},{"$f":"VLOOKUP($B30,nimilista,5,FALSE)","v":"Voimisteluseura Kieppi"},{"$f":"VLOOKUP($B30,hevonen,E$3,FALSE)","v":0},{"$f":"VLOOKUP($B30,hevonen,F$3,FALSE)","v":0},{"$f":"VLOOKUP($B30,hevonen,G$3,FALSE)","v":""},{"$f":"VLOOKUP($B30,hevonen,H$3,FALSE)","v":0},null,""]
[27,28,{"$f":"VLOOKUP($B31,nimilista,2,FALSE)","v":"Patricia Hämäläinen"},{"$f":"VLOOKUP($B31,nimilista,5,FALSE)","v":"Voimisteluseura Kieppi"},{"$f":"VLOOKUP($B31,hevonen,E$3,FALSE)","v":0},{"$f":"VLOOKUP($B31,hevonen,F$3,FALSE)","v":0},{"$f":"VLOOKUP($B31,hevonen,G$3,FALSE)","v":""},{"$f":"VLOOKUP($B31,hevonen,H$3,FALSE)","v":0},null,""]
[]
[]
[]
[]
[]
[null,null,null,null,null,null,null,null,null,""]
[null,null,null,null,null,null,null,null,null,""]
[null,null,null,null,null,null,null,null,null,""]
[null,null,null,null,null,null,null,null,null,""]
[null,null,null,null,null,null,null,null,null,""]
[null,null,null,null,null,null,null,null,null,""]
[null,null,null,null,null,null,null,null,null,""]
[null,null,null,null,null,null,null,null,null,""]
[null,null,null,null,null,null,null,null,null,""]
[null,null,null,null,null,null,null,null,null,""]
[null,null,null,null,null,null,null,null,null,""]
[null,null,null,null,null,null,null,null,null,""]
[null,null,null,null,null,null,null,null,null,""]
[null,null,null,null,null,null,null,null,null,""]
[null,null,null,null,null,null,null,null,null,""]
[null,null,null,null,null,null,null,null,null,""]

{"sheet":"Asetukset","index":16,"n_rows":282,"n_cols":19,"rows_kept":282,"cut":false,"hidden":false,"merged":[]}
["Tällä sivulla on ohjelman asetuksia"]
["Asetuksen selitys",null,null,"yksikkö","Lisäselitystä"]
["Korostusväri tuloksen näyttämiseksi",null,36]
["Yhteensä perusväri",null,12,null,"#f8cf50","#eeddff"]
["Perusväri 2",null,"#F7CE40"]
["D-sarakkeen malli",null,9,null,"#F7CE40","#ff00ff",null,"R","G","B"]
[null,null,null,null,null,null,null,4,238,254,{"$f":"((\"#\"&DEC2HEX(H7,2))&DEC2HEX(I7,2))&DEC2HEX(J7,2)","v":"#04EEFE"},"#04EEFE"]
["Korostus kun tullaan suoritukseen",null,"Saku",null,null,null,null,234,8,24,{"$f":"((\"#\"&DEC2HEX(H8,2))&DEC2HEX(I8,2))&DEC2HEX(J8,2)","v":"#EA0818"},"#EA0818"]
["Automaattiset asetukset","Asetuksen nimi"]
["Tuloksen näyttöaika isona","tuloksennayttoaikaisona",0,"sek",null,null,null,234,238,4,{"$f":"((\"#\"&DEC2HEX(H10,2))&DEC2HEX(I10,2))&DEC2HEX(J10,2)","v":"#EAEE04"},"#EAEE04"]
["Tuloksen näyttöaika lajittelun jälkeen","tuloksennayttoaikalajittelunjalkeen",0,"sek",null,null,null,4,238,24,{"$f":"((\"#\"&DEC2HEX(H11,2))&DEC2HEX(I11,2))&DEC2HEX(J11,2)","v":"#04EE18"},"#04EE18"]
["Näytetäänkö suorittaja otsikossa","suorittajaOtsikossa",1,null,null,null,null,255,154,206,{"$f":"((\"#\"&DEC2HEX(H12,2))&DEC2HEX(I12,2))&DEC2HEX(J12,2)","v":"#FF9ACE"}]
["Näytä suorittaja taulukossa","suorittajaTaulukossa",1]
["Näytetäänkö finaaliin menijät","naytaFinaaliinMenijat",1]
["Kilpailijoita","kilpailijoidenMaara",{"$f":"COUNTA(Tulokset!C5:C44)","v":27}]
["Finaalissa kilpailijoita","kilpailijoidenMaaraFinaalissa",8]
["Finaali","isFinal",0,null,"Tähän 1 jos on finaali"]
["Viivoita tausta","viivoitaTausta",1,null,"Tähän 1 jos halutaan värjätä tausta joka toinen eri värillä"]
["Lomakkeen korkeus","appHeight",390]
["Lomakkeen leveys","appWidth",340]
["Mikä laji suorituspaikalla 1","teline1",3,null,"vaihda näitä kunlaji vaihtuu, myös kuvat",{"$f":"INDEX(lajit,teline1,1)","v":"Puomi"},{"$f":"INDEX(lajit,teline1,3)","v":"RenkaatI"}]
["Mikä laji suorituspaikalla 2","teline2",4,null,"vaihda näitä kunlaji vaihtuu, myös kuvat",{"$f":"INDEX(lajit,teline2,1)","v":"Permanto"},{"$f":"INDEX(lajit,teline2,3)","v":"HyppyI"}]
["Kuka suorituspaikalla 1","kuka1",{"$f":"INDIRECT(\"\"&F21&\"!E1\")","v":0}]
["Kuka suorituspaikalla 2","kuka2",{"$f":"INDIRECT(\"\"&F22&\"!E1\")","v":0}]
["Tulostusotsikko","tulosotsikko","Tytöt,karsinta"]
[]
[]
["Muita asetuksia"]
["Kuvatiedoston nimen alku",null,"http://users.jyu.fi/~vesal/kurssit/excel/tuloslaskenta/logot/"]
["Kuvatiedoston nimen loppu",null,"_p.png"]
[null,null,null,null,null,"",""]
["Lajiteltavat","Lajit","Sivu","Viimeinen sarake",null,"Lajit"]
[null,null,"Tulostus","Q",1,"Hyppy",null,"PermantoI"]
[null,null,"HyppyT","M",2,"Nojapuut",null,"HevonenI"]
[null,null,"PermantoT","H",3,"Puomi",null,"RenkaatI"]
[null,null,"HevonenT","H",4,"Permanto",null,"HyppyI"]
[null,null,"RenkaatT","H",5,"Permanto",null,"NojapuutI"]
[null,null,"NojapuutT","H",6,"Rekki",null,"RekkiI"]
[null,null,"RekkiT","H",7,"Puomi",null,"PuomiI"]
[null,null,null,null,8,"Eritasonojapuut",null,"EritasonojapuutI"]
[]
[]
["Suorituspaikat",null,"Teline","Paikka"]
["Miehet",null,"Permanto",1]
[null,null,"Hevonen",2]
[null,null,"Renkaat",1]
[null,null,"Hyppy",2]
[null,null,"Nojapuut",1]
[null,null,"Rekki",2]
[]
["Naiset",null,"Hyppy",1]
[null,null,"Eritasonojapuut",2]
[null,null,"Puomi",1]
[null,null,"Permanto",2]
[]
[]
[]
[]
["Nimetyt alueet"]
[]
[]
[]
[]
[]
[]
[]
[]
[]
[]
[null,"Nimetyt alueet"]
[null,"suorittajaOtsikossa","Asetukset!C11"]
[null,"kuvaalku","Asetukset!C21"]
[null,"finaalissaKilpailijoita","Asetukset!C15"]
[null,"finaali","Asetukset!C17"]
[null,"kaavaAlue","Tulokset!E5:P34"]
[null,"korostusvari","Asetukset!C3"]
[null,"tuloksenTaustavari","Asetukset!C4"]
[null,"kilpailijoita","Asetukset!C14"]
[null,"naytaFinaaliinMenijat","Asetukset!C13"]
[null,"tulosalue","Tulokset!A5:R34"]
[null,"tuloksenTaustavari2","Asetukset!C5"]
[null,"kuvaloppu","Asetukset!C22"]
[null,"DsarakkeenMalli","Asetukset!C6"]
[null,"tuloksennayttoaikaisona","Asetukset!C9"]
[null,"suorituskorostus","Asetukset!C8"]
[null,"tuloksennayttoaikalajittelunjalkeen","Asetukset!C10"]
[null,"viivoitaTausta","Asetukset!C18"]
[null,"suorittajaTaulukossa","Asetukset!C12"]
[null,"appHeight","Asetukset!C19"]
[null,"appWidth","Asetukset!C20"]
[]
[]
[]
[]
[]
[]
[]
[]
[]
[]
[]
[]
[]
[]
[]
[]
[]
[]
[]
[]
[]
[]
[]
[]
[]
[]
[]
[]
[]
[]
[]
[]
[]
[]
[]
[]
[]
[]
[]
[]
[]
[]
[]
[]
[" "]
["riviä loppuun."]
[" "]
[1]
["Asetuksen selitys==="]
[]
["==="]
["Asetuksen selitys"]
[35]
[null,"palauta loppu"]
[5]
[null,1,2,"Sami Salo","STV",3,11.15,6,15.75,4,10.6,2,10,1,9,4.9000000000000004,13.95,70.45,0]
[6]
[null,2,8,"Teemu Selänne","HTV",3,12,4,7,2,11,4,13,3,12,5,14.55,69.55,-0.9]
[7]
[null,3,4,"Ossi Väänänen","KTV",5,12.85,2,11,4,13,2,10,1.2,10.1,2,10.5,67.45,-3]
[8]
[null,4,1,"Kari Lehtonen","HTV",3,7.5,1,10,2,11,1,10,5.2,13.9,52.4,-18.05]
[9]
[null,5,10,"Toni Rajala","HTV",6,15,1,10,3,10,3,12,3,12,59,-11.45]
[10]
[null,6,22,"Ville Leino","STV",2.2000000000000002,10.55,2,11,3,12,6.2,15,1,10,58.55,-11.9]
[11]
[null,7,3,"Antti Jaatinen","KTV",1.7,10.050000000000001,3,11,1,10,3.2,12.25,43.3,-27.15]
[12]
[null,8,11,"Saku Koivu","HTV",4,12,2,9,4,13,1,8,42,-28.45]
[13]
[null,9,12,"Jani Tuppurainen","Jyvo",2,10.4,1,9.9,1,9,1,10,39.299999999999997,-31.15]
[14]
[null,10,15,"Juha-Pekka Hytönen","Jyvo",2,10.35,2,8.75,1,10,1,9,38.1,-32.35]
[15]
[null,11,6,"Teemu Pulkkinen","TTV",5,13.35,2,11,2,11,35.35,-35.1]
[16]
[null,12,23,"Ossi Louhivaara","Jyvo",1.8,9.8000000000000007,4,11.85,2,11,32.65,-37.799999999999997]
[17]
[null,13,17,"Jari Jääskeläinen","Jyvo",1.8,9.75,2,9.6,4.5,12.75,32.1,-38.35]
[18]
[null,14,14,"Pekka Jormakka","Jyvo",2.4,10.75,1.1000000000000001,8.6,2,10.9,30.25,-40.200000000000003]
[19]
[null,15,16,"Ville Peltonen","HTV",1.7,9.9,2,10.6,1,9,29.5,-40.950000000000003]
[20]
[null,16,29,"Petteri Nokelainen","KTV",2.6,11.15,1,9.9,21.05,-49.4]
[21]
[null,17,21,"Teemu Eronen","HTV",1.8,9.8000000000000007,2,11,20.8,-49.65]
[22]
[null,18,27,"Juha Lind","STV",2.2000000000000002,10.15,1,9,19.149999999999999,-51.3]
[23]
[null,19,41,"Antti Pihlström","Jyvo",1.8,5,14,14,-56.45]
[24]
[null,20,40,"Sami Lepistö","KTV",2.6,1,11,11,-59.45]
[25]
[null,21,36,"Marko Tuulola","KTV",2.9,2,11,11,-59.45]
[26]
[null,22,58,"Nico Manelius","KTV",2.2999999999999998,2,11,11,-59.45]
[27]
[null,23,50,"Tommi Kivistö","KTV",2.1,2,11,11,-59.45]
[28]
[null,24,28,"Jani Rita","HYV",2.2000000000000002,10.5,10.5,-59.95]
[29]
[null,25,25,"Jukka Hentunen","HTV",1.7,9.9499999999999993,9.9499999999999993,-60.5]
[30]
[null,26,35,"Mika Järvinen","KTV",2.6,1,9.9,9.9,-60.55]
[31]
[null,27,44,"Sami Vatanen","Jyvo",1.6,0,-70.45]
[32]
[null,28,47,"Janne Lahti","Jyvo",2,0,-70.45]
[33]
[null,29,49,"Tuomas Pihlman","Jokerit",2.2000000000000002,0,-70.45]
[34]
[null,30,64,"Mikael Granlund","HIFK",2.6,0,-70.45]
[35]
[null,"palauta loppu"]
[10]
[null,"Tuloksen näyttöaika lajittelun jälkeen","tuloksennayttoaikalajittelunjalkeen",0,"sek",4,238,24,"#04EE18","#04EE18"]
[35]
[null,"palauta loppu"]
[35]
[null,"palauta loppu"]
[1]
[null,8,"Teemu Selänne","HTV",3,12]
[2]
[null,"Permanto"]
[3]
[null,0,"Nr","Nimi","Seura","D","väh","E","Yhteensä"]
[4]
[null,1,10,"Toni Rajala",3,0,9,12]
[5]
[null,2,8,"Teemu Selänne",3,0,9,12]
[6]
[null,3,11,"Saku Koivu",4,1,9,12]
[7]
[null,4,22,"Ville Leino",2.2000000000000002,0.4,8.75,10.55]
[8]
[null,5,1,"Kari Lehtonen"]
[9]
[null,6,12,"Jani Tuppurainen"]
[10]
[null,7,2,"Sami Salo"]
[11]
[null,8,15,"Juha-Pekka Hytönen"]
[13]
[null,2,"Sami Salo","STV",6,15.75]
[14]
[null,"Hevonen"]
[15]
[null,0,"Nr","Nimi","Seura","D","väh","E","Yhteensä"]
[16]
[null,1,2,"Sami Salo",6,0,9.75,15.75]
[17]
[null,2,22,"Ville Leino",2,0,9,11]
[18]
[null,3,10,"Toni Rajala",1,0,9,10]
[19]
[null,4,1,"Kari Lehtonen",1,0,9,10,"tie"]
[20]
[null,5,12,"Jani Tuppurainen"]
[21]
[null,6,11,"Saku Koivu"]
[22]
[null,7,8,"Teemu Selänne"]
[23]
[null,8,15,"Juha-Pekka Hytönen"]
[35]
[null,"palauta loppu"]
[34]
[null,6056]
["Alueen nimet"]
["Lempinimi:","Ohje"]
[null,null,"×"]
[null,null,"×"]
[null,null,"×"]
[null,null,"×"]
[null,null,"×"]
[null,null,"×"]
[null,null,"×"]
[null,null,"×"]
[null,null,"×"]
[null,null,"×"]
[null,null,"×"]
[null,null,"×"]
[null,null,"×"]
[null,null,"×"]
[null,null,"×"]
[null,null,"×"]
[null,null,"×"]
[null,null,"×"]
[null,null,"×"]
[null,null,"×"]

{"sheet":"Tulostus","index":17,"n_rows":31,"n_cols":13,"rows_kept":31,"cut":false,"hidden":false,"merged":[[2,0,2,2],[0,3,0,7]]}
[null,null,null,"Suomen                            mestaruuskilpailut            Jyväskylä 15.4.2011"]
[]
["Tyttöjen 4-ottelu",null,null,null,"Permanto",{"$f":"Permanto!$M$1","v":""},"Hevonen",{"$f":"Hevonen!$M$1","v":""},"Renkaat",{"$f":"Puomi!$M$1","v":""},"Rekki",{"$f":"Rekki!$M$1","v":""}]
[0,"Nr","Nimi","Seura","D","yht","D","yht","D","yht","D","yht","Yhteensä"]
[1,12,{"$f":"VLOOKUP($B5,nimilista,2,FALSE)","v":"Elina Ahmala"},{"$f":"VLOOKUP($B5,nimilista,5,FALSE)","v":"Suomen Taitovoimistelu Klubi"},{"$f":"VLOOKUP($B5,hyppy,5,FALSE)","v":0},{"$f":"VLOOKUP($B5,hyppy,12,FALSE)","v":0},{"$f":"VLOOKUP($B5,nojapuut,5,FALSE)","v":0},{"$f":"VLOOKUP($B5,nojapuut,12,FALSE)","v":0},{"$f":"VLOOKUP($B5,Puomi,5,FALSE)","v":0},{"$f":"VLOOKUP($B5,Puomi,12,FALSE)","v":0},{"$f":"VLOOKUP($B5,permanto,5,FALSE)","v":5},{"$f":"VLOOKUP($B5,permanto,12,FALSE)","v":13},{"$f":"F5+H5+J5+L5","v":13}]
[2,6,{"$f":"VLOOKUP($B6,nimilista,2,FALSE)","v":"Nea Kinnunen"},{"$f":"VLOOKUP($B6,nimilista,5,FALSE)","v":"Alppilan Salamat"},{"$f":"VLOOKUP($B6,hyppy,5,FALSE)","v":0},{"$f":"VLOOKUP($B6,hyppy,12,FALSE)","v":0},{"$f":"VLOOKUP($B6,nojapuut,5,FALSE)","v":4},{"$f":"VLOOKUP($B6,nojapuut,12,FALSE)","v":12.5},{"$f":"VLOOKUP($B6,Puomi,5,FALSE)","v":0},{"$f":"VLOOKUP($B6,Puomi,12,FALSE)","v":0},{"$f":"VLOOKUP($B6,permanto,5,FALSE)","v":0},{"$f":"VLOOKUP($B6,permanto,12,FALSE)","v":0},{"$f":"F6+H6+J6+L6","v":12.5}]
[3,4,{"$f":"VLOOKUP($B7,nimilista,2,FALSE)","v":"Maija Leinonen"},{"$f":"VLOOKUP($B7,nimilista,5,FALSE)","v":"Alppilan Salamat"},{"$f":"VLOOKUP($B7,hyppy,5,FALSE)","v":2},{"$f":"VLOOKUP($B7,hyppy,12,FALSE)","v":10},{"$f":"VLOOKUP($B7,nojapuut,5,FALSE)","v":0},{"$f":"VLOOKUP($B7,nojapuut,12,FALSE)","v":0},{"$f":"VLOOKUP($B7,Puomi,5,FALSE)","v":0},{"$f":"VLOOKUP($B7,Puomi,12,FALSE)","v":0},{"$f":"VLOOKUP($B7,permanto,5,FALSE)","v":0},{"$f":"VLOOKUP($B7,permanto,12,FALSE)","v":0},{"$f":"F7+H7+J7+L7","v":10}]
[4,8,{"$f":"VLOOKUP($B8,nimilista,2,FALSE)","v":"Tuuli Nyberg"},{"$f":"VLOOKUP($B8,nimilista,5,FALSE)","v":"Alppilan Salamat"},{"$f":"VLOOKUP($B8,hyppy,5,FALSE)","v":0},{"$f":"VLOOKUP($B8,hyppy,12,FALSE)","v":0},{"$f":"VLOOKUP($B8,nojapuut,5,FALSE)","v":0},{"$f":"VLOOKUP($B8,nojapuut,12,FALSE)","v":0},{"$f":"VLOOKUP($B8,Puomi,5,FALSE)","v":1},{"$f":"VLOOKUP($B8,Puomi,12,FALSE)","v":9},{"$f":"VLOOKUP($B8,permanto,5,FALSE)","v":0},{"$f":"VLOOKUP($B8,permanto,12,FALSE)","v":0},{"$f":"F8+H8+J8+L8","v":9}]
[5,2,{"$f":"VLOOKUP($B9,nimilista,2,FALSE)","v":"Camilla Lindén"},{"$f":"VLOOKUP($B9,nimilista,5,FALSE)","v":"Alppilan Salamat"},{"$f":"VLOOKUP($B9,hyppy,5,FALSE)","v":0},{"$f":"VLOOKUP($B9,hyppy,12,FALSE)","v":0},{"$f":"VLOOKUP($B9,nojapuut,5,FALSE)","v":0},{"$f":"VLOOKUP($B9,nojapuut,12,FALSE)","v":0},{"$f":"VLOOKUP($B9,Puomi,5,FALSE)","v":0},{"$f":"VLOOKUP($B9,Puomi,12,FALSE)","v":0},{"$f":"VLOOKUP($B9,permanto,5,FALSE)","v":0},{"$f":"VLOOKUP($B9,permanto,12,FALSE)","v":0},{"$f":"F9+H9+J9+L9","v":0}]
[6,3,{"$f":"VLOOKUP($B10,nimilista,2,FALSE)","v":"Jenna Smedman"},{"$f":"VLOOKUP($B10,nimilista,5,FALSE)","v":"Alppilan Salamat"},{"$f":"VLOOKUP($B10,hyppy,5,FALSE)","v":0},{"$f":"VLOOKUP($B10,hyppy,12,FALSE)","v":0},{"$f":"VLOOKUP($B10,nojapuut,5,FALSE)","v":0},{"$f":"VLOOKUP($B10,nojapuut,12,FALSE)","v":0},{"$f":"VLOOKUP($B10,Puomi,5,FALSE)","v":0},{"$f":"VLOOKUP($B10,Puomi,12,FALSE)","v":0},{"$f":"VLOOKUP($B10,permanto,5,FALSE)","v":0},{"$f":"VLOOKUP($B10,permanto,12,FALSE)","v":0},{"$f":"F10+H10+J10+L10","v":0}]
[7,5,{"$f":"VLOOKUP($B11,nimilista,2,FALSE)","v":"Mari Anttila"},{"$f":"VLOOKUP($B11,nimilista,5,FALSE)","v":"Alppilan Salamat"},{"$f":"VLOOKUP($B11,hyppy,5,FALSE)","v":0},{"$f":"VLOOKUP($B11,hyppy,12,FALSE)","v":0},{"$f":"VLOOKUP($B11,nojapuut,5,FALSE)","v":0},{"$f":"VLOOKUP($B11,nojapuut,12,FALSE)","v":0},{"$f":"VLOOKUP($B11,Puomi,5,FALSE)","v":0},{"$f":"VLOOKUP($B11,Puomi,12,FALSE)","v":0},{"$f":"VLOOKUP($B11,permanto,5,FALSE)","v":0},{"$f":"VLOOKUP($B11,permanto,12,FALSE)","v":0},{"$f":"F11+H11+J11+L11","v":0}]
[8,7,{"$f":"VLOOKUP($B12,nimilista,2,FALSE)","v":"Noora Knuutila"},{"$f":"VLOOKUP($B12,nimilista,5,FALSE)","v":"Alppilan Salamat"},{"$f":"VLOOKUP($B12,hyppy,5,FALSE)","v":0},{"$f":"VLOOKUP($B12,hyppy,12,FALSE)","v":0},{"$f":"VLOOKUP($B12,nojapuut,5,FALSE)","v":0},{"$f":"VLOOKUP($B12,nojapuut,12,FALSE)","v":0},{"$f":"VLOOKUP($B12,Puomi,5,FALSE)","v":0},{"$f":"VLOOKUP($B12,Puomi,12,FALSE)","v":0},{"$f":"VLOOKUP($B12,permanto,5,FALSE)","v":0},{"$f":"VLOOKUP($B12,permanto,12,FALSE)","v":0},{"$f":"F12+H12+J12+L12","v":0}]
[9,9,{"$f":"VLOOKUP($B13,nimilista,2,FALSE)","v":"Enna Herva"},{"$f":"VLOOKUP($B13,nimilista,5,FALSE)","v":"Oulun Pyrintö"},{"$f":"VLOOKUP($B13,hyppy,5,FALSE)","v":0},{"$f":"VLOOKUP($B13,hyppy,12,FALSE)","v":0},{"$f":"VLOOKUP($B13,nojapuut,5,FALSE)","v":0},{"$f":"VLOOKUP($B13,nojapuut,12,FALSE)","v":0},{"$f":"VLOOKUP($B13,Puomi,5,FALSE)","v":0},{"$f":"VLOOKUP($B13,Puomi,12,FALSE)","v":0},{"$f":"VLOOKUP($B13,permanto,5,FALSE)","v":0},{"$f":"VLOOKUP($B13,permanto,12,FALSE)","v":0},{"$f":"F13+H13+J13+L13","v":0}]
[10,10,{"$f":"VLOOKUP($B14,nimilista,2,FALSE)","v":"Lili Granroth"},{"$f":"VLOOKUP($B14,nimilista,5,FALSE)","v":"Oulun Pyrintö"},{"$f":"VLOOKUP($B14,hyppy,5,FALSE)","v":0},{"$f":"VLOOKUP($B14,hyppy,12,FALSE)","v":0},{"$f":"VLOOKUP($B14,nojapuut,5,FALSE)","v":0},{"$f":"VLOOKUP($B14,nojapuut,12,FALSE)","v":0},{"$f":"VLOOKUP($B14,Puomi,5,FALSE)","v":0},{"$f":"VLOOKUP($B14,Puomi,12,FALSE)","v":0},{"$f":"VLOOKUP($B14,permanto,5,FALSE)","v":0},{"$f":"VLOOKUP($B14,permanto,12,FALSE)","v":0},{"$f":"F14+H14+J14+L14","v":0}]
[11,11,{"$f":"VLOOKUP($B15,nimilista,2,FALSE)","v":"Anniina Muilu"},{"$f":"VLOOKUP($B15,nimilista,5,FALSE)","v":"Suomen Taitovoimistelu Klubi"},{"$f":"VLOOKUP($B15,hyppy,5,FALSE)","v":0},{"$f":"VLOOKUP($B15,hyppy,12,FALSE)","v":0},{"$f":"VLOOKUP($B15,nojapuut,5,FALSE)","v":0},{"$f":"VLOOKUP($B15,nojapuut,12,FALSE)","v":0},{"$f":"VLOOKUP($B15,Puomi,5,FALSE)","v":0},{"$f":"VLOOKUP($B15,Puomi,12,FALSE)","v":0},{"$f":"VLOOKUP($B15,permanto,5,FALSE)","v":0},{"$f":"VLOOKUP($B15,permanto,12,FALSE)","v":0},{"$f":"F15+H15+J15+L15","v":0}]
[12,13,{"$f":"VLOOKUP($B16,nimilista,2,FALSE)","v":"Maria Pakkanen"},{"$f":"VLOOKUP($B16,nimilista,5,FALSE)","v":"Suomen Taitovoimistelu Klubi"},{"$f":"VLOOKUP($B16,hyppy,5,FALSE)","v":0},{"$f":"VLOOKUP($B16,hyppy,12,FALSE)","v":0},{"$f":"VLOOKUP($B16,nojapuut,5,FALSE)","v":0},{"$f":"VLOOKUP($B16,nojapuut,12,FALSE)","v":0},{"$f":"VLOOKUP($B16,Puomi,5,FALSE)","v":0},{"$f":"VLOOKUP($B16,Puomi,12,FALSE)","v":0},{"$f":"VLOOKUP($B16,permanto,5,FALSE)","v":0},{"$f":"VLOOKUP($B16,permanto,12,FALSE)","v":0},{"$f":"F16+H16+J16+L16","v":0}]
[13,14,{"$f":"VLOOKUP($B17,nimilista,2,FALSE)","v":"Saara Halme"},{"$f":"VLOOKUP($B17,nimilista,5,FALSE)","v":"Suomen Taitovoimistelu Klubi"},{"$f":"VLOOKUP($B17,hyppy,5,FALSE)","v":0},{"$f":"VLOOKUP($B17,hyppy,12,FALSE)","v":0},{"$f":"VLOOKUP($B17,nojapuut,5,FALSE)","v":0},{"$f":"VLOOKUP($B17,nojapuut,12,FALSE)","v":0},{"$f":"VLOOKUP($B17,Puomi,5,FALSE)","v":0},{"$f":"VLOOKUP($B17,Puomi,12,FALSE)","v":0},{"$f":"VLOOKUP($B17,permanto,5,FALSE)","v":0},{"$f":"VLOOKUP($B17,permanto,12,FALSE)","v":0},{"$f":"F17+H17+J17+L17","v":0}]
[14,15,{"$f":"VLOOKUP($B18,nimilista,2,FALSE)","v":"Viivi Immonen"},{"$f":"VLOOKUP($B18,nimilista,5,FALSE)","v":"Suomen Taitovoimistelu Klubi"},{"$f":"VLOOKUP($B18,hyppy,5,FALSE)","v":0},{"$f":"VLOOKUP($B18,hyppy,12,FALSE)","v":0},{"$f":"VLOOKUP($B18,nojapuut,5,FALSE)","v":0},{"$f":"VLOOKUP($B18,nojapuut,12,FALSE)","v":0},{"$f":"VLOOKUP($B18,Puomi,5,FALSE)","v":0},{"$f":"VLOOKUP($B18,Puomi,12,FALSE)","v":0},{"$f":"VLOOKUP($B18,permanto,5,FALSE)","v":0},{"$f":"VLOOKUP($B18,permanto,12,FALSE)","v":0},{"$f":"F18+H18+J18+L18","v":0}]
[15,16,{"$f":"VLOOKUP($B19,nimilista,2,FALSE)","v":"Adeliina Sulkanen"},{"$f":"VLOOKUP($B19,nimilista,5,FALSE)","v":"Tampereen Voimistelijat"},{"$f":"VLOOKUP($B19,hyppy,5,FALSE)","v":0},{"$f":"VLOOKUP($B19,hyppy,12,FALSE)","v":0},{"$f":"VLOOKUP($B19,nojapuut,5,FALSE)","v":0},{"$f":"VLOOKUP($B19,nojapuut,12,FALSE)","v":0},{"$f":"VLOOKUP($B19,Puomi,5,FALSE)","v":0},{"$f":"VLOOKUP($B19,Puomi,12,FALSE)","v":0},{"$f":"VLOOKUP($B19,permanto,5,FALSE)","v":0},{"$f":"VLOOKUP($B19,permanto,12,FALSE)","v":0},{"$f":"F19+H19+J19+L19","v":0}]
[16,17,{"$f":"VLOOKUP($B20,nimilista,2,FALSE)","v":"Suvi Karumo"},{"$f":"VLOOKUP($B20,nimilista,5,FALSE)","v":"Tampereen Voimistelijat"},{"$f":"VLOOKUP($B20,hyppy,5,FALSE)","v":0},{"$f":"VLOOKUP($B20,hyppy,12,FALSE)","v":0},{"$f":"VLOOKUP($B20,nojapuut,5,FALSE)","v":0},{"$f":"VLOOKUP($B20,nojapuut,12,FALSE)","v":0},{"$f":"VLOOKUP($B20,Puomi,5,FALSE)","v":0},{"$f":"VLOOKUP($B20,Puomi,12,FALSE)","v":0},{"$f":"VLOOKUP($B20,permanto,5,FALSE)","v":0},{"$f":"VLOOKUP($B20,permanto,12,FALSE)","v":0},{"$f":"F20+H20+J20+L20","v":0}]
[17,18,{"$f":"VLOOKUP($B21,nimilista,2,FALSE)","v":"Tiia Laisi"},{"$f":"VLOOKUP($B21,nimilista,5,FALSE)","v":"Tampereen Voimistelijat"},{"$f":"VLOOKUP($B21,hyppy,5,FALSE)","v":0},{"$f":"VLOOKUP($B21,hyppy,12,FALSE)","v":0},{"$f":"VLOOKUP($B21,nojapuut,5,FALSE)","v":0},{"$f":"VLOOKUP($B21,nojapuut,12,FALSE)","v":0},{"$f":"VLOOKUP($B21,Puomi,5,FALSE)","v":0},{"$f":"VLOOKUP($B21,Puomi,12,FALSE)","v":0},{"$f":"VLOOKUP($B21,permanto,5,FALSE)","v":0},{"$f":"VLOOKUP($B21,permanto,12,FALSE)","v":0},{"$f":"F21+H21+J21+L21","v":0}]
[18,19,{"$f":"VLOOKUP($B22,nimilista,2,FALSE)","v":"Veronika Vuosjoki"},{"$f":"VLOOKUP($B22,nimilista,5,FALSE)","v":"Tampereen Voimistelijat"},{"$f":"VLOOKUP($B22,hyppy,5,FALSE)","v":0},{"$f":"VLOOKUP($B22,hyppy,12,FALSE)","v":0},{"$f":"VLOOKUP($B22,nojapuut,5,FALSE)","v":0},{"$f":"VLOOKUP($B22,nojapuut,12,FALSE)","v":0},{"$f":"VLOOKUP($B22,Puomi,5,FALSE)","v":0},{"$f":"VLOOKUP($B22,Puomi,12,FALSE)","v":0},{"$f":"VLOOKUP($B22,permanto,5,FALSE)","v":0},{"$f":"VLOOKUP($B22,permanto,12,FALSE)","v":0},{"$f":"F22+H22+J22+L22","v":0}]
[19,20,{"$f":"VLOOKUP($B23,nimilista,2,FALSE)","v":"Alexandra Ivanova"},{"$f":"VLOOKUP($B23,nimilista,5,FALSE)","v":"Turun Pyrkivä"},{"$f":"VLOOKUP($B23,hyppy,5,FALSE)","v":0},{"$f":"VLOOKUP($B23,hyppy,12,FALSE)","v":0},{"$f":"VLOOKUP($B23,nojapuut,5,FALSE)","v":0},{"$f":"VLOOKUP($B23,nojapuut,12,FALSE)","v":0},{"$f":"VLOOKUP($B23,Puomi,5,FALSE)","v":0},{"$f":"VLOOKUP($B23,Puomi,12,FALSE)","v":0},{"$f":"VLOOKUP($B23,permanto,5,FALSE)","v":0},{"$f":"VLOOKUP($B23,permanto,12,FALSE)","v":0},{"$f":"F23+H23+J23+L23","v":0}]
[20,21,{"$f":"VLOOKUP($B24,nimilista,2,FALSE)","v":"Victoria Jakaus"},{"$f":"VLOOKUP($B24,nimilista,5,FALSE)","v":"Turun Pyrkivä"},{"$f":"VLOOKUP($B24,hyppy,5,FALSE)","v":0},{"$f":"VLOOKUP($B24,hyppy,12,FALSE)","v":0},{"$f":"VLOOKUP($B24,nojapuut,5,FALSE)","v":0},{"$f":"VLOOKUP($B24,nojapuut,12,FALSE)","v":0},{"$f":"VLOOKUP($B24,Puomi,5,FALSE)","v":0},{"$f":"VLOOKUP($B24,Puomi,12,FALSE)","v":0},{"$f":"VLOOKUP($B24,permanto,5,FALSE)","v":0},{"$f":"VLOOKUP($B24,permanto,12,FALSE)","v":0},{"$f":"F24+H24+J24+L24","v":0}]
[21,22,{"$f":"VLOOKUP($B25,nimilista,2,FALSE)","v":"Julia Jäkälä"},{"$f":"VLOOKUP($B25,nimilista,5,FALSE)","v":"Turun Urheiluliitto"},{"$f":"VLOOKUP($B25,hyppy,5,FALSE)","v":0},{"$f":"VLOOKUP($B25,hyppy,12,FALSE)","v":0},{"$f":"VLOOKUP($B25,nojapuut,5,FALSE)","v":0},{"$f":"VLOOKUP($B25,nojapuut,12,FALSE)","v":0},{"$f":"VLOOKUP($B25,Puomi,5,FALSE)","v":0},{"$f":"VLOOKUP($B25,Puomi,12,FALSE)","v":0},{"$f":"VLOOKUP($B25,permanto,5,FALSE)","v":0},{"$f":"VLOOKUP($B25,permanto,12,FALSE)","v":0},{"$f":"F25+H25+J25+L25","v":0}]
[22,23,{"$f":"VLOOKUP($B26,nimilista,2,FALSE)","v":"Maria Åman"},{"$f":"VLOOKUP($B26,nimilista,5,FALSE)","v":"Turun Urheiluliitto"},{"$f":"VLOOKUP($B26,hyppy,5,FALSE)","v":0},{"$f":"VLOOKUP($B26,hyppy,12,FALSE)","v":0},{"$f":"VLOOKUP($B26,nojapuut,5,FALSE)","v":0},{"$f":"VLOOKUP($B26,nojapuut,12,FALSE)","v":0},{"$f":"VLOOKUP($B26,Puomi,5,FALSE)","v":0},{"$f":"VLOOKUP($B26,Puomi,12,FALSE)","v":0},{"$f":"VLOOKUP($B26,permanto,5,FALSE)","v":0},{"$f":"VLOOKUP($B26,permanto,12,FALSE)","v":0},{"$f":"F26+H26+J26+L26","v":0}]
[23,24,{"$f":"VLOOKUP($B27,nimilista,2,FALSE)","v":"Miina Kokkonen"},{"$f":"VLOOKUP($B27,nimilista,5,FALSE)","v":"Turun Urheiluliitto"},{"$f":"VLOOKUP($B27,hyppy,5,FALSE)","v":0},{"$f":"VLOOKUP($B27,hyppy,12,FALSE)","v":0},{"$f":"VLOOKUP($B27,nojapuut,5,FALSE)","v":0},{"$f":"VLOOKUP($B27,nojapuut,12,FALSE)","v":0},{"$f":"VLOOKUP($B27,Puomi,5,FALSE)","v":0},{"$f":"VLOOKUP($B27,Puomi,12,FALSE)","v":0},{"$f":"VLOOKUP($B27,permanto,5,FALSE)","v":0},{"$f":"VLOOKUP($B27,permanto,12,FALSE)","v":0},{"$f":"F27+H27+J27+L27","v":0}]
[24,25,{"$f":"VLOOKUP($B28,nimilista,2,FALSE)","v":"Anniina Rautiainen"},{"$f":"VLOOKUP($B28,nimilista,5,FALSE)","v":"Voimisteluseura Keski-Uusimaa"},{"$f":"VLOOKUP($B28,hyppy,5,FALSE)","v":0},{"$f":"VLOOKUP($B28,hyppy,12,FALSE)","v":0},{"$f":"VLOOKUP($B28,nojapuut,5,FALSE)","v":0},{"$f":"VLOOKUP($B28,nojapuut,12,FALSE)","v":0},{"$f":"VLOOKUP($B28,Puomi,5,FALSE)","v":0},{"$f":"VLOOKUP($B28,Puomi,12,FALSE)","v":0},{"$f":"VLOOKUP($B28,permanto,5,FALSE)","v":0},{"$f":"VLOOKUP($B28,permanto,12,FALSE)","v":0},{"$f":"F28+H28+J28+L28","v":0}]
[25,26,{"$f":"VLOOKUP($B29,nimilista,2,FALSE)","v":"Maisa Anttilainen"},{"$f":"VLOOKUP($B29,nimilista,5,FALSE)","v":"Voimisteluseura Keski-Uusimaa"},{"$f":"VLOOKUP($B29,hyppy,5,FALSE)","v":0},{"$f":"VLOOKUP($B29,hyppy,12,FALSE)","v":0},{"$f":"VLOOKUP($B29,nojapuut,5,FALSE)","v":0},{"$f":"VLOOKUP($B29,nojapuut,12,FALSE)","v":0},{"$f":"VLOOKUP($B29,Puomi,5,FALSE)","v":0},{"$f":"VLOOKUP($B29,Puomi,12,FALSE)","v":0},{"$f":"VLOOKUP($B29,permanto,5,FALSE)","v":0},{"$f":"VLOOKUP($B29,permanto,12,FALSE)","v":0},{"$f":"F29+H29+J29+L29","v":0}]
[26,27,{"$f":"VLOOKUP($B30,nimilista,2,FALSE)","v":"Julia Darlington"},{"$f":"VLOOKUP($B30,nimilista,5,FALSE)","v":"Voimisteluseura Kieppi"},{"$f":"VLOOKUP($B30,hyppy,5,FALSE)","v":0},{"$f":"VLOOKUP($B30,hyppy,12,FALSE)","v":0},{"$f":"VLOOKUP($B30,nojapuut,5,FALSE)","v":0},{"$f":"VLOOKUP($B30,nojapuut,12,FALSE)","v":0},{"$f":"VLOOKUP($B30,Puomi,5,FALSE)","v":0},{"$f":"VLOOKUP($B30,Puomi,12,FALSE)","v":0},{"$f":"VLOOKUP($B30,permanto,5,FALSE)","v":0},{"$f":"VLOOKUP($B30,permanto,12,FALSE)","v":0},{"$f":"F30+H30+J30+L30","v":0}]
[27,28,{"$f":"VLOOKUP($B31,nimilista,2,FALSE)","v":"Patricia Hämäläinen"},{"$f":"VLOOKUP($B31,nimilista,5,FALSE)","v":"Voimisteluseura Kieppi"},{"$f":"VLOOKUP($B31,hyppy,5,FALSE)","v":0},{"$f":"VLOOKUP($B31,hyppy,12,FALSE)","v":0},{"$f":"VLOOKUP($B31,nojapuut,5,FALSE)","v":0},{"$f":"VLOOKUP($B31,nojapuut,12,FALSE)","v":0},{"$f":"VLOOKUP($B31,Puomi,5,FALSE)","v":0},{"$f":"VLOOKUP($B31,Puomi,12,FALSE)","v":0},{"$f":"VLOOKUP($B31,permanto,5,FALSE)","v":0},{"$f":"VLOOKUP($B31,permanto,12,FALSE)","v":0},{"$f":"F31+H31+J31+L31","v":0}]

{"sheet":"Nimilista","index":18,"n_rows":31,"n_cols":6,"rows_kept":31,"cut":false,"hidden":false,"merged":[]}
["Nimilista"]
[]
[]
["Nro","Nimi","Seura","Lyhenne","Tulosseura","Nayttoseura"]
[2,"Camilla Lindén","Alppilan Salamat","AS",{"$f":"C5","v":"Alppilan Salamat"},{"$f":"D5","v":"AS"}]
[3,"Jenna Smedman","Alppilan Salamat","AS",{"$f":"C6","v":"Alppilan Salamat"},{"$f":"D6","v":"AS"}]
[4,"Maija Leinonen","Alppilan Salamat","AS","Alppilan Salamat","AS"]
[5,"Mari Anttila","Alppilan Salamat","AS","Alppilan Salamat","AS"]
[6,"Nea Kinnunen","Alppilan Salamat","AS","Alppilan Salamat","AS"]
[7,"Noora Knuutila","Alppilan Salamat","AS","Alppilan Salamat","AS"]
[8,"Tuuli Nyberg","Alppilan Salamat","AS","Alppilan Salamat","AS"]
[9,"Enna Herva","Oulun Pyrintö","OP","Oulun Pyrintö","OP"]
[10,"Lili Granroth","Oulun Pyrintö","OP","Oulun Pyrintö","OP"]
[11,"Anniina Muilu","Suomen Taitovoimistelu Klubi","STVK","Suomen Taitovoimistelu Klubi","STVK"]
[12,"Elina Ahmala","Suomen Taitovoimistelu Klubi","STVK","Suomen Taitovoimistelu Klubi","STVK"]
[13,"Maria Pakkanen","Suomen Taitovoimistelu Klubi","STVK","Suomen Taitovoimistelu Klubi","STVK"]
[14,"Saara Halme","Suomen Taitovoimistelu Klubi","STVK","Suomen Taitovoimistelu Klubi","STVK"]
[15,"Viivi Immonen","Suomen Taitovoimistelu Klubi","STVK","Suomen Taitovoimistelu Klubi","STVK"]
[16,"Adeliina Sulkanen","Tampereen Voimistelijat","TV","Tampereen Voimistelijat","TV"]
[17,"Suvi Karumo","Tampereen Voimistelijat","TV","Tampereen Voimistelijat","TV"]
[18,"Tiia Laisi","Tampereen Voimistelijat","TV","Tampereen Voimistelijat","TV"]
[19,"Veronika Vuosjoki","Tampereen Voimistelijat","TV","Tampereen Voimistelijat","TV"]
[20,"Alexandra Ivanova","Turun Pyrkivä","Tupy","Turun Pyrkivä","Tupy"]
[21,"Victoria Jakaus","Turun Pyrkivä","Tupy","Turun Pyrkivä","Tupy"]
[22,"Julia Jäkälä","Turun Urheiluliitto","TuUL","Turun Urheiluliitto","TuUL"]
[23,"Maria Åman","Turun Urheiluliitto","TuUL","Turun Urheiluliitto","TuUL"]
[24,"Miina Kokkonen","Turun Urheiluliitto","TuUL","Turun Urheiluliitto","TuUL"]
[25,"Anniina Rautiainen","Voimisteluseura Keski-Uusimaa","VSK-U","Voimisteluseura Keski-Uusimaa","VSK-U"]
[26,"Maisa Anttilainen","Voimisteluseura Keski-Uusimaa","VSK-U","Voimisteluseura Keski-Uusimaa","VSK-U"]
[27,"Julia Darlington","Voimisteluseura Kieppi","Kieppi","Voimisteluseura Kieppi","Kieppi"]
[28,"Patricia Hämäläinen","Voimisteluseura Kieppi","Kieppi","Voimisteluseura Kieppi","Kieppi"]